Workbook

Sheet Index
B1: Massachusetts Department of Elementary and Secondary Education
B2: FY19 Charter School End of Year Financial Report Summary
B3: Last Updated: May 2020
B4: Updated with first amendment collection (12/3/20 - 5/1/20)
B5: Data Context
B6: This data was collected via the FY2019 Charter School End of Year Financial Report (19CSEOYFR) as well as SIMS and EPIMS databases.
B8: Technical Tips
B9: Please be sure to enable macros before using this file. You will receive a Security Warning message at the top of this page that reads "Macros have been disabled". Please click "Enable Content".
B11: Instructions for Viewing Data
B12: Use the drop-down menu to select a charter school that was operating in FY19 or a statewide charter summary total then navigate to any of the first three tabs linked below. There is additional statewide summary data provided in tabs 4 and 5.
C15: =VLOOKUP(E15, CSORDER, 2, FALSE) ->  | D15: =VLOOKUP(E15, CSORDER, 3, FALSE) ->  | E15: 1
B18: 1. Statement of Net Position
B19: 2. Statement of Revenues, Expenses and Change in Net Position
B20: 3. Schedule of Functional Expenses
B22: In addition, statewide summary data is available for the following:
B23: 4. Expenditures Per Pupil
B24: 5. Average Teacher Salaries
B26: For researchers, the following raw data sets are available:
B27: BAL19_raw (Balance Sheet Data)
B28: INC19_raw (Income Statement Data)
B29: FE19_raw (Schedule of Functional Expenses Data)
B30: FTE_raw (Student FTE Enrollment Data)
B31: EPIMS19_raw (Teacher FTE Enrollment Data)

Sheet 1. Statement of Net Position
A1: NAME: | B1: =SCHOOLNAME ->  | F1: LEA | G1: =LEA -> 
A3: Statement of Net Position
A4: For the Year Ended June 30, 2019
F6: =B1 ->  | G6: Charter School Foundation (Component Unit) | H6: 2019 Total (Memorandum Only) | J6: Line | K6: Rec. Acct#
C7: ASSETS
C8: Current Assets
A9: 01 | C9: Cash and Cash Equivalents | D9: Assets that are cash or can be converted into cash immediately. | F9: =VLOOKUP($G$1&$A9, BAL, 6,FALSE) ->  | G9: =VLOOKUP($G$1&$A9, BAL, 7,FALSE) ->  | H9: =VLOOKUP($G$1&$A9, BAL, 8,FALSE) ->  | J9: =A9 -> 01 | K9: 10XX
A10: 02 | C10: Accounts Receivable net of doubtful accounts | D10: A school's claim for money, goods and services from customers and other entities. | J10: 02 | K10: 11XX
A11: 03 | C11: Grants Receivable - State | D11: Claims for goods and services provided under state awarded contracts. | J11: 03 | K11: 11XX
A12: 04 | C12: Grants Receivable - Federal | D12: Claims for goods and services provided under federal awarded contracts. | J12: 04 | K12: 11XX
A13: 05 | C13: Grants Receivable - Private | D13: Claims for goods and services provided from private awards received. | J13: 05 | K13: 11XX
A14: 06 | C14: Contributions Receivable | D14: Unconditional promises to give by private individuals or corporations. | J14: 06 | K14: 11XX
A15: 07 | C15: Due from related parties | D15: Amounts to be received from related parties. | J15: 07 | K15: 12XX
A16: 08 | C16: Prepaid Expenses / Inventory | D16: An expense paid but not incurred as of year end. Also include short-term inventories of supplies such as uniforms. | J16: 08 | K16: 13XX
A17: 09 | C17: Short-Term Investments | D17: Readily marketable security for which the intention of the school is the conversion to cash in the short term. | J17: 09 | K17: 14XX
A18: 10 | C18: Deposit (Security, Other) | D18: Security deposits for leases, or other deposits. | F18: =VLOOKUP($G$1&$A19, BAL, 6,FALSE) ->  | G18: =VLOOKUP($G$1&$A19, BAL, 7,FALSE) ->  | H18: =VLOOKUP($G$1&$A19, BAL, 8,FALSE) ->  | J18: =A19 -> 11 | K18: 15XX
A19: 11 | C19: Restricted Current Assets | D19: Current assets restricted by external sources for future purchases. | J19: 11 | K19: 15XX
A20: 12 | C20: TOTAL CURRENT ASSETS | D20: Calculates automatically. | J20: 12 | K20: NA
C21: Noncurrent Assets
C22: Capital Assets
A23: 13 | C23: - Land and Buildings | D23: Value of land and building inclusive of remodeling, reconditioning, or altering the building purchased to make it available for the purpose for which it was acquired, including construction in progress. | F23: =VLOOKUP($G$1&$A23, BAL, 6,FALSE) ->  | G23: =VLOOKUP($G$1&$A23, BAL, 7,FALSE) ->  | H23: =VLOOKUP($G$1&$A23, BAL, 8,FALSE) ->  | J23: =A23 -> 13 | K23: 15XX
A24: 14 | C24: - Building/Leasehold Improvement | D24: Value of improvements on leased property that revert back to the owners upon termination of the lease. | J24: 14 | K24: 15XX
A25: 15 | C25: - Furniture and Equipment | D25: Value of furniture and equipment that meet the school's capitalization policy. | J25: 15 | K25: 15XX
A26: 16 | C26: - Less Accumulated Depreciation | D26: The aggregate, at a given point in time, of the depreciation charges made during the useful life of the fixed asset. Enter as a negative number. | J26: 16 | K26: 16XX
A27: 17 | C27: Net Capital Assets | D27: Calculates automatically. | J27: 17 | K27: NA
A28: 19 | C28: Restricted Noncurrent Assets | D28: Noncurrent assets restricted by external sources for future purchases. | J28: 19 | K28: 10XX
A29: 19 | C29: Long-Term Investments | D29: Investments that do not meet the criteria of "Short-Term Investments" above. | J29: 19 | K29: 14XX
A30: 20 | C30: Building Acquisition / Financing Costs / Deferred Expenses | D30: Costs related to building acquisition, construction, and/or financing costs which are amortized. Also include long-term pre-paid leases or expenses which are amortized. | J30: 20 | K30: 14XX
A31: 21 | C31: Long-Term Grants / Contributions Receivable | D31: Please enter a brief description in the highlighted green cell, if applicable. | J31: 21 | K31: 14XX
A32: 22 | C32: TOTAL NONCURRENT ASSETS | D32: Calculates automatically. | J32: 22 | K32: NA
A33: 23 | C33: TOTAL ASSETS | D33: Calculates automatically. | J33: 23 | K33: NA
C35: LIABILITIES AND NET ASSETS
C36: Current Liabilities
A37: 24 | C37: Accounts Payable | D37: Obligations for goods or services purchased for which invoices have been received. | F37: =VLOOKUP($G$1&$A37, BAL, 6,FALSE) ->  | G37: =VLOOKUP($G$1&$A37, BAL, 7,FALSE) ->  | H37: =VLOOKUP($G$1&$A37, BAL, 8,FALSE) ->  | J37: =A37 -> 24 | K37: 20XX
A38: 25 | C38: Accrued Expenses / Accrued Payroll | D38: An unpaid expense incurred that has not been paid as of the end of the period, including accrued payroll. | J38: 25 | K38: 21XX
A39: 26 | C39: Deferred Revenue | D39: Cash received for services not performed (i.e., grant funds received that were not expended). | J39: 26 | K39: 22XX
A40: 27 | C40: Due to related parties | D40: Amounts due to related parties such as the school's component unit. | J40: 27 | K40: 23XX
A41: 28 | C41: Current Debt Payable | D41: Debt obligations due within one year of financial statement date. | J41: 28 | K41: 24XX
A42: 29 | C42: Current Lease Obligations Payable | D42: Lease obligations due within one year of financial statement date. | J42: 29 | K42: 24XX
A43: 30 | C43: TOTAL CURRENT LIABILITIES | D43: Calculates automatically. | J43: 30 | K43: NA
C44: Noncurrent Liabilities
A45: 31 | C45: Noncurrent Lease Obligations | D45: Lease obligations due after one year of financial statement date. | F45: =VLOOKUP($G$1&$A45, BAL, 6,FALSE) ->  | G45: =VLOOKUP($G$1&$A45, BAL, 7,FALSE) ->  | H45: =VLOOKUP($G$1&$A45, BAL, 8,FALSE) ->  | J45: =A45 -> 31 | K45: 26XX
A46: 32 | C46: Long-Term Debt | D46: Debt obligations due after one year of financial statement date. | F46: =VLOOKUP($G$1&$A46, BAL, 6,FALSE) ->  | G46: =VLOOKUP($G$1&$A46, BAL, 7,FALSE) ->  | H46: =VLOOKUP($G$1&$A46, BAL, 8,FALSE) ->  | J46: =A46 -> 32 | K46: 26XX
A47: 33 | C47: Deferred Revenue | D47: Cash received for services not performed (i.e., grant funds received that were not expended). | F47: =VLOOKUP($G$1&$A47, BAL, 6,FALSE) ->  | G47: =VLOOKUP($G$1&$A47, BAL, 7,FALSE) ->  | H47: =VLOOKUP($G$1&$A47, BAL, 8,FALSE) ->  | J47: =A47 -> 33 | K47: 2XXX
A48: 34 | C48: TOTAL NONCURRENT LIABILITIES | D48: Calculates automatically. | F48: =VLOOKUP($G$1&$A48, BAL, 6,FALSE) ->  | G48: =VLOOKUP($G$1&$A48, BAL, 7,FALSE) ->  | H48: =VLOOKUP($G$1&$A48, BAL, 8,FALSE) ->  | J48: =A48 -> 34 | K48: NA
A49: 35 | C49: TOTAL LIABILITIES | D49: Calculates automatically. | F49: =VLOOKUP($G$1&$A49, BAL, 6,FALSE) ->  | G49: =VLOOKUP($G$1&$A49, BAL, 7,FALSE) ->  | H49: =VLOOKUP($G$1&$A49, BAL, 8,FALSE) ->  | J49: =A49 -> 35 | K49: NA
C51: NET ASSETS
A52: 36 | C52: Investment in capital assets (net of related debt) | D52: Represents capital assets reduced by accumulated depreciation and any outstanding debt used to acquire, construct or improve those assets. | F52: =VLOOKUP($G$1&$A52, BAL, 6,FALSE) ->  | G52: =VLOOKUP($G$1&$A52, BAL, 7,FALSE) ->  | H52: =VLOOKUP($G$1&$A52, BAL, 8,FALSE) ->  | J52: =A52 -> 36 | K52: 3XXX
A53: 37 | C53: Temporarily Restricted | D53: Net assets that are temporarily restricted by a funder or the school's Board for a specific purpose. | J53: 37 | K53: 32XX
A54: 38 | C54: Permanently Restricted | D54: Net assets that are restricted by an outside agency or person, as contrasted with assets over which the entity has control and discretion. E.g., a donor scholarship fund. | J54: 38 | K54: 33XX
A55: 39 | C55: Unrestricted (non-capital) | D55: Net assets that do not meet the definitions of any of the above categories. | J55: 39 | K55: 30XX
A56: 40 | C56: TOTAL NET ASSETS | D56: Calculates automatically. | J56: 40 | K56: NA
A57: 41 | C57: TOTAL LIABILITIES AND NET ASSETS | D57: Calculates automatically. MUST RECONCILE WITH LINE 23 (TOTAL ASSETS) | J57: 41 | K57: NA

Sheet 2. Stmt Rev, Exp and Change
B1: NAME: | C1: =SCHOOLNAME ->  | F1: LEA | G1: =LEA ->  | M1: =3 -> 3
A3: Statement of Revenues, Expenses and Change in Net Position
A4: =YEAREND -> For the Year Ended June 30, 2019
D6: Restricted – The use of these funds are restricted to a particular purpose or project. Unrestricted – These use of these funds are unrestricted and came be used toward any purpose. | F6: =C1 ->  | G6: Charter School Foundation (Component Unit) | H6: 2019 Total (Memorandum Only) | J6: Line | K6: Rec. Acct#
C7: REVENUES
A8: 01 | C8: Tuition | D8: Total tuition paid to the charter school by either the Commonwealth or sending school district (Horace Mann), inclusive of local transportation and facilities reimbursement embedded in Commonwealth tuition payments. This should include any reimbursements received for local transportation reimbursement, if applicable. | F8: =VLOOKUP($G$1&$A8, INC, 6,FALSE) ->  | H8: =VLOOKUP($G$1&$A8, INC, 8,FALSE) ->  | J8: =A8 -> 01 | K8: 4000
A9: 02a | B9: ^ | C9: Grants - State - passed through ESE | D9: Grants awarded through the ESE. | G9: =VLOOKUP($G$1&$A9, INC, 7,FALSE) ->  | J9: 02a | K9: 41XX
A10: 02b | B10: ^ | C10: Grants - State - other non-ESE pass-through | D10: Grants awarded directly by the Commonwealth of MA. | J10: 02b | K10: 41XX
A11: 03 | B11: ^ | C11: Grants - Federal - Passed through ESE | D11: Grants from federal sources that pass through ESE such as Title I, IDEA, Charter School Start-Up Assistance, etc. | J11: 03 | K11: 41XX
A12: 04 | B12: ^ | C12: Grants - Federal - Direct or other pass-through | D12: Grants from federal sources awarded directly from federal agencies or passed-through other agencies. | J12: 04 | K12: 41XX
A13: 05a | B13: ^ | C13: Grants - Private (restricted) | D13: Grants awarded by private (non-governmental) foundations, corporations, or individuals that are restricted. | J13: 05a | K13: 41XX
A14: 05b | C14: Grants - Private (unrestricted) | D14: Grants awarded by private (non-governmental) foundations, corporations, or individuals that are unrestricted. | J14: 05b | K14: 41XX
A15: 06 | B15: ^ | C15: Nutrition Funding - State | D15: Funding for nutrition programs is split between the federal and state governments. | J15: 06 | K15: 42XX
A16: 07 | B16: ^ | C16: Nutrition Funding - Federal | D16: Funding for nutrition programs is split between the federal and state governments. | J16: 07 | K16: 42XX
A17: 08 | C17: Nutrition Funding - Fees | D17: Fees collected from students for nutrition programs. | J17: 08 | K17: 42XX
A18: 09 | C18: Other Program / Student Activity Fees | D18: Any fees that the school collects for transportation, uniforms, etc. | F18: =VLOOKUP($G$1&$A19, INC, 6,FALSE) ->  | G18: =VLOOKUP($G$1&$A19, INC, 7,FALSE) ->  | H18: =VLOOKUP($G$1&$A19, INC, 8,FALSE) ->  | J18: =A19 -> 10 | K18: 43XX
A19: 10 | C19: Regional Transportation Aid | D19: Reimbursements from the Commonwealth for regional transportation costs, if applicable. | J19: 10 | K19: 45XX
A20: 11 | C20: Medicaid Reimbursements | D20: Reimbursement from Medicaid | J20: 11 | K20: 45XX
A21: 12 | C21: Circuit Breaker Reimbursements | D21: Reimbursements from the Commonwealth for high-cost special education students, if applicable. | J21: 12 | K21: 45XX
A22: 13a | C22: Contributions, in-kind, host district | D22: Recorded monetary value of in-kind donations for services that would otherwise have been purchased, provided by the school's host district (e.g. transportation, food). | J22: 13a | K22: 44XX
A23: 13b | C23: Contributions, in-kind, other | D23: Recorded monetary value of in-kind donations for services that would otherwise have been purchased, provided by individuals/organizations other than the host district. | G23: =VLOOKUP($G$1&$A23, INC, 7,FALSE) ->  | J23: 13b | K23: 44XX
A24: 13c | C24: Contributions, on-behalf, pension | D24: In accordance with GASB 68, recorded retirement payments to former retired School’s employees. | J24: 13c | K24: 44XX
A25: 14 | C25: Contributions, from Component Unit (restricted) | D25: Restricted contributions made to the School by the Component Unit | J25: 14 | K25: 44XX
A26: 14b | C26: Contributions, from Component Unit (unrestricted) | D26: Unrestricted contributions made to the School by the Component Unit | J26: 14b | K26: 44XX
A27: 15 | C27: Contributions / Fundraising (restricted) | D27: Restricted donations from individuals, businesses, or corporations. | J27: 15 | K27: 44XX
A28: 15b | C28: Contributions / Fundraising (unrestricted) | D28: Unrestricted donations from individuals, businesses, or corporations. | J28: 15b | K28: 44XX
A29: 16 | C29: Interest / Investment Income (restricted) | D29: Restricted income generated from interest/investments. | J29: 16 | K29: 47XX
A30: 16a | C30: Interest / Investment Income (unrestricted) | D30: Unrestricted income generated from interest/investments. | J30: 16b | K30: 47XX
A31: 17 | C31: Rental Income | D31: Income generated from rental of space. | J31: =A31 -> 17 | K31: 46XX
A32: 19 | C32: Loan Forgiveness or Other Reimbursement | D32: Revenue recorded for loan forgiveness or other credit. | J32: =A32 -> 19 | K32: 4XXX
A33: 19 | C33: Miscellaneous Income | D33: Miscellaneous Income. | J33: =A33 -> 19 | K33: 4XXX
A34: 20 | C34: TOTAL REVENUES | D34: Calculates automatically. | J34: =A34 -> 20 | K34: NA
B35: ^ | C35: Non-"General Fund" revenue sources
C37: EXPENSES
A38: 21 | C38: Administration | D38: Charter School figures will be populated from the Sch_FuncExp sheet. | F38: =VLOOKUP($G$1&$A38, INC, 6,FALSE) ->  | H38: =VLOOKUP($G$1&$A38, INC, 8,FALSE) ->  | J38: =A38 -> 21 | K38: NA
A39: 22 | C39: Instructional Services | D39: Charter School figures will be populated from the Sch_FuncExp sheet. | J39: 22 | K39: NA
A40: 23 | C40: Pupil Services | D40: Charter School figures will be populated from the Sch_FuncExp sheet. | J40: 23 | K40: NA
A41: 24 | C41: Operation & Maintenance of Plant | D41: Charter School figures will be populated from the Sch_FuncExp sheet. | J41: 24 | K41: NA
A42: 25 | C42: Fixed Charges | D42: Charter School figures will be populated from the Sch_FuncExp sheet. | J42: 25 | K42: NA
A43: 26 | C43: Community Services | D43: Charter School figures will be populated from the Sch_FuncExp sheet. | J43: 26 | K43: NA
A44: 27 | C44: Non-Operating Financing Expenses | D44: Charter School figures will be populated from the Sch_FuncExp sheet. | J44: 27 | K44: NA
A45: 28 | C45: Component Unit Expenses | D45: Aggregate operating expenses for the Component Unit. | G45: =VLOOKUP($G$1&$A45, INC, 7,FALSE) ->  | J45: 28 | K45: NA
A46: 29 | C46: Contributions to School | D46: Contributions made by the Component Unit to the School | G46: =VLOOKUP($G$1&$A46, INC, 7,FALSE) ->  | J46: 29 | K46: NA
A47: 30 | C47: TOTAL EXPENSES | D47: Calculates automatically. | F47: =VLOOKUP($G$1&$A47, INC, 6,FALSE) ->  | G47: =VLOOKUP($G$1&$A47, INC, 7,FALSE) ->  | J47: 30 | K47: NA
A49: 31 | C49: TOTAL GAIN/(LOSS) | D49: Calculates automatically. | F49: =VLOOKUP($G$1&$A49, INC, 6,FALSE) ->  | G49: =VLOOKUP($G$1&$A49, INC, 7,FALSE) ->  | H49: =VLOOKUP($G$1&$A49, INC, 8,FALSE) ->  | J49: =A49 -> 31 | K49: NA
A50: 32 | C50: Gain/Loss on Sale of Asset or Lease Transaction | D50: Gain/Loss recorded on sale of school assets or lease transaction. | F50: =VLOOKUP($G$1&$A50, INC, 6,FALSE) ->  | G50: =VLOOKUP($G$1&$A50, INC, 7,FALSE) ->  | H50: =VLOOKUP($G$1&$A50, INC, 8,FALSE) ->  | J50: =A50 -> 32 | K50: 5XXX
A51: 33 | C51: Other Gain/Loss | D51: Other Gain or Loss that is a non-recurring, unusual occurrence such as a prior-period adjustment | F51: =VLOOKUP($G$1&$A51, INC, 6,FALSE) ->  | G51: =VLOOKUP($G$1&$A51, INC, 7,FALSE) ->  | H51: =VLOOKUP($G$1&$A51, INC, 8,FALSE) ->  | J51: =A51 -> 33 | K51: 5XXX
A52: 34 | C52: TOTAL CHANGES IN NET ASSETS: | D52: Calculates automatically. | F52: =VLOOKUP($G$1&$A52, INC, 6,FALSE) ->  | G52: =VLOOKUP($G$1&$A52, INC, 7,FALSE) ->  | H52: =VLOOKUP($G$1&$A52, INC, 8,FALSE) ->  | J52: =A52 -> 34 | K52: NA
A54: 35 | C54: NET ASSETS AT BEGINNING OF YEAR | D54: Please enter values from previous year's audit. | F54: =VLOOKUP($G$1&$A54, INC, 6,FALSE) ->  | G54: =VLOOKUP($G$1&$A54, INC, 7,FALSE) ->  | H54: =VLOOKUP($G$1&$A54, INC, 8,FALSE) ->  | J54: =A54 -> 35 | K54: NA
A55: 36 | C55: NET ASSETS AT END OF YEAR | D55: Calculates automatically. MUST RECONCILE WITH BALANCE SHEET LINE 40 (TOTAL NET ASSETS) | F55: =VLOOKUP($G$1&$A55, INC, 6,FALSE) ->  | G55: =VLOOKUP($G$1&$A55, INC, 7,FALSE) ->  | H55: =VLOOKUP($G$1&$A55, INC, 8,FALSE) ->  | J55: =A55 -> 36 | K55: NA
F56: 0 | G56: 0 | H56: 0

Sheet 3. Schedule of Func Exp
B1: NAME: | C1: =SCHOOLNAME ->  | H1: =LEA -> 
A3: Schedule of Functional Expenses
A4: =YEAREND -> For the Year Ended June 30, 2019
F5: "General" Fund
F6: 1 | G6: 2 | H6: 3 | I6: 4 | J6: 5 | K6: 6 | L6: 7
F7: General Education | G7: Special Education | H7: Undistributed | I7: State Grants & Nut. Reimb. | J7: Federal Grants & Nut. Reimb. | K7: Private Grants (Designated) | L7: TOTAL | Q7: Crosswalk to EOYR, if possible
A8: Line | C8: Functional Category | D8: For salaried personnel, please provide a full-time equivalency (FTE) total that corresponds to the salary expense reported. | F8: Expenses | G8: Expenses | H8: Expenses | I8: Expenses | J8: Expenses | K8: Expenses | L8: Expenses | S8: Defintions
A10: 100 | C10: Administration | D10: =C10&" - Calculates automatically." -> Administration - Calculates automatically. | H10: =VLOOKUP($H$1&$A10, FE, 8,FALSE) ->  | I10: =VLOOKUP($H$1&$A10, FE, 9,FALSE) ->  | J10: =VLOOKUP($H$1&$A10, FE, 10,FALSE) ->  | K10: =VLOOKUP($H$1&$A10, FE, 11,FALSE) ->  | L10: =VLOOKUP($H$1&$A10, FE, 12,FALSE) ->  | Q10: 1000 series | S10: 1 | T10: General Education | U10: Expenditures from "operating" revenues recognized on all lines except 2 - 5a and 6 - 7 of the Income Statement for General Education programs (defined as non-special education programs). These expenditures should include English Language Learner programs, required summer school, and extended programs.
A11: 110 | C11: Subtotal - Board of Trustees | D11: Calculates automatically | H11: =VLOOKUP($H$1&$A11, FE, 8,FALSE) ->  | Q11: 1100 | S11: 2 | T11: Special Education | U11: Expenditures from "operating" revenues recognized on all lines except 2 - 5a and 6 - 7 of the Income Statement for Special Education, defined as programs for instruction of students with special needs, provided for under MGL Ch. 71B and 603 CMR 28.00. Note that all special education expenditures by charter schools will be for "in-district" students, as the fiscal responsibility of any special needs student currently enrolled in or determined to require a private day or residential school shall remain with the school district where the student resides per MGL Chapter 71 Section 89(s).
A12: 111 | C12: Contracted Services | D12: Contracted professional services, including all related expenses covered by the contract. (Ex: board training consultant, facilitator for board retreat, board attorney) Do not include auditor see Non-Instructional Administration-Contracted Services. | Q12: 1100 | S12: 3 | T12: Undistributed | U12: Expenditures that cannot be assigned to either General Education and Special Education program areas from "operating" revenues recognized on all lines except 2 - 5a and 6 - 7 of the Income Statement.
A13: 112 | C13: Travel and other expenses | D13: Travel and other expenses for board members such as dues, subscriptions and memberships. (Ex: board member travels to charter school conference, dues for board-specific professional association). | Q13: 1100 | S13: 4 | T13: State Grants & Funding | U13: Expenditures from state revenue sources recognized in Line 2 and 6 of the Income Statement. Amounts here should reconcile with final expenditure reports for state grants filed with ESE.
A14: 120a | C14: Subtotal - Non-Instructional Administration and Support Staff | D14: Calculates automatically | Q14: 1210, 1220 | S14: 5 | T14: Federal Grants & Funding | U14: Expenditures from federal revenue sources recognized in Line 3, 4, and 7 of the Income Statement. Amounts here should reconcile with final expenditure reports for state and federal grants filed with ESE.
A15: 121a | C15: Salaries - Professional and Support Staff | D15: Salaries for non-instructional school-wide administrative personnel, excluding development staff. (Ex: executive director, Business and Finance, Human Resources, Legal Services, Information Technology, Student Recruitment and Enrollment/Registrar, Enrollment Director, SIMS administrator, and respective Support Staff). Principals and Instructional Leaders should be noted in Instructional Services. If role is instructional and administrative, split accordingly. | Q15: 1210, 1220 | S15: 6 | T15: Private Grants (Restricted) | U15: Expenditures from restricted private grants for operating expenses listed in the Income Statement as line 5a. Note that all other private donations/contributions should be captured in the "general fund" columns.
A16: 122a | C16: Contracted Services - Professional and Support Staff | D16: Contracted professional services, including all related expenses covered by the contract, excluding development contracts. (Ex: interim school leader, auditor, attorney, licensing for district wide software - Microsoft, Anti virus). | Q16: 1210, 1220
A17: 123 | C17: Recruitment/Advertising | D17: Recruiting/advertising for students, staff, and board members. (Ex: brochures, newspaper advertising, web based staff recruitment such as School Spring, radio, advertising for bids).
A18: 124 | C18: Travel, Dues, and other expenses | D18: Travel and other expenses for all non-instructional administrative and support staff, dues such as charter school association dues, professional dues, subscriptions, memberships, professional development and conferences.
A19: 125 | C19: Supplies and Materials | D19: Materials and items of an expendable nature. Unit price of less than $5000. (Ex: office furniture, office supplies, non-instructional computers and software).
A20: 126 | C20: Depreciation - non instructional | D20: Annual depreciation expense for capitalized costs (ex: district wide information management, computers, furniture).
A21: 170 | C21: Subtotal - Development (Private) | D21: Calculates automatically | Q21: 1230
A22: 170a | C22: Salaries - Professional - Private | D22: Salaries apportioned to private development personnel (this could be % of a salary). (Ex: grant writer and fundraiser). | Q22: 1230
A23: 170b | C23: Contracted Services - Private | D23: Contracts apportioned to professional services for private development (including all related expenses covered by the contract). (Ex: contracted fundraiser, contracted grant writer). | Q23: 1230??
A24: 170c | C24: Fundraising - Private | D24: Expenses related to private fundraising. (Ex: invitations to fundraiser, fundraising software, space rental for fundraising event).
A25: 171 | C25: Subtotal - Development (Public) | D25: Calculates automatically
A26: 171a | C26: Salaries - Professional - Public | D26: Salaries apportioned to public development personnel (this could be a % of a salary). (Ex: grant writer and fundraiser).
A27: 171b | C27: Contracted Services - Public | D27: Contracts apportioned to professional services for public development (including all related expenses covered by the contract). (Ex: contracted grant writer).
A29: 200 | C29: Instructional Services | D29: Calculates automatically | F29: =VLOOKUP($H$1&$A29, FE, 6,FALSE) ->  | G29: =VLOOKUP($H$1&$A29, FE, 7,FALSE) ->  | H29: =VLOOKUP($H$1&$A29, FE, 8,FALSE) ->  | I29: =VLOOKUP($H$1&$A29, FE, 9,FALSE) ->  | J29: =VLOOKUP($H$1&$A29, FE, 10,FALSE) ->  | K29: =VLOOKUP($H$1&$A29, FE, 11,FALSE) ->  | L29: =VLOOKUP($H$1&$A29, FE, 12,FALSE) ->  | Q29: 2000 series
A30: 210 | C30: Instructional Subtotal - Instructional Leadership | D30: Calculates automatically | Q30: 2100s, 2200s, 2315
A31: 211 | C31: Salaries - Professional | D31: Salaries for instructional personnel in leadership roles. (Ex: principal/asst. principals (undistributed), curriculum directors (including SPED), department heads, technology/tnstructional coordinators, team leaders, network school administrators). | Q31: 2110, 2120, 2210, 2220, 2250, 2315
A32: 212 | C32: Salaries - Clerical | D32: Salaries for administrative support personnel who prepare, transcribe, systematize or preserve communications, records and transactions. (Ex: instructional school secretary and respective clerical support staff to the various instructional personnel in leadership roles). | Q32: 2110, 2120, 2210, 2220, 2250, 2315
A33: 213 | C33: Contracted Services | D33: Contracted professional services, including all related expenses covered by the contract. (Ex: contracted instructional consultant such as a reading specialist). | Q33: 2110, 2120, 2210, 2220, 2250, 2315
A34: 214 | C34: Supplies and Materials | D34: Materials and items of an expendable nature. Unit price of less than $5000. (Ex: white boards and computers for instructional leaders). | Q34: 2110, 2120, 2210, 2220, 2250, 2315
A35: 215 | C35: Travel and other expenses | D35: Travel and other expenses for all instructional leadership and their support staff, professional dues, subscriptions, memberships, teaching seminars and conferences . | Q35: 2110, 2120, 2210, 2220, 2250, 2315
A36: 220 | C36: Instructional Subtotal - Classroom and Specialist Teachers | D36: Calculates automatically | Q36: 2300
A37: 221 | C37: Salaries - Teachers, Classroom | D37: Salaries for teachers with primary responsibility for teaching designated curriculum to established "classes" of students in a group instruction setting. Also includes itinerant music, art, health, physical education teachers who travel from classroom-to-classroom. Teacher EPIMS codes: 2305 - Teacher, 2306 - Co Teacher, 2307 - Virtual Teacher, 2308 - Virtual Teacher – Co Teacher | Q37: 2305
A38: 222 | C38: Salaries - Teachers, Specialists | D38: Salaries for teachers/specialists who provide individualized instruction to students (1-on-1 or small groups) to supplement the services delivered by the students' classroom teachers, e.g. reading recovery, Title I reading specialists, special education, academic support, and language acquisitions services. NOT paraprofessionals. Teacher EPIMS codes: 2310 - Teacher - specialized content instruction | Q38: 2310
A39: 230 | C39: Instructional Subtotal - Other Teaching Services | D39: Calculates automatically | Q39: 2300
A40: 231 | C40: Salaries - Professional | D40: Salaries for Medical/Therapeutic service and other professionals. (Ex: OT, PT, Speech, Vision and other therapeutic services that are provided by licensed practitioners, librarians, media center directors, substitute teachers on payroll, extended-day teachers, MCAS administrator). | Q40: 2320, 2325, 2340
A41: 232 | C41: Salaries - Nonclerical Paraprofessionals | D41: Salaries for paraprofessionals hired to assist teachers/specialists with classroom instruction in the preparation or reproduction of instructional materials or classroom instruction. (Ex: American Sign Language Specialists, general teacher's assistant, after-school employees). | Q41: 2330
A42: 233 | C42: Salaries - Clerical | D42: Salaries for administrative support personnel who prepare, transcribe, systematize or preserve communications, records and transactions. (Ex: secretary, after-school employees). | Q42: 2320, 2325, 2340
A43: 234 | C43: Contracted Services | D43: Contracted professional services, including all related expenses covered by the contract, for other teaching services (Ex: non-payroll substitute teachers should be included here, contracted OT, PT, after-school contracted workers). | Q43: 2320, 2325, 2340
A44: 240 | C44: Instructional Subtotal - Professional Development | D44: Calculates automatically | H44: =VLOOKUP($H$1&$A44, FE, 8,FALSE) ->  | Q44: 2350s
A45: 241 | C45: Salaries - Professional | D45: Salaries for full-time or prorated salary of director/staff for professional development, including training for new teachers, new curriculum or instructional practices, master and mentor teachers, and coaches. | H45: =VLOOKUP($H$1&$A45, FE, 8,FALSE) ->  | Q45: 2351, 2353
A46: 242 | C46: Contracted Services | D46: Contracted professional services, including all related expenses covered by the contract, for professional development (Ex: non-payroll substitute teachers, speakers and trainers). | H46: =VLOOKUP($H$1&$A46, FE, 8,FALSE) ->  | Q46: 2351, 2353
A47: 243 | C47: Supplies and Materials | D47: Materials and items of an expendable nature. Unit price of less than $5000. (Ex: professional development handouts). | H47: =VLOOKUP($H$1&$A47, FE, 8,FALSE) ->  | Q47: 2351, 2353
A48: 244 | C48: Travel and other expenses | D48: Travel and other expenses for staff such as dues, subscriptions and memberships. (Ex: professional development seminar, tuition reimbursements for teacher higher education coursework). | H48: =VLOOKUP($H$1&$A48, FE, 8,FALSE) ->  | Q48: 2351, 2353
A49: 250 | C49: Instructional Subtotal - Guidance, Psychological & Testing | D49: Calculates automatically | Q49: 2700s, 2800s
A50: 251 | C50: Salaries - Professional | D50: Salaries for Guidance, Pyschological & Testing Professionals (Ex: director of guidance, school social workers, and counselors for guidance, school adjustment, higher education, career planning, and workplace learning placement; psychological evaluators and other licensed mental health professionals). | Q50: 2710, 2720, 2800
A51: 252 | C51: Salaries - Clerical | D51: Salaries for administrative support personnel who prepare, transcribe, systematize or preserve communications, records and transactions. (Ex: secretary). | Q51: 2710, 2720, 2800
A52: 253 | C52: Contracted Services | D52: Contracted professional services, including all related expenses covered by the contract, for guidance, psychological, and testing. (Ex: contracted guidance counselor). | Q52: 2710, 2720, 2800
A53: 254 | C53: Supplies and Materials | D53: Materials and items of an expendable nature. Unit price of less than $5000. (Ex: pyschological (not academic related) testing materials). | Q53: 2710, 2720, 2800
A54: 260 | C54: Instructional Subtotal - Materials, Equipment & Technology | D54: Calculates automatically | H54: =VLOOKUP($H$1&$A54, FE, 8,FALSE) ->  | Q54: 2451
A55: 261 | C55: Textbooks & Related Media/Materials | D55: Expenditures for all textbooks and related media/materials (Ex: hard copy and online text books). | Q55: 2410
A56: 262 | C56: Other Instructional Materials | D56: Books, furniture and other materials, excluding textbooks but including online materials, for use in school libraries or classroom libraries (Ex: trade books, subscription to online magazine, periodicals, reference materials, student desks etc.). | Q56: 2415
A57: 263 | C57: Instructional Equipment | D57: Non-capitalized expenditures for purchase of science laboratory, physical education, equipment, irrespective of unit cost. Also includes lease/purchase of copy equipment primarily used to produce instructional materials. Does not include classroom technology equipment. | Q57: 2420
A58: 264 | C58: General Supplies | D58: Papers, pens, pencils, crayons, chalk, paint, toner printer cartridges, calculators, etc. | Q58: 2430
A59: 265 | C59: Other Instructional Services | D59: Cost for field trips, including admissions and transportation costs. Also, distance learning services. | Q59: 2440
A60: 266 | C60: Classroom Instructional Technology | D60: Computers, servers, networks, scanners, digital cameras, etc. used in the classroom or in computer laboratories. | H60: =VLOOKUP($H$1&$A60, FE, 8,FALSE) ->  | Q60: 2451
A61: 267 | C61: Other Instructional Hardware | D61: Computers, servers, networks, scanners, digital cameras, etc. for school libraries and media centers. | H61: =VLOOKUP($H$1&$A61, FE, 8,FALSE) ->  | Q61: 2453
A62: 268a | C62: Classroom Instructional Software | D62: Software licenses used in the classroom or in computer laboratories. (Ex: Online textbook guide, student data communication software such as Edline, Powerschool, School Brains). | F62: =VLOOKUP($H$1&$A62, FE, 6,FALSE) ->  | G62: =VLOOKUP($H$1&$A62, FE, 7,FALSE) ->  | Q62: 2455
A63: 268b | C63: Other Instructional Software | D63: Software licenses used for school libraries and media centers. | F63: =VLOOKUP($H$1&$A63, FE, 6,FALSE) ->  | G63: =VLOOKUP($H$1&$A63, FE, 7,FALSE) ->  | Q63: NA
A64: 269 | C64: Depreciation for Furniture, Equipment & Technology | D64: Annual depreciation expense for capitalized Instructional Materials, Equipment, & Technology. | F64: =VLOOKUP($H$1&$A64, FE, 6,FALSE) ->  | G64: =VLOOKUP($H$1&$A64, FE, 7,FALSE) -> 
A66: 300 | C66: Subtotal - Pupil Services | D66: Calculates automatically | F66: =VLOOKUP($H$1&$A66, FE, 6,FALSE) ->  | G66: =VLOOKUP($H$1&$A66, FE, 7,FALSE) ->  | H66: =VLOOKUP($H$1&$A66, FE, 8,FALSE) ->  | I66: =VLOOKUP($H$1&$A66, FE, 9,FALSE) ->  | J66: =VLOOKUP($H$1&$A66, FE, 10,FALSE) ->  | K66: =VLOOKUP($H$1&$A66, FE, 11,FALSE) ->  | L66: =VLOOKUP($H$1&$A66, FE, 12,FALSE) ->  | Q66: 3000 series
A67: 310 | C67: Health Services | D67: Salaries for school physicians, school nurses, and clerical support staff. Expenses for school medical supplies, dues and subscriptions, and travel. | Q67: various salary 3000's
A68: 315 | C68: Health Services - Contracted | D68: Contracted services for school physicians, school nurses, clerical support staff and associated contracted expenses.
A69: 320 | C69: Athletic Services | D69: Salaries for coaches, trainers and assistants. Expenses for athletic supplies, uniforms, travel expenses and transportation to and from athletic events.
A70: 325 | C70: Athletic Services - Contracted | D70: Contracted services for coaches, trainers and assistants. Expenses for vendors providing athletic supplies, uniforms, and transportation to and from athletic events.
A71: 330 | C71: Food Services | D71: Salaries for cafeteria workers, food directors, and other food-related services for personell on payroll. Expenses for food, supplies, dues and subscriptions, and travel. | Q71: various salary 3000's
A72: 335 | C72: Food Services - Contracted | D72: Contracted services for cafeteria workers, food directors, and other food-related services for personell on payroll. Expenses for food, supplies, dues and subscriptions, and travel.
A73: 340 | C73: Student Transportation (to and from school) | D73: Salaries and related costs incurred by the school; Or, monetary fair market value of services provided by sending district. (Please note: More detail is required in the Schedule 7C worksheet for those seeking reimbursement). | Q73: 3300
A74: 345 | C74: Student Transportation (to and from school) | D74: Contracted professional services and related costs incurred by the school; Or, monetary fair market value of services provided by sending district. (Please note: More detail is required in the Schedule 7C worksheet for those seeking reimbursement).
A75: 350 | C75: Depreciation of Transportation Vehicles | D75: Annual depreciation expense for capitalized transportation vehicles. (Please note: More detail is required in the Schedule 7C worksheet for those seeking state or district reimbursement for transportation costs). | Q75: 3300
A76: 360 | C76: Other Student Activities | D76: Salaries and contracted services for other student activities such as musical directors, drama coaches and other extra-curricular personnel. Expenses for supplies and materials, travel expenses and transportation to and from related events. Includes expenses related to extended-day programs. | Q76: 3520/3600
A78: 400 | C78: Operation & Maintenance of Plant | D78: Calculates automatically | H78: =VLOOKUP($H$1&$A78, FE, 8,FALSE) ->  | I78: =VLOOKUP($H$1&$A78, FE, 9,FALSE) ->  | J78: =VLOOKUP($H$1&$A78, FE, 10,FALSE) ->  | K78: =VLOOKUP($H$1&$A78, FE, 11,FALSE) ->  | L78: =VLOOKUP($H$1&$A78, FE, 12,FALSE) ->  | Q78: 4000 series
A79: 410 | C79: Operation & Maintenance of Buildings and Grounds | D79: Salaries and contracted services for plant managers, custodians, maintenance, etc. Expenses for supplies, travel expenses and professional development. | Q79: various 4000's salaries
A80: 420 | C80: Utilities | D80: Cost of fuel, oil, electricity, gas, water, trash, waste disposal, telephone services, etc. | Q80: 4120 and 4130
A81: 430 | C81: Maintenance of Equipment | D81: Equipment parts and repair, materials, and tools, contracted services, including vehicles. | Q81: 4230
A82: 440 | C82: Networking and Telecommunications | D82: Costs for installing and maintaining school technology infrastructure, including wiring, file servers, etc. | Q82: 4400
A84: 500 | C84: Fixed Charges | D84: Calculates automatically | H84: =VLOOKUP($H$1&$A84, FE, 8,FALSE) ->  | I84: =VLOOKUP($H$1&$A84, FE, 9,FALSE) ->  | J84: =VLOOKUP($H$1&$A84, FE, 10,FALSE) ->  | K84: =VLOOKUP($H$1&$A84, FE, 11,FALSE) ->  | L84: =VLOOKUP($H$1&$A84, FE, 12,FALSE) ->  | Q84: 5000 series
A85: 510 | C85: Employee Retirement | D85: Payroll taxes including contributions to Medicaid, social security, pension plans, and other employee retirement systems, school's portion, for non-MTRS employees; and Federal grant MTRS surcharge. Include MTRS on-behalf pension recorded expense according to GASB 68. | Q85: 5100
A86: 520 | C86: Fringe Benefits | D86: Employee unemployment, health, and life insurance premiums or payments, and worker's compensation or other benefits, paid by the school for the benefit of the employee. | Q86: 5200, 5250
A87: 530 | C87: Insurance (non-employee) | D87: Insurance premiums for property, fire, liability, fidelity bonds; self-insurance costs. | Q87: 5260
A88: 550 | C88: Rental/Lease of Equipment | D88: Annual operating lease/rental costs of equipment. | Q88: 5300
A89: 560 | C89: Short-Term Interest | D89: Interest costs for short-term (less than one year) lines of credit that are needed to sustain cash flow for ongoing operations. | Q89: 5400, 5450
A91: 600 | C91: Community Services | D91: Calculates automatically | H91: =VLOOKUP($H$1&$A91, FE, 8,FALSE) ->  | I91: =VLOOKUP($H$1&$A91, FE, 9,FALSE) ->  | J91: =VLOOKUP($H$1&$A91, FE, 10,FALSE) ->  | K91: =VLOOKUP($H$1&$A91, FE, 11,FALSE) ->  | L91: =VLOOKUP($H$1&$A91, FE, 12,FALSE) ->  | Q91: 6000 series
A92: 610 | C92: Dissemination Activities | D92: Activities designed to disseminate the school's best practices to external groups, including presentations at or hosting of conferences, etc. | H92: =VLOOKUP($H$1&$A92, FE, 8,FALSE) ->  | I92: =VLOOKUP($H$1&$A92, FE, 9,FALSE) ->  | J92: =VLOOKUP($H$1&$A92, FE, 10,FALSE) ->  | K92: =VLOOKUP($H$1&$A92, FE, 11,FALSE) ->  | L92: =VLOOKUP($H$1&$A92, FE, 12,FALSE) ->  | Q92: 6200
A93: 620 | C93: Civic Activities | D93: Expenses associated with civic activities (Ex: fundraising activities for a charitable agency, community service). | H93: =VLOOKUP($H$1&$A93, FE, 8,FALSE) ->  | I93: =VLOOKUP($H$1&$A93, FE, 9,FALSE) ->  | J93: =VLOOKUP($H$1&$A93, FE, 10,FALSE) ->  | K93: =VLOOKUP($H$1&$A93, FE, 11,FALSE) ->  | L93: =VLOOKUP($H$1&$A93, FE, 12,FALSE) ->  | Q93: 6200
A95: 700 | C95: Non-Operating / Capital Facilities Costs | D95: Calculates automatically | H95: =VLOOKUP($H$1&$A95, FE, 8,FALSE) ->  | I95: =VLOOKUP($H$1&$A95, FE, 9,FALSE) ->  | J95: =VLOOKUP($H$1&$A95, FE, 10,FALSE) ->  | K95: =VLOOKUP($H$1&$A95, FE, 11,FALSE) ->  | L95: =VLOOKUP($H$1&$A95, FE, 12,FALSE) ->  | Q95: 7000 series
A96: 720 | C96: Long-Term Interest, facilities related | D96: Annual debt service costs for long-term financing (greater than one year) related to capital facilities costs. | H96: =VLOOKUP($H$1&$A96, FE, 8,FALSE) ->  | Q96: 8200
A97: 725 | C97: Long-Term Interest, non-facilities related | D97: Annual debt service costs for long-term financing (greater than one year) not related to capital facilities costs. | Q97: 8300
A98: 730 | C98: Other costs related to capital facilities acquisition | D98: Expenses (e.g.,architectural design, closing costs, site exploration, etc.) related to capital facilities acquisition or lease. | Q98: 8000
A99: 740 | C99: Rental/Lease of Buildings & Grounds | D99: Annual operating lease/rental costs of Building & Grounds. | Q99: 7000
A100: 750 | C100: Depreciation of Equipment, Building, & Grounds | D100: Annual depreciation expense for capitalized Equipment, Networking and Telecommunications, Building, & Grounds. | Q100: 5350*
A101: 760 | C101: Bad debt / loss on disposal of assets | D101: Write-off costs for bad debt or loss on disposal of assets. | Q101: NA
A103: 800 | C103: TOTALS | D103: Calculates automatically | F103: =VLOOKUP($H$1&$A103, FE, 6,FALSE) ->  | G103: =VLOOKUP($H$1&$A103, FE, 7,FALSE) ->  | H103: =VLOOKUP($H$1&$A103, FE, 8,FALSE) ->  | I103: =VLOOKUP($H$1&$A103, FE, 9,FALSE) ->  | J103: =VLOOKUP($H$1&$A103, FE, 10,FALSE) ->  | K103: =VLOOKUP($H$1&$A103, FE, 11,FALSE) ->  | L103: =VLOOKUP($H$1&$A103, FE, 12,FALSE) -> 
A105: 910 | C105: Reference: Capitalized Expenditures | D105: Reference line for cash expenditures that are not expensed in the fiscal year | H105: =VLOOKUP($H$1&$A105, FE, 8,FALSE) ->  | I105: =VLOOKUP($H$1&$A105, FE, 9,FALSE) ->  | J105: =VLOOKUP($H$1&$A105, FE, 10,FALSE) ->  | K105: =VLOOKUP($H$1&$A105, FE, 11,FALSE) ->  | L105: =VLOOKUP($H$1&$A105, FE, 12,FALSE) -> 
A106: 920 | C106: Reference: Deferrals/Carryovers | D106: Reference line for cash expenditures that are not expensed in the fiscal year | H106: =VLOOKUP($H$1&$A106, FE, 8,FALSE) ->  | I106: =VLOOKUP($H$1&$A106, FE, 9,FALSE) ->  | J106: =VLOOKUP($H$1&$A106, FE, 10,FALSE) ->  | K106: =VLOOKUP($H$1&$A106, FE, 11,FALSE) ->  | L106: =VLOOKUP($H$1&$A106, FE, 12,FALSE) -> 
A107: 900 | C107: Reference: Totals | H107: =VLOOKUP($H$1&$A107, FE, 8,FALSE) ->  | I107: =VLOOKUP($H$1&$A107, FE, 9,FALSE) ->  | J107: =VLOOKUP($H$1&$A107, FE, 10,FALSE) ->  | K107: =VLOOKUP($H$1&$A107, FE, 11,FALSE) ->  | L107: =VLOOKUP($H$1&$A107, FE, 12,FALSE) -> 

Sheet 4. EXPPP
A1: Massachusetts Department of Elementary and Secondary Education
A2: FY19 Charter School Expenditures Per Pupil, All Funds, Summary By Function
A3: =Index!B3 -> Last Updated: May 2020
B4: Return to Index | F4: ----------------------------- Operating Expenditures Per Pupil In The Charter School ------------------------------------------- | S4: --- Exp pp Facilities Costs2 ---
E5: fte pupils | G5: instruc- | H5: classroom & | I5: other | J5: profes- | K5: instructn'l | L5: guidance, | N5: operations | O5: insurance, | P5: total operating | Q5: total operating | S5: Rental/Lease of | T5: Capital
D6: location | E6: at the | F6: admini- | G6: tional | H6: specialist | I6: teaching | J6: sional dev- | K6: materials, | L6: counseling | M6: pupil | N6: and | O6: retirement | P6: expenditures | Q6: expenditures | S6: Building & | T6: Facilities
A7: LEA | B7: Charter School | C7: type | D7: in FY14 | E7: charter | F7: stration | G7: leadership | H7: teachers | I7: services | J7: elopment | K7: equip & tech | L7: & testing | M7: services | N7: maintenance | O7: & other 1 | P7: aggregate | Q7: per pupil | S7: Grounds | T7: Expenses3
F8: 100 | G8: 210 | H8: 220 | I8: 230 | J8: 240 | K8: 260 | L8: 250 | M8: 300 | N8: 400 | O8: 500 | S8: 540 | T8: 720
A9: 445 | B9: Abby Kelley Foster Charter Public School | C9: =VLOOKUP(A9, TYPE, 3, FALSE) -> C | D9: =VLOOKUP(A9, FACTS, 6, FALSE) -> Worcester | E9: =VLOOKUP(A9, FTE, 2, FALSE) -> 1425.42 | F9: =VLOOKUP($A9&100, FE, 12, FALSE)/$E9 -> 875.6435226 | G9: =VLOOKUP($A9&210, FE, 12, FALSE)/$E9 -> 1161.709166 | H9: =VLOOKUP($A9&220, FE, 12, FALSE)/$E9 -> 4645.610697 | I9: =VLOOKUP($A9&230, FE, 12, FALSE)/$E9 -> 839.7173114 | J9: =VLOOKUP($A9&240, FE, 12, FALSE)/$E9 -> 82.57174026 | K9: =VLOOKUP($A9&260, FE, 12, FALSE)/$E9 -> 385.3200039 | L9: =VLOOKUP($A9&250, FE, 12, FALSE)/$E9 -> 341.4856814 | M9: =VLOOKUP($A9&300, FE, 12, FALSE)/$E9 -> 1663.824227 | N9: =VLOOKUP($A9&400, FE, 12, FALSE)/$E9 -> 1729.490178 | O9: =VLOOKUP($A9&500, FE, 12, FALSE)/$E9 -> 3645.523242 | P9: =VLOOKUP($A9&800,FE,12,FALSE)-VLOOKUP($A9&700,FE,12,FALSE)-VLOOKUP($A9&600,FE,12,FALSE) -> 21909982.25 | Q9: =SUM(F9:O9) -> 15370.89577 | S9: =VLOOKUP($A9&740, FE, 12, FALSE)/$E9 -> 0 | T9: =(VLOOKUP($A9&700, FE, 12, FALSE)-VLOOKUP($A9&740, FE, 12, FALSE)-VLOOKUP($A9&725, FE, 12, FALSE))/$E9 -> 1511.153478
A10: 412 | B10: Academy of the Pacific Rim Charter Public School | C10: C | D10: Boston | E10: =VLOOKUP(A10, FTE, 2, FALSE) -> 532.68 | F10: 2611.711271 | G10: 1652.168196 | H10: 5173.780367 | I10: 792.3235471 | J10: 220.2141469 | K10: 864.6755275 | L10: 905.1484723 | M10: 2466.253562 | N10: 1163.824979 | O10: 4497.784111 | P10: 10838910.94 | Q10: =SUM(F10:O10) -> 20347.88418 | S10: 0 | T10: 1987.308816
A11: 430 | B11: Advanced Math and Science Academy Charter School | C11: C | D11: Marlborough | E11: 972.7 | F11: 1736.932672 | G11: 928.6909736 | H11: 5509.601676 | I11: 372.6849183 | J11: 403.3199136 | K11: 664.4640485 | L11: 315.7550632 | M11: 1833.41538 | N11: 904.3872623 | O11: 3990.411936 | P11: 16204855.02 | Q11: 16659.66384 | S11: 1411.512799 | T11: 159.7101059
A12: 409 | B12: Alma del Mar Charter School | C12: C | D12: New Bedford | E12: 439.99 | F12: 1700.67047 | G12: 503.9455442 | H12: 4612.20255 | I12: 1290.670243 | J12: 1015.03216 | K12: 582.0223187 | L12: 376.0949112 | M12: 2643.900998 | N12: 804.2591877 | O12: 3012.234369 | P12: 7277889 | Q12: 16541.03275 | S12: 1497.518125 | T12: 1037.405396
A13: 3509 | B13: Argosy Collegiate Charter School | C13: C | D13: Fall River | E13: 458.87 | F13: 1753.114477 | G13: 814.7928607 | H13: 4533.229455 | I13: 493.9002332 | J13: 35.44141042 | K13: 881.8226295 | L13: 383.559069 | M13: 2175.147972 | N13: 832.8384946 | O13: 2872.516181 | P13: 6780429.59 | Q13: 14776.36278 | S13: 1406.339072 | T13: 216.2599429
A14: 491 | B14: Atlantis Charter School | C14: C | D14: Fall River | E14: 1287.8 | F14: 1199.640472 | G14: 634.9844696 | H14: 3470.411555 | I14: 1076.937413 | J14: 29.39431589 | K14: 347.4615624 | L14: 728.9346172 | M14: 1574.829943 | N14: 766.3643423 | O14: 3577.7877 | P14: 17265208 | Q14: 13406.74639 | S14: 46.59108557 | T14: 1441.832583
A15: 427 | B15: Barnstable Community Horace Mann Charter Public School | C15: HM | D15: Barnstable | E15: 287.9666667 | F15: 453.0246556 | G15: 673.9564764 | H15: 6552.890381 | I15: 1181.487441 | J15: 50.64127793 | K15: 106.4706563 | L15: 504.3048964 | M15: 1884.818845 | N15: 867.8712814 | O15: 1518.825095 | P15: 3972296 | Q15: 13794.29101 | S15: 539.5068874 | T15: 44.2516495
A16: 3502 | B16: Baystate Academy Charter Public School | C16: C | D16: Springfield | E16: 488.84 | F16: 1223.984003 | G16: 1082.456918 | H16: 5263.028578 | I16: 722.4673922 | J16: 414.4741633 | K16: 471.2038499 | L16: 418.4694174 | M16: 2911.570862 | N16: 700.1921897 | O16: 2966.082031 | P16: 7906463.65 | Q16: 16173.9294 | S16: 1575.755503 | T16: 329.6288561
A17: 420 | B17: Benjamin Banneker Charter Public School | C17: C | D17: Cambridge | E17: 349.97 | F17: 2857.213475 | G17: 1888.810469 | H17: 4665.059862 | I17: 2580.566906 | J17: 179.478241 | K17: 840.2291625 | L17: 336.6917164 | M17: 3826.550847 | N17: 1005.966226 | O17: 4821.224676 | P17: 8049937 | Q17: 23001.79158 | S17: 1333.760037 | T17: 372.7490928
A18: 447 | B18: Benjamin Franklin Classical Charter Public School | C18: C | D18: Franklin | E18: 457.87 | F18: 1687.241204 | G18: 926.1183524 | H18: 5149.296154 | I18: 1464.188219 | J18: 79.38360233 | K18: 422.6283661 | L18: 280.6078581 | M18: 755.153952 | N18: 715.3440278 | O18: 3783.385961 | P18: 6988629.01 | Q18: 15263.3477 | S18: 740.3848254 | T18: 302.5531264
A19: 3511 | B19: Bentley Academy Charter School | C19: HM | D19: Salem | E19: 334.6395388 | F19: 779.4313875 | G19: 554.1032171 | H19: 5919.166819 | I19: 1652.200861 | J19: 239.879305 | K19: 152.2048177 | L19: 225.1380247 | M19: 1057.343054 | N19: 1097.708063 | O19: 2046.325107 | P19: 4592425.93 | Q19: 13723.50066 | S19: 0 | T19: 0
A20: 414 | B20: Berkshire Arts and Technology Charter Public School | C20: C | D20: Adams | E20: 369.44 | F20: 1826.55871 | G20: 1655.860329 | H20: 4806.502707 | I20: 871.4611033 | J20: 375.5791468 | K20: 469.9414249 | L20: 575.5417118 | M20: 2210.553838 | N20: 1038.8089 | O20: 3383.582882 | P20: 6359684.52 | Q20: 17214.39075 | S20: 0 | T20: 1403.599285
A21: 449 | B21: Boston Collegiate Charter School | C21: C | D21: Boston | E21: 698.71 | F21: 2174.132573 | G21: 1751.263414 | H21: 7069.745445 | I21: 688.0220692 | J21: 140.9437535 | K21: 543.1803896 | L21: 1052.425813 | M21: 1722.027379 | N21: 1039.938215 | O21: 4286.058007 | P21: 14301012.56 | Q21: 20467.73706 | S21: 1484.910564 | T21: 455.7112536
A22: 424 | B22: Boston Day and Evening Academy Charter School | C22: HM | D22: Boston | E22: 387.3604651 | F22: 1100.572563 | G22: 1700.111592 | H22: 7175.063404 | I22: 2161.725224 | J22: 65.63653829 | K22: 432.1809918 | L22: 274.0419056 | M22: 2324.866321 | N22: 1275.861515 | O22: 2712.975832 | P22: 7446244.122 | Q22: 19223.03589 | S22: 0 | T22: 0
A23: 411 | B23: Boston Green Academy Horace Mann Charter School | C23: HM | D23: Boston | E23: 463.6388889 | F23: 1213.237178 | G23: 1366.777576 | H23: 7227.32707 | I23: 1354.772447 | J23: 145.6590498 | K23: 252.0706584 | L23: 538.6851166 | M23: 969.2591886 | N23: 1140.759959 | O23: 2593.891752 | P23: 7790264.61 | Q23: 16802.44 | S23: 0 | T23: 0
A24: 416 | B24: Boston Preparatory Charter Public School | C24: C | D24: Boston | E24: 526.32 | F24: 2278.823244 | G24: 2120.564314 | H24: 6172.191689 | I24: 1469.559052 | J24: 244.49696 | K24: 1094.756859 | L24: 921.2730658 | M24: 1664.151087 | N24: 1610.083219 | O24: 4829.778462 | P24: 11792556.42 | Q24: 22405.67795 | S24: 2208.861529 | T24: 32.02044384
A25: 481 | B25: Boston Renaissance Charter Public School | C25: C | D25: Boston | E25: 945.35 | F25: 1538.403766 | G25: 544.5210768 | H25: 6619.958745 | I25: 3122.109272 | J25: 469.6112551 | K25: 317.7775427 | L25: 477.1534352 | M25: 2279.140001 | N25: 939.794785 | O25: 5409.536151 | P25: 20531117 | Q25: 21718.00603 | S25: 0 | T25: 1538.183741
A26: 417 | B26: Bridge Boston Charter School | C26: C | D26: Boston | E26: 334.42 | F26: 3832.339573 | G26: 1456.115065 | H26: 6606.159919 | I26: 2621.311524 | J26: 104.2850308 | K26: 659.8947431 | L26: 696.2442438 | M26: 2295.592369 | N26: 980.1297769 | O26: 4219.574188 | P26: 7849388 | Q26: 23471.64643 | S26: 404.7903834 | T26: 3699.922253
A27: 428 | B27: Brooke Charter School | C27: C | D27: Boston | E27: 1844.75 | F27: 1156.52606 | G27: 2399.416219 | H27: 6794.4552 | I27: 664.7236482 | J27: 61.04170213 | K27: 1706.135932 | L27: 281.280103 | M27: 2308.841632 | N27: 1475.290473 | O27: 3712.67504 | P27: 37928772.09 | Q27: 20560.38601 | S27: 737.2926359 | T27: 2078.134858
A28: 432 | B28: Cape Cod Lighthouse Charter School | C28: C | D28: Harwich | E28: 242.06 | F28: 1004.052714 | G28: 437.7427084 | H28: 7859.551351 | I28: 1503.52392 | J28: 115.9439395 | K28: 664.1971574 | L28: 417.11146 | M28: 528.5507725 | N28: 517.9914071 | O28: 5157.196563 | P28: 4406910.954 | Q28: 18205.86199 | S28: 0 | T28: 1085.007849
A29: 418 | B29: Christa McAuliffe Charter School | C29: C | D29: Framingham | E29: 393.57 | F29: 2026.996468 | G29: 1474.914247 | H29: 6674.456895 | I29: 506.6595523 | J29: 37.3326219 | K29: 497.1136011 | L29: 299.2402876 | M29: 1879.973067 | N29: 516.3401682 | O29: 4479.734228 | P29: 7238839 | Q29: 18392.76114 | S29: 1129.491577 | T29: 74.1469116
A30: 437 | B30: City On A Hill Charter Public School | C30: C | D30: Boston | E30: 257.82 | F30: 5763.705531 | G30: 4021.060973 | H30: 5651.149678 | I30: 1024.361376 | J30: 360.1461097 | K30: 1272.107051 | L30: 1144.772244 | M30: 2086.785509 | N30: 2425.894733 | O30: 6770.502366 | P30: 7868791.59 | Q30: 30520.48557 | S30: 2338.596695 | T30: 29.10557753
A31: 3504 | B31: City On A Hill Charter Public School II | C31: C | D31: Boston | E31: 243.79 | F31: 2157.659502 | G31: 2367.529431 | H31: 6119.587801 | I31: 844.4080151 | J31: 108.8890849 | K31: 1287.46056 | L31: 1079.997867 | M31: 1480.634932 | N31: 1711.497313 | O31: 4811.59945 | P31: 5355886.86 | Q31: 21969.26396 | S31: 3342.83051 | T31: 8.691742893
A32: 3507 | B32: City On A Hill Charter Public School New Bedford | C32: C | D32: =VLOOKUP(A32, FACTS, 6, FALSE) -> New Bedford | E32: =VLOOKUP(A32, FTE, 2, FALSE) -> 208.33 | F32: 2139.566649 | G32: 3668.787309 | H32: 4833.269332 | I32: 1607.788077 | J32: 327.4149666 | K32: 953.1511544 | L32: 1027.776508 | M32: 2815.36807 | N32: 2089.362598 | O32: 4237.506168 | P32: 4937419.09 | Q32: =SUM(F32:O32) -> 23699.99083 | S32: 1541.226132 | T32: 52.50271204
A33: 438 | B33: Codman Academy Charter Public School | C33: C | D33: Boston | E33: 344.5 | F33: 1731.480435 | G33: 2308.327402 | H33: 6899.374746 | I33: 2327.087199 | J33: 594.8661248 | K33: 1229.04209 | L33: 598.5166328 | M33: 2394.583106 | N33: 935.4438607 | O33: 4791.891118 | P33: 8202756.08 | Q33: 23810.61271 | S33: 1258.765631 | T33: 0
A34: 3503 | B34: Collegiate Charter School of Lowell | C34: C | D34: Lowell | E34: 842.84 | F34: 978.0110104 | G34: 2113.839554 | H34: 2647.634426 | I34: 527.308208 | J34: 36.09763419 | K34: 639.7965687 | L34: 82.17456457 | M34: 1251.79486 | N34: 679.4223459 | O34: 1768.950074 | P34: 9039483.65 | Q34: 10725.02925 | S34: 2786.771617 | T34: 204.2142755
A35: 436 | B35: Community Charter School of Cambridge | C35: C | D35: Cambridge | E35: 330.07 | F35: 1635.707577 | G35: 2592.289514 | H35: 7988.338837 | I35: 674.1509377 | J35: 482.2249826 | K35: 600.7149998 | L35: 717.1266701 | M35: 1407.074257 | N35: 1169.909413 | O35: 5143.042385 | P35: 7397060 | Q35: 22410.57957 | S35: 3950.025752 | T35: 309.4252734
A36: 426 | B36: Community Day Charter Public School - Gateway | C36: C | D36: Lawrence | E36: 359.74 | F36: 1289.709234 | G36: 2050.975705 | H36: 5750.992383 | I36: 542.4528826 | J36: 48.23761606 | K36: 439.9010396 | L36: 398.212598 | M36: 1903.160616 | N36: 707.5637961 | O36: 3688.144215 | P36: 6050593 | Q36: 16819.35009 | S36: 559.287263 | T36: 4.189136599
A37: 440 | B37: Community Day Charter Public School - Prospect | C37: C | D37: Lawrence | E37: 399.97 | F37: 1278.680901 | G37: 1508.603145 | H37: 5897.967348 | I37: 798.0773558 | J37: 45.33089982 | K37: 307.8905918 | L37: 817.693827 | M37: 1731.649874 | N37: 796.3972298 | O37: 4325.446909 | P37: 7002570 | Q37: 17507.73808 | S37: 583.9987999 | T37: 13.61352101
A38: 431 | B38: Community Day Charter Public School - R. Kingman Webster | C38: C | D38: Lawrence | E38: 359.91 | F38: 1339.037537 | G38: 1694.620877 | H38: 5384.679503 | I38: 868.7532994 | J38: 39.6682504 | K38: 440.1211414 | L38: 283.8459615 | M38: 1964.87733 | N38: 493.653969 | O38: 3220.796866 | P38: 5661404 | Q38: 15730.05474 | S38: 1447.167347 | T38: 30.57153177
A39: 439 | B39: Conservatory Lab Charter School | C39: C | D39: =VLOOKUP(A39, FACTS, 6, FALSE) -> Boston | E39: =VLOOKUP(A39, FTE, 2, FALSE) -> 445.48 | F39: =VLOOKUP($A39&100, FE, 12, FALSE)/$E39 -> 2703.365202 | G39: 124.0072282 | H39: 5838.485274 | I39: 1368.345852 | J39: 85.66806591 | K39: 498.762885 | L39: 216.3980201 | M39: 3072.266656 | N39: 806.8963141 | O39: 2538.112755 | P39: 7685558.28 | Q39: 17252.30825 | S39: 1444.678931 | T39: 35.72775433
A40: 407 | B40: Dudley Street Neighborhood Charter School | C40: HM | D40: Boston | E40: 263.7359551 | F40: 4141.981626 | G40: 1179.088039 | H40: 6951.211448 | I40: 862.1087366 | J40: 333.7449381 | K40: 391.2757363 | L40: 383.6730186 | M40: 2031.135231 | N40: 622.6369096 | O40: 3584.104791 | P40: 5401565.671 | Q40: 20480.96047 | S40: 0 | T40: 0
A41: 452 | B41: Edward M. Kennedy Academy for Health Careers: A HMCPS | C41: =VLOOKUP(A41, TYPE, 3, FALSE) -> HM | D41: Boston | E41: 381.188144 | F41: 1681.746954 | G41: 1923.118574 | H41: 8952.437408 | I41: 1104.91894 | J41: 836.274698 | K41: 436.6006724 | L41: 2111.988562 | M41: 3047.87811 | N41: 204.413493 | O41: 2842.42576 | P41: 8821381 | Q41: 23141.80317 | S41: 774.5781306 | T41: 0
A42: 410 | B42: Excel Academy Charter School | C42: C | D42: Boston/Chelsea | E42: 1295.43 | F42: 1497.646611 | G42: 2343.453078 | H42: 4953.928511 | I42: 774.8746443 | J42: 444.1937087 | K42: 1098.948002 | L42: 909.4419998 | M42: 1467.388041 | N42: 840.2314289 | O42: 3523.192299 | P42: 23127698.25 | Q42: 17853.29832 | S42: 342.4986298 | T42: 1768.051535
A43: 413 | B43: Four Rivers Charter Public School | C43: C | D43: Greenfield | E43: 218.56 | F43: 1728.870791 | G43: 1270.786054 | H43: 6628.715227 | I43: 675.9105051 | J43: 206.3735359 | K43: 811.1438049 | L43: 493.818631 | M43: 710.1665447 | N43: 841.5995608 | O43: 4655.371523 | P43: 3939053.59 | Q43: =SUM(F43:O43) -> 18022.75618 | S43: 2193.548682 | T43: 49.28166179
A44: 446 | B44: Foxborough Regional Charter School | C44: C | D44: Foxborough | E44: 1619.27 | F44: 1058.514361 | G44: 664.9851723 | H44: 4322.200763 | I44: 571.6796643 | J44: 101.3388132 | K44: 373.4138717 | L44: 736.0816294 | M44: 1584.109994 | N44: 1007.990026 | O44: 2974.331186 | P44: 21689547.59 | Q44: 13394.64548 | S44: 0 | T44: 2229.876426
A45: 478 | B45: Francis W. Parker Charter Essential School | C45: C | D45: Devens | E45: 394.62 | F45: 1994.963236 | G45: 1497.062133 | H45: 5866.851477 | I45: 146.5961938 | J45: 516.8921494 | K45: 720.749592 | L45: 657.6697329 | M45: 1187.133774 | N45: 829.9231159 | O45: 1921.250469 | P45: 6053112.435 | Q45: 15339.09187 | S45: 558.2310831 | T45: 58.43456997
A46: 496 | B46: Global Learning Charter Public School | C46: C | D46: New Bedford | E46: 502.84 | F46: 1573.359319 | G46: 1241.33979 | H46: 4951.388116 | I46: 552.5694058 | J46: 126.0898099 | K46: 800.6701933 | L46: 561.6836369 | M46: 1688.755867 | N46: 614.7880041 | O46: 3587.260361 | P46: 7893534.3 | Q46: 15697.9045 | S46: 480.8984965 | T46: 407.4755389
A47: 499 | B47: Hampden Charter School of Science East | C47: C | D47: Chicopee | E47: 498.14 | F47: 1040.055005 | G47: 925.7297145 | H47: 4161.408439 | I47: 667.3826635 | J47: 63.42393705 | K47: 436.2006665 | L47: 552.0395873 | M47: 2280.559682 | N47: 1031.968924 | O47: 3428.664632 | P47: 7266584 | Q47: 14587.43325 | S47: 1264.710724 | T47: 391.996226
A48: 3516 | B48: Hampden Charter School of Science-West | C48: C | D48: Westfield | E48: =VLOOKUP(A48, FTE, 2, FALSE) -> 212.06 | F48: 1840.064133 | G48: 1488.913515 | H48: 4722.210695 | I48: 304.5836084 | J48: 54.86183156 | K48: 2540.474394 | L48: 557.3847024 | M48: 2799.81609 | N48: 1720.715835 | O48: 1636.805621 | P48: 3746216 | Q48: 17665.83043 | S48: 922.1729699 | T48: 1261.515609
A49: 419 | B49: Helen Y Davis Leadership Academy Charter Public School | C49: C | D49: Boston | E49: 188.45 | F49: 2084.446803 | G49: 1033.515521 | H49: 8090.474927 | I49: 929.5940568 | J49: 58.19580791 | K49: 427.8429292 | L49: 531.8227647 | M49: 2870.729637 | N49: 982.6001592 | O49: 4711.334572 | P49: 4093239 | Q49: 21720.55718 | S49: 1839.676307 | T49: 80.91801539
A50: 455 | B50: Hill View Montessori Charter Public School | C50: C | D50: Haverhill | E50: 305.29 | F50: 1738.750041 | G50: 340.8889908 | H50: 3977.196764 | I50: 1636.983491 | J50: 171.6204265 | K50: 266.33365 | L50: 538.2691867 | M50: 1178.305316 | N50: 1052.517279 | O50: 2503.642438 | P50: 4092262.12 | Q50: 13404.50758 | S50: 0 | T50: 493.7043467
A51: 450 | B51: Hilltown Cooperative Charter Public School | C51: C | D51: East Hampton | E51: 218.32 | F51: 671.6413521 | G51: 1581.482778 | H51: 5845.356312 | I51: 1950.733007 | J51: 57.91961341 | K51: 386.8595639 | L51: 463.4164987 | M51: 655.8151796 | N51: 677.3074386 | O51: 4237.511405 | P51: 3608402.38 | Q51: 16528.04315 | S51: 0 | T51: 902.6883932
A52: 453 | B52: Holyoke Community Charter School | C52: C | D52: Holyoke | E52: 702.29 | F52: 650.1578265 | G52: 2915.752438 | H52: 3920.601575 | I52: 842.5470675 | J52: 140.323627 | K52: 637.5948113 | L52: 307.0787282 | M52: 2374.649632 | N52: 1169.246907 | O52: 3019.522647 | P52: 11220821.1 | Q52: 15977.47526 | S52: 0 | T52: 953.947244
A53: 435 | B53: Innovation Academy Charter School | C53: C | D53: Tyngsborough | E53: 793.69 | F53: 1315.635828 | G53: 923.5387242 | H53: 5074.880621 | I53: 1027.893762 | J53: 70.90929708 | K53: 165.6515768 | L53: 402.2048911 | M53: 1529.711852 | N53: 1095.251295 | O53: 3874.69415 | P53: 12286616.45 | Q53: 15480.372 | S53: 0 | T53: 1075.763837
A54: 463 | B54: KIPP Academy Boston Charter School | C54: C | D54: Boston | E54: 592.05 | F54: 682.0526983 | G54: 1747.395186 | H54: 4972.278912 | I54: 1271.117524 | J54: 290.4711426 | K54: 762.8171607 | L54: 852.3469639 | M54: 2160.350426 | N54: 1251.2063 | O54: 3774.355494 | P54: 10517408.17 | Q54: 17764.39181 | S54: 64.35267292 | T54: 2703.171117
A55: 429 | B55: KIPP Academy Lynn Charter School | C55: C | D55: Lynn | E55: 1452.23 | F55: 1965.260069 | G55: 2811.620935 | H55: 4352.913512 | I55: 1031.421152 | J55: 297.4007974 | K55: 886.7685146 | L55: 737.5297301 | M55: 1686.376318 | N55: 944.5950366 | O55: 3618.804329 | P55: 26623282.97 | Q55: 18332.69039 | S55: 738.7159403 | T55: 599.0490487
A56: 454 | B56: Lawrence Family Development Charter School | C56: C | D56: Lawrence | E56: 759.36 | F56: 1344.777181 | G56: 889.172461 | H56: 4996.699194 | I56: 1288.273019 | J56: 109.8135272 | K56: 750.8652023 | L56: 302.2914033 | M56: 1143.718394 | N56: 1246.377212 | O56: 2767.056469 | P56: 11268176.5 | Q56: 14839.04406 | S56: 1529.294406 | T56: 140.0969237
A57: 3514 | B57: Libertas Academy Charter School | C57: C | D57: Springfield | E57: 167.71 | F57: 2888.080615 | G57: 456.3472661 | H57: 4848.029336 | I57: 2466.936975 | J57: 149.6631089 | K57: 1707.363902 | L57: 78.6059269 | M57: 3168.749627 | N57: 472.6253652 | O57: 2847.713315 | P57: 3200597 | Q57: 19084.11544 | S57: 1059.072208 | T57: 10.2557987
A58: 456 | B58: Lowell Community Charter Public School | C58: C | D58: Lowell | E58: 810.26 | F58: 1623.512206 | G58: 887.0263866 | H58: 5791.212697 | I58: 547.2305186 | J58: 68.80754326 | K58: 464.2374053 | L58: 445.4508429 | M58: 1739.739096 | N58: 1161.213684 | O58: 3811.701182 | P58: 13401807 | Q58: 16540.13156 | S58: 0 | T58: 760.8273887
A59: 458 | B59: Lowell Middlesex Academy Charter School | C59: C | D59: Lowell | E59: 89.66 | F59: 3152.070935 | G59: 2755.812291 | H59: 9246.759424 | I59: 0 | J59: 57.71804595 | K59: 719.6117555 | L59: 188.6502342 | M59: 1080.96576 | N59: 1115.759536 | O59: 4387.280616 | P59: 2035697 | Q59: 22704.6286 | S59: 0 | T59: 880.2587553
A60: 3517 | B60: Map Academy Charter School | C60: C | D60: Plymouth | E60: 125.68 | F60: 4925.60471 | G60: 1516.852323 | H60: 4396.101209 | I60: 2461.107575 | J60: 142.7593889 | K60: 244.3586887 | L60: 52.71323997 | M60: 1123.122215 | N60: 597.8914704 | O60: 1846.037556 | P60: 2175087 | Q60: =SUM(F60:O60) -> 17306.54838 | S60: 1765.062062 | T60: 379.9809039
A61: 464 | B61: Marblehead Community Charter Public School | C61: C | D61: Marblehead | E61: 227.35 | F61: 2211.418518 | G61: 677.8579283 | H61: 6331.554871 | I61: 704.3622168 | J61: 72.06949637 | K61: 596.7143171 | L61: 244.1301957 | M61: 1047.648999 | N61: 860.3166923 | O61: 4639.217066 | P61: 3952545.75 | Q61: 17385.2903 | S61: 0 | T61: 984.1433912
A62: 466 | B62: Martha's Vineyard Public Charter School | C62: C | D62: West Tisbury | E62: 178.18 | F62: 1669.732854 | G62: 1996.885172 | H62: 9038.399371 | I62: 4088.163655 | J62: 86.16006286 | K62: 566.5619037 | L62: 767.5047705 | M62: 3213.351667 | N62: 1072.763498 | O62: 8547.940285 | P62: 5532037 | Q62: 31047.46324 | S62: 1279.604894 | T62: 87.21517567
A63: 492 | B63: Martin Luther King, Jr. Charter School of Excellence | C63: C | D63: Springfield | E63: 369.66 | F63: 1005.792674 | G63: 881.6711302 | H63: 6786.949575 | I63: 742.7014013 | J63: 70.45179354 | K63: 632.9058594 | L63: 318.4549045 | M63: 2455.543391 | N63: 1174.054807 | O63: 4194.0534 | P63: 6750944.93 | Q63: 18262.57894 | S63: 945.709571 | T63: 82.1778391
A64: 469 | B64: Match Charter Public School | C64: C | D64: =VLOOKUP(A64, FACTS, 6, FALSE) -> Boston | E64: =VLOOKUP(A64, FTE, 2, FALSE) -> 1220.28 | F64: 1513.519848 | G64: 2913.369063 | H64: 6062.156226 | I64: 1266.347887 | J64: 244.9962304 | K64: 866.2511883 | L64: 887.1816304 | M64: 2157.458124 | N64: 1504.848068 | O64: 4236.123677 | P64: 26421810 | Q64: =SUM(F64:O64) -> 21652.25194 | S64: 0 | T64: 2241.742059
A65: 470 | B65: Mystic Valley Regional Charter School | C65: C | D65: Malden | E65: 1572.13 | F65: 1249.942435 | G65: 765.535929 | H65: 3961.442756 | I65: 757.0080082 | J65: 93.75496937 | K65: 708.2194221 | L65: 308.6303296 | M65: 1320.741923 | N65: 1644.292139 | O65: 2508.68376 | P65: 20938023 | Q65: 13318.25167 | S65: 195.8444912 | T65: 646.0636207
A66: 444 | B66: Neighborhood House Charter School | C66: C | D66: =VLOOKUP(A66, FACTS, 6, FALSE) -> Boston | E66: =VLOOKUP(A66, FTE, 2, FALSE) -> 642.11 | F66: =VLOOKUP($A66&100, FE, 12, FALSE)/$E66 -> 3367.189422 | G66: =VLOOKUP($A66&210, FE, 12, FALSE)/$E66 -> 1365.161732 | H66: =VLOOKUP($A66&220, FE, 12, FALSE)/$E66 -> 5844.032954 | I66: =VLOOKUP($A66&230, FE, 12, FALSE)/$E66 -> 1187.064522 | J66: =VLOOKUP($A66&240, FE, 12, FALSE)/$E66 -> 372.2275 | K66: =VLOOKUP($A66&260, FE, 12, FALSE)/$E66 -> 614.143994 | L66: =VLOOKUP($A66&250, FE, 12, FALSE)/$E66 -> 965.172634 | M66: =VLOOKUP($A66&300, FE, 12, FALSE)/$E66 -> 1782.882995 | N66: =VLOOKUP($A66&400, FE, 12, FALSE)/$E66 -> 2234.162371 | O66: =VLOOKUP($A66&500, FE, 12, FALSE)/$E66 -> 3963.559203 | P66: =VLOOKUP($A66&800,FE,12,FALSE)-VLOOKUP($A66&700,FE,12,FALSE)-VLOOKUP($A66&600,FE,12,FALSE) -> 13930960 | Q66: 21695.59733 | S66: 960.1672611 | T66: 253.7010793
A67: 3513 | B67: New Heights Charter School of Brockton | C67: C | D67: Brockton | E67: 542.78 | F67: 1397.864697 | G67: 1405.805299 | H67: 3614.632632 | I67: 448.4118796 | J67: 227.8418512 | K67: 597.4225285 | L67: 663.0715944 | M67: 2089.279266 | N67: 718.9542724 | O67: 3038.894211 | P67: 7708658.3 | Q67: =SUM(F67:O67) -> 14202.17823 | S67: 953.4599654 | T67: 1345.458565
A68: 3515 | B68: Old Sturbridge Academy | C68: C | D68: Sturbridge | E68: 199.4 | F68: 1661.836058 | G68: 1032.403862 | H68: 4305.4334 | I68: 1297.394634 | J68: 0 | K68: 618.4681043 | L68: 399.0902708 | M68: 2397.605416 | N68: 652.3148445 | O68: 2034.880893 | P68: 2871245.84 | Q68: 14399.42748 | S68: =VLOOKUP($A68&740, FE, 12, FALSE)/$E68 -> 1624.633902 | T68: =(VLOOKUP($A68&700, FE, 12, FALSE)-VLOOKUP($A68&740, FE, 12, FALSE)-VLOOKUP($A68&725, FE, 12, FALSE))/$E68 -> 6.746940822
A69: 3501 | B69: Paulo Freire Social Justice Charter School | C69: C | D69: Holyoke | E69: 284.66 | F69: 2583.37666 | G69: 965.5097309 | H69: 4651.967259 | I69: 1114.016722 | J69: 256.6676035 | K69: 489.5629874 | L69: 506.5060072 | M69: 1585.393101 | N69: 417.1397457 | O69: 4057.679337 | P69: 4733275 | Q69: 16627.81915 | S69: 2634.209232 | T69: 251.320874
A70: 493 | B70: Phoenix Academy Charter Public High School, Chelsea | C70: C | D70: Chelsea | E70: 195.37 | F70: 5264.257563 | G70: 4536.484619 | H70: 3501.090239 | I70: 2703.188821 | J70: 657.3527154 | K70: 604.9700568 | L70: 198.0703281 | M70: 1444.756104 | N70: 1008.854993 | O70: 4241.137329 | P70: 4720171 | Q70: 24160.16277 | S70: 2044.981318 | T70: 301.9143164
A71: 3518 | B71: Phoenix Academy Charter Public High School, Lawrence | C71: C | D71: Lawrence | E71: 128.26 | F71: 2324.879152 | G71: 2561.835334 | H71: 4828.216123 | I71: 1629.221893 | J71: 1154.420708 | K71: 463.675347 | L71: 326.2591611 | M71: 394.932169 | N71: 516.8953688 | O71: 1356.82208 | P71: 1995361 | Q71: 15557.15734 | S71: 2626.500858 | T71: 129.9703727
A72: 3508 | B72: Phoenix Academy Public Charter High School, Springfield | C72: C | D72: Springfield | E72: 188.22 | F72: 2082.562958 | G72: 2425.863351 | H72: 3973.637233 | I72: 1402.51833 | J72: 226.3521411 | K72: 389.113803 | L72: 554.6753799 | M72: 868.5261928 | N72: 877.4306662 | O72: 2909.26044 | P72: 2956925 | Q72: 15709.9405 | S72: 2246.934438 | T72: 493.4225906
A73: 494 | B73: Pioneer Charter School of Science | C73: =VLOOKUP(A73, TYPE, 3, FALSE) -> C | D73: Everett | E73: 784.01 | F73: 1701.122881 | G73: 500.2644482 | H73: 4866.753906 | I73: 559.7393273 | J73: 52.6267267 | K73: 858.1686968 | L73: 283.6060765 | M73: 1364.052793 | N73: 1080.359485 | O73: 3177.332266 | P73: 11324261.3 | Q73: 14444.02661 | S73: 1874.018189 | T73: 0
A74: 3506 | B74: Pioneer Charter School of Science II | C74: C | D74: Saugus | E74: 360.21 | F74: 1911.508509 | G74: 864.1146276 | H74: 4989.220732 | I74: 451.5123123 | J74: 128.7220233 | K74: 837.5783571 | L74: 354.5431831 | M74: 1390.633408 | N74: 941.7877905 | O74: 3389.109381 | P74: 5496347.25 | Q74: 15258.73032 | S74: 1997.984509 | T74: 0
A75: 497 | B75: Pioneer Valley Chinese Immersion Charter School | C75: C | D75: Hadley | E75: 517.77 | F75: 1574.790594 | G75: 928.3343956 | H75: 6531.993974 | I75: 982.0969156 | J75: 22.52200784 | K75: 561.764181 | L75: 519.0038048 | M75: 977.918149 | N75: 672.9054793 | O75: 4190.16996 | P75: 8782155.576 | Q75: 16961.49946 | S75: 1406.557661 | T75: 126.3548294
A76: 479 | B76: Pioneer Valley Performing Arts Charter Public School | C76: C | D76: South Hadley | E76: 392.28 | F76: 1923.829176 | G76: 1110.32176 | H76: 5900.31373 | I76: 957.4975528 | J76: 140.0527174 | K76: 282.539742 | L76: 719.2869379 | M76: 1126.359463 | N76: 989.7327419 | O76: 4819.94741 | P76: 7049225.009 | Q76: 17969.88123 | S76: 766.611502 | T76: 270.206944
A77: 487 | B77: Prospect Hill Academy Charter School | C77: C | D77: Somerville (K-6); Cambridge (7-12) | E77: 1118.22 | F77: 2373.133641 | G77: 2128.328057 | H77: 6390.049364 | I77: 1664.657223 | J77: 141.6617481 | K77: 1017.369569 | L77: 511.608628 | M77: 667.628016 | N77: 986.322906 | O77: 4998.495824 | P77: 23347600.5 | Q77: 20879.25498 | S77: 1551.069557 | T77: 1239.413532
A78: 483 | B78: Rising Tide Charter Public School | C78: C | D78: Plymouth | E78: 654.66 | F78: 1115.039288 | G78: 1232.557755 | H78: 5082.924281 | I78: 763.4996334 | J78: 45.20453365 | K78: 352.355971 | L78: 497.7092384 | M78: 1716.910243 | N78: 945.7332508 | O78: 4169.314056 | P78: 10423004.38 | Q78: 15921.24825 | S78: 0 | T78: 1753.263297
A79: 482 | B79: River Valley Charter School | C79: C | D79: Newburyport | E79: 287.93 | F79: 1051.175633 | G79: 1668.242281 | H79: 5236.918696 | I79: 2163.286215 | J79: 201.986594 | K79: 791.0360157 | L79: 310.2872226 | M79: 809.4397944 | N79: 628.1075261 | O79: 3566.70024 | P79: 4729878 | Q79: 16427.18022 | S79: 0 | T79: 1192.279373
A80: 484 | B80: Roxbury Preparatory Charter School | C80: C | D80: Boston | E80: 1509.91 | F80: 2313.267016 | G80: 2054.916518 | H80: 4462.425575 | I80: 548.1889649 | J80: 677.6754906 | K80: 1139.616639 | L80: 296.5050897 | M80: 1634.476227 | N80: 1267.634495 | O80: 3588.69469 | P80: 27153316.56 | Q80: 17983.40071 | S80: 1383.244697 | T80: 1216.072481
A81: 441 | B81: Sabis International Charter School | C81: C | D81: =VLOOKUP(A81, FACTS, 6, FALSE) -> Springfield | E81: =VLOOKUP(A81, FTE, 2, FALSE) -> 1572.05 | F81: 1228.629395 | G81: 1038.429407 | H81: 3323.843408 | I81: 870.5545752 | J81: 126.0906714 | K81: 622.5187812 | L81: 642.212964 | M81: 2449.304278 | N81: 815.1979263 | O81: 2755.986928 | P81: 21808685.46 | Q81: =SUM(F81:O81) -> 13872.76833 | S81: 0 | T81: 1740.558774
A82: 485 | B82: Salem Academy Charter School | C82: C | D82: Salem | E82: 486.61 | F82: 1975.494708 | G82: 1034.071433 | H82: 5802.351082 | I82: 1125.713323 | J82: 54.85294178 | K82: 249.235959 | L82: 837.0767761 | M82: 1031.476829 | N82: 937.9153121 | O82: 4018.644109 | P82: 8304891.35 | Q82: 17066.83247 | S82: 2293.352747 | T82: -7.663073667e-14
A83: 486 | B83: Seven Hills Charter Public School | C83: C | D83: Worcester | E83: 665.64 | F83: 1203.156361 | G83: 1086.710534 | H83: 4470.441981 | I83: 1365.195902 | J83: 213.6845742 | K83: 483.4024398 | L83: 915.249985 | M83: 2259.302326 | N83: 853.0572081 | O83: 2937.385073 | P83: 10508849 | Q83: 15787.58638 | S83: 1222.582777 | T83: 0
A84: 474 | B84: Sizer School, A North Central Charter Essential School | C84: C | D84: Fitchburg | E84: 364.05 | F84: =VLOOKUP($A84&100, FE, 12, FALSE)/$E84 -> 1815.040379 | G84: 921.110809 | H84: 5597.262519 | I84: 806.8709793 | J84: 49.92215355 | K84: 257.4977613 | L84: 1072.816316 | M84: 1624.791595 | N84: 956.9089411 | O84: 3837.959621 | P84: 6167072.92 | Q84: 16940.18107 | S84: 0.002746875429 | T84: 35.48748798
A85: 488 | B85: South Shore Charter Public School | C85: C | D85: Norwell | E85: 946.28 | F85: 1095.389314 | G85: 971.1232405 | H85: 6259.099844 | I85: 1142.021389 | J85: 77.98431754 | K85: 758.3933931 | L85: 503.1681955 | M85: 537.2669823 | N85: 829.5071226 | O85: 3845.151541 | P85: 15158559 | Q85: =SUM(F85:O85) -> 16019.10534 | S85: 1424.073213 | T85: 200.9923067
A86: 3510 | B86: Springfield Preparatory Charter School | C86: C | D86: Springfield | E86: 269.72 | F86: 1575.036074 | G86: 1120.600845 | H86: 5563.89059 | I86: 317.0824188 | J86: 222.3635993 | K86: 731.5323901 | L86: 423.8443571 | M86: 2588.342837 | N86: 808.3547382 | O86: 2556.538002 | P86: 4290594.056 | Q86: 15907.58585 | S86: 1592.764089 | T86: 169.5133472
A87: 489 | B87: Sturgis Charter Public School | C87: =VLOOKUP(A87, TYPE, 3, FALSE) -> C | D87: =VLOOKUP(A87, FACTS, 6, FALSE) -> Hyannis | E87: =VLOOKUP(A87, FTE, 2, FALSE) -> 838.2 | F87: 1064.980911 | G87: 963.870198 | H87: 7560.950847 | I87: 711.9160105 | J87: 95.94846099 | K87: 567.3920305 | L87: 1114.088523 | M87: 1021.66786 | N87: 730.4617037 | O87: 1521.902887 | P87: 12869035 | Q87: =SUM(F87:O87) -> 15353.17943 | S87: 1869.72083 | T87: 60.95084705
A88: 480 | B88: UP Academy Charter School of Boston | C88: HM | D88: Boston | E88: 504.1945946 | F88: 1415.286891 | G88: 1328.40972 | H88: 5895.412271 | I88: 1129.256454 | J88: 65.80197478 | K88: 584.2625113 | L88: 832.8728719 | M88: 2120.703021 | N88: 1366.968245 | O88: 2063.467183 | P88: 8471700 | Q88: 16802.44114 | S88: 0 | T88: 16.15249367
A89: 3505 | B89: UP Academy Charter School of Dorchester | C89: =VLOOKUP(A89, TYPE, 3, FALSE) -> HM | D89: =VLOOKUP(A89, FACTS, 6, FALSE) -> Boston | E89: =VLOOKUP(A89, FTE, 2, FALSE) -> 722.7745377 | F89: 1120.408233 | G89: 1463.298547 | H89: 5714.761909 | I89: 977.8701437 | J89: 93.24340646 | K89: 414.7100574 | L89: 544.2628697 | M89: 1728.833031 | N89: 1290.999034 | O89: 2059.906323 | P89: 11136722.25 | Q89: =SUM(F89:O89) -> 15408.29355 | S89: 0 | T89: 60.6008582
A90: 498 | B90: Veritas Preparatory Charter School | C90: C | D90: Springfield | E90: 348.06 | F90: 1814.947768 | G90: 1490.86577 | H90: 5922.52988 | I90: 224.7277481 | J90: 267.476958 | K90: 902.5281848 | L90: 1088.445211 | M90: 2306.797305 | N90: 1079.043153 | O90: 3796.682698 | P90: 6576261.19 | Q90: 18894.04468 | S90: 936.4736252 | T90: 87.84117681
A91: C | B91: Commonwealth Charter Statewide Totals | C91: C | E91: =SUMIF(C9:C90,"C",E9:E90) -> 43371.12 | F91: =VLOOKUP($A91&100, FE, 12, FALSE)/$E91 -> 1638.257168 | G91: =VLOOKUP($A91&210, FE, 12, FALSE)/$E91 -> 1468.742313 | H91: 5235.604833 | I91: 1001.71489 | J91: 198.1149089 | K91: 706.1793256 | L91: 559.2111893 | M91: 1750.018503 | N91: 1059.496038 | O91: 3619.313788 | P91: =VLOOKUP($A91&800,FE,12,FALSE)-VLOOKUP($A91&700,FE,12,FALSE)-VLOOKUP($A91&600,FE,12,FALSE) -> 747572943.8 | Q91: =SUM(F91:O91) -> 17236.65296 | S91: 876.1722623 | T91: 902.1658228
A92: HM | B92: Horace Mann Charter Statewide Totals | C92: HM | E92: =SUMIF(C9:C90,"HM",E9:E90) -> 3345.498791 | F92: 1386.023762 | G92: 1328.112553 | H92: 6679.653836 | I92: 1280.319855 | J92: 207.7967572 | K92: 367.6036869 | L92: 686.3054842 | M92: 1872.020772 | N92: 1047.623897 | O92: 2371.447308 | P92: =VLOOKUP($A92&800,FE,12,FALSE)-VLOOKUP($A92&700,FE,12,FALSE)-VLOOKUP($A92&600,FE,12,FALSE) -> 57632599.58 | Q92: =SUM(F92:O92) -> 17226.90791 | S92: 134.6944142 | T92: =(VLOOKUP($A92&700, FE, 12, FALSE)-VLOOKUP($A92&740, FE, 12, FALSE)-VLOOKUP($A92&725, FE, 12, FALSE))/$E92 -> 19.33575868
A93: ALL | B93: All Charter Schools Statewide Totals | C93: ALL | E93: =SUM(E91:E92) -> 46716.61879 | F93: 1620.194077 | G93: 1458.671449 | H93: 5339.016944 | I93: 1021.666517 | J93: 198.8082513 | K93: 681.933042 | L93: 568.3127429 | M93: 1758.755403 | N93: 1058.645843 | O93: 3529.950818 | P93: =VLOOKUP($A93&800,FE,12,FALSE)-VLOOKUP($A93&700,FE,12,FALSE)-VLOOKUP($A93&600,FE,12,FALSE) -> 805205543.4 | Q93: 17235.95509 | S93: 823.0731017 | T93: 838.9440617
F94: ----------------------------- Operating Expenditures Per Pupil In The Charter School -------------------------------------------
A95: Notes: | B95: 1. These figures do not include facilities lease costs -- see data presented at right.
B96: 2. The majority of charter schools lease their facilities. In many cases, Horace Mann charter schools are provided their facilities in kind by their host districts; some report a monetary figure for these in-kind revenues and expenditures, some do not.
B97: 3. Capital facilities costs include facilities-related long-term interest; depreciation of equipment, buildings, and grounds; bad debt or loss on disposal of assets; and other costs related to capital facilities acquisition.
B98: Charter schools that report significant costs in this category either own their buildings or have invested heavily in leasehold improvements.

Sheet 5. AVGTCHSAL
A1: Massachusetts Department of Elementary and Secondary Education
A2: FY19 Average Teacher Salaries
A3: =Index!B3 -> Last Updated: May 2020
A5: Return to Index
A6: Average teacher salaries are calculated from data submitted on the Charter School End of Year Financial Report. The calculation includes professional teachers paid from all funding sources, including tuition revenue, federal and state grants, and private grants/contributions. Beginning in FY08, the Educator Personnel Management Information System (EPIMS) was the source for the total number of theachers, which is shown in full-time equivalents (e.g., a teacher who worked half-time would count as .5 FTE's).
A8: LEA | B8: Charter School | C8: Type | D8: Location | E8: Total Salaries | F8: Total Teachers | G8: Average Salaries
A9: 445 | B9: Abby Kelley Foster Charter Public School | C9: =VLOOKUP(A9, TYPE, 3, FALSE) -> C | D9: =VLOOKUP(A9, FACTS, 6, FALSE) -> Worcester | E9: =VLOOKUP($A9&220, FE, 12, FALSE) -> 6621946.4 | F9: =VLOOKUP(A9, TEACHEREPIMS, 2, FALSE) -> 116.599 | G9: =E9/F9 -> 56792.48021
A10: 412 | B10: Academy of the Pacific Rim Charter Public School | C10: C | D10: Boston | E10: 2755969.326 | F10: 48.092 | G10: =E10/F10 -> 57306.19076
A11: 430 | B11: Advanced Math and Science Academy Charter School | C11: C | D11: Marlborough | E11: 5359189.55 | F11: 79.23 | G11: 67640.91316
A12: 409 | B12: Alma del Mar Charter School | C12: C | D12: New Bedford | E12: 2029323 | F12: 34.48 | G12: 58855.07541
A13: 3509 | B13: Argosy Collegiate Charter School | C13: C | D13: Fall River | E13: 2080163 | F13: 38.696 | G13: 53756.53814
A14: 491 | B14: Atlantis Charter School | C14: C | D14: Fall River | E14: 4469196 | F14: 93.594 | G14: 47750.88147
A15: 427 | B15: Barnstable Community Horace Mann Charter Public School | C15: HM | D15: Barnstable | E15: 1887014 | F15: 23.4 | G15: 80641.62393
A16: 3502 | B16: Baystate Academy Charter Public School | C16: C | D16: Springfield | E16: 2572778.89 | F16: 54.862 | G16: 46895.46298
A17: 420 | B17: Benjamin Banneker Charter Public School | C17: C | D17: Cambridge | E17: 1632631 | F17: 18.8 | G17: 86842.07447
A18: 447 | B18: Benjamin Franklin Classical Charter Public School | C18: C | D18: Franklin | E18: 2357708.23 | F18: 29.996 | G18: 78600.75443
A19: 3511 | B19: Bentley Academy Charter School | C19: HM | D19: Salem | E19: 1980787.254 | F19: 28.386 | G19: 69780.42889
A20: 414 | B20: Berkshire Arts and Technology Charter Public School | C20: C | D20: Adams | E20: 1775714.36 | F20: 35.628 | G20: 49840.41653
A21: 449 | B21: Boston Collegiate Charter School | C21: C | D21: Boston | E21: 4939701.84 | F21: 60.781 | G21: 81270.49308
A22: 424 | B22: Boston Day and Evening Academy Charter School | C22: HM | D22: Boston | E22: 2779335.897 | F22: 21.845 | G22: 127229.842
A23: 411 | B23: Boston Green Academy Horace Mann Charter School | C23: HM | D23: Boston | E23: 3350869.892 | F23: 41.91 | G23: 79953.94637
A24: 416 | B24: Boston Preparatory Charter Public School | C24: C | D24: Boston | E24: 3248547.93 | F24: 51.579 | G24: 62981.98744
A25: 481 | B25: Boston Renaissance Charter Public School | C25: C | D25: Boston | E25: 6258178 | F25: 80.002 | G25: 78225.26937
A26: 417 | B26: Bridge Boston Charter School | C26: C | D26: Boston | E26: 2209232 | F26: 34.76 | G26: 63556.73188
A27: 428 | B27: Brooke Charter School | C27: C | D27: Boston | E27: 12534071.23 | F27: =VLOOKUP(A27, TEACHEREPIMS, 4, FALSE) -> 158 | G27: 79329.56475
A28: 432 | B28: Cape Cod Lighthouse Charter School | C28: C | D28: Harwich | E28: 1902483 | F28: =VLOOKUP(A28, TEACHEREPIMS, 4, FALSE) -> 21.455 | G28: 88673.17642
A29: 418 | B29: Christa McAuliffe Charter School | C29: C | D29: Framingham | E29: 2626866 | F29: 38.75 | G29: 67790.09032
A30: 437 | B30: City On A Hill Charter Public School | C30: C | D30: Boston | E30: 1456979.41 | F30: 22.79 | G30: 63930.64546
A31: 3504 | B31: City On A Hill Charter Public School II | C31: C | D31: Boston | E31: 1491894.31 | F31: 25.026 | G31: 59613.77407
A32: 3507 | B32: City On A Hill Charter Public School New Bedford | C32: C | D32: New Bedford | E32: 1006915 | F32: 17.721 | G32: 56820.43903
A33: 438 | B33: Codman Academy Charter Public School | C33: C | D33: Boston | E33: 2376834.6 | F33: 40.398 | G33: 58835.45225
A34: 3503 | B34: Collegiate Charter School of Lowell | C34: C | D34: Lowell | E34: 2231532.2 | F34: 40 | G34: 55788.305
A35: 436 | B35: Community Charter School of Cambridge | C35: C | D35: Cambridge | E35: 2636711 | F35: 35.752 | G35: 73750.02797
A36: 426 | B36: Community Day Charter Public School - Gateway | C36: C | D36: Lawrence | E36: 2068862 | F36: 40 | G36: 51721.55
A37: 440 | B37: Community Day Charter Public School - Prospect | C37: C | D37: Lawrence | E37: 2359010 | F37: 42.4 | G37: 55637.0283
A38: 431 | B38: Community Day Charter Public School - R. Kingman Webster | C38: C | D38: Lawrence | E38: =VLOOKUP($A38&220, FE, 12, FALSE) -> 1938000 | F38: =VLOOKUP(A38, TEACHEREPIMS, 2, FALSE) -> 39 | G38: 49692.30769
A39: 439 | B39: Conservatory Lab Charter School | C39: C | D39: Boston | E39: 2600928.42 | F39: 25 | G39: 104037.1368
A40: 407 | B40: Dudley Street Neighborhood Charter School | C40: HM | D40: Boston | E40: 1833284.39 | F40: 22 | G40: 83331.10864
A41: 452 | B41: Edward M. Kennedy Academy for Health Careers: A HMCPS | C41: HM | D41: Boston | E41: 3412563 | F41: =VLOOKUP(A41, TEACHEREPIMS, 4, FALSE) -> 39.703 | G41: 85952.27061
A42: 410 | B42: Excel Academy Charter School | C42: C | D42: Boston/Chelsea | E42: 6417467.611 | F42: =VLOOKUP(A42, TEACHEREPIMS, 2, FALSE) -> 105.66 | G42: 60736.96395
A43: 413 | B43: Four Rivers Charter Public School | C43: C | D43: Greenfield | E43: 1448772 | F43: 20.49 | G43: 70706.29575
A44: 446 | B44: Foxborough Regional Charter School | C44: C | D44: Foxborough | E44: 6998810.03 | F44: 130.379 | G44: 53680.50092
A45: 478 | B45: Francis W. Parker Charter Essential School | C45: C | D45: Devens | E45: 2315176.93 | F45: 45.704 | G45: 50655.89292
A46: 496 | B46: Global Learning Charter Public School | C46: C | D46: New Bedford | E46: 2489756 | F46: 46.103 | G46: 54004.20797
A47: 499 | B47: Hampden Charter School of Science East | C47: C | D47: Chicopee | E47: 2072964 | F47: 43.11 | G47: 48085.45581
A48: 3516 | B48: Hampden Charter School of Science-West | C48: C | D48: Westfield | E48: 1001392 | F48: 21.4 | G48: 46794.01869
A49: 419 | B49: Helen Y Davis Leadership Academy Charter Public School | C49: C | D49: Boston | E49: 1524650 | F49: 14.384 | G49: 105996.2458
A50: 455 | B50: Hill View Montessori Charter Public School | C50: C | D50: Haverhill | E50: 1214198.4 | F50: 22 | G50: 55190.83636
A51: 450 | B51: Hilltown Cooperative Charter Public School | C51: C | D51: East Hampton | E51: 1276158.19 | F51: 20.27 | G51: 62957.97681
A52: 453 | B52: Holyoke Community Charter School | C52: C | D52: Holyoke | E52: 2753399.28 | F52: 46.2 | G52: 59597.38701
A53: 435 | B53: Innovation Academy Charter School | C53: C | D53: Tyngsborough | E53: 4027882 | F53: 67.683 | G53: 59510.98503
A54: 463 | B54: KIPP Academy Boston Charter School | C54: C | D54: Boston | E54: 2943837.73 | F54: 44.25 | G54: 66527.40633
A55: 429 | B55: KIPP Academy Lynn Charter School | C55: C | D55: Lynn | E55: 6321431.59 | F55: 102.347 | G55: 61764.69843
A56: 454 | B56: Lawrence Family Development Charter School | C56: C | D56: Lawrence | E56: 3794293.5 | F56: 60.5 | G56: 62715.59504
A57: 3514 | B57: Libertas Academy Charter School | C57: C | D57: Springfield | E57: 813063 | F57: 14.199 | G57: 57261.99028
A58: 456 | B58: Lowell Community Charter Public School | C58: C | D58: Lowell | E58: 4692388 | F58: 65.336 | G58: 71819.3339
A59: 458 | B59: Lowell Middlesex Academy Charter School | C59: C | D59: Lowell | E59: 829064.45 | F59: 9 | G59: 92118.27222
A60: 3517 | B60: Map Academy Charter School | C60: C | D60: Plymouth | E60: 552502 | F60: 8.6 | G60: 64244.4186
A61: 464 | B61: Marblehead Community Charter Public School | C61: C | D61: Marblehead | E61: 1439479 | F61: 20.9 | G61: 68874.5933
A62: 466 | B62: Martha's Vineyard Public Charter School | C62: C | D62: West Tisbury | E62: 1610462 | F62: 17.33 | G62: 92929.14022
A63: 492 | B63: Martin Luther King, Jr. Charter School of Excellence | C63: C | D63: Springfield | E63: 2508863.78 | F63: 36.93 | G63: 67935.65611
A64: 469 | B64: Match Charter Public School | C64: C | D64: Boston | E64: 7397528 | F64: 105.838 | G64: 69894.82039
A65: 470 | B65: Mystic Valley Regional Charter School | C65: C | D65: Malden | E65: 6227903 | F65: 97.968 | G65: 63570.78842
A66: 444 | B66: Neighborhood House Charter School | C66: C | D66: Boston | E66: 3752512 | F66: 66.747 | G66: 56219.93498
A67: 3513 | B67: New Heights Charter School of Brockton | C67: C | D67: Brockton | E67: 1961950.3 | F67: =VLOOKUP(A67, TEACHEREPIMS, 4, FALSE) -> 33.7 | G67: 58218.10979
A68: 3515 | B68: Old Sturbridge Academy | C68: C | D68: Sturbridge | E68: =VLOOKUP($A68&220, FE, 12, FALSE) -> 858503.42 | F68: =VLOOKUP(A68, TEACHEREPIMS, 2, FALSE) -> 15.58 | G68: 55102.91528
A69: 3501 | B69: Paulo Freire Social Justice Charter School | C69: C | D69: Holyoke | E69: 1324229 | F69: 25.148 | G69: =E69/F69 -> 52657.42803
A70: 493 | B70: Phoenix Academy Charter Public High School, Chelsea | C70: C | D70: Chelsea | E70: 684008 | F70: 13 | G70: 52616
A71: 3518 | B71: Phoenix Academy Charter Public High School, Lawrence | C71: C | D71: Lawrence | E71: 619267 | F71: 13.3 | G71: 46561.42857
A72: 3508 | B72: Phoenix Academy Public Charter High School, Springfield | C72: C | D72: Springfield | E72: 747918 | F72: 13.4 | G72: 55814.77612
A73: 494 | B73: Pioneer Charter School of Science | C73: =VLOOKUP(A73, TYPE, 3, FALSE) -> C | D73: =VLOOKUP(A73, FACTS, 6, FALSE) -> Everett | E73: 3815583.73 | F73: 72.457 | G73: 52659.97392
A74: 3506 | B74: Pioneer Charter School of Science II | C74: C | D74: Saugus | E74: 1797167.2 | F74: 35.101 | G74: 51199.88604
A75: 497 | B75: Pioneer Valley Chinese Immersion Charter School | C75: C | D75: Hadley | E75: 3382070.52 | F75: 66.906 | G75: 50549.58479
A76: 479 | B76: Pioneer Valley Performing Arts Charter Public School | C76: C | D76: South Hadley | E76: 2314575.07 | F76: 44.753 | G76: 51718.88075
A77: 487 | B77: Prospect Hill Academy Charter School | C77: C | D77: Somerville (K-6); Cambridge (7-12) | E77: 7145481 | F77: 102.096 | G77: 69987.86436
A78: 483 | B78: Rising Tide Charter Public School | C78: C | D78: Plymouth | E78: 3327587.21 | F78: 44.6 | G78: 74609.5787
A79: 482 | B79: River Valley Charter School | C79: C | D79: Newburyport | E79: 1507866 | F79: =VLOOKUP(A79, TEACHEREPIMS, 2, FALSE) -> 20.75 | G79: =E79/F79 -> 72668.24096
A80: 484 | B80: Roxbury Preparatory Charter School | C80: C | D80: Boston | E80: 6737861 | F80: 120.494 | G80: 55918.64325
A81: 441 | B81: Sabis International Charter School | C81: C | D81: Springfield | E81: 5225248.03 | F81: 93.51 | G81: 55879.0293
A82: 485 | B82: Salem Academy Charter School | C82: C | D82: Salem | E82: 2823482.06 | F82: 44.851 | G82: 62952.48846
A83: 486 | B83: Seven Hills Charter Public School | C83: C | D83: Worcester | E83: 2975705 | F83: 33.004 | G83: 90161.95007
A84: 474 | B84: Sizer School, A North Central Charter Essential School | C84: C | D84: Fitchburg | E84: 2037683.42 | F84: =VLOOKUP(A84, TEACHEREPIMS, 2, FALSE) -> 39.04 | G84: =E84/F84 -> 52194.75973
A85: 488 | B85: South Shore Charter Public School | C85: C | D85: Norwell | E85: 5922861 | F85: 88.178 | G85: 67169.37331
A86: 3510 | B86: Springfield Preparatory Charter School | C86: C | D86: Springfield | E86: 1500692.57 | F86: 23.6 | G86: 63588.66822
A87: 489 | B87: Sturgis Charter Public School | C87: C | D87: Hyannis | E87: 6337589 | F87: =VLOOKUP(A87, TEACHEREPIMS, 2, FALSE) -> 86.894 | G87: =E87/F87 -> 72934.71356
A88: 480 | B88: UP Academy Charter School of Boston | C88: HM | D88: Boston | E88: 2972435 | F88: 40.5 | G88: 73393.45679
A89: 3505 | B89: UP Academy Charter School of Dorchester | C89: HM | D89: Boston | E89: 4130484.397 | F89: =VLOOKUP(A89, TEACHEREPIMS, 2, FALSE) -> 55.4 | G89: =E89/F89 -> 74557.48008
A90: 498 | B90: Veritas Preparatory Charter School | C90: C | D90: Springfield | E90: 2061395.75 | F90: 27.997 | G90: 73629.16562
A91: C | B91: Commonwealth Charter Statewide Totals | C91: C | E91: =VLOOKUP($A91&220, FE, 12, FALSE) -> 227074045.5 | F91: =SUMIF($C9:$C86,"C",F9:F86) -> 3500.187 | G91: =E91/F91 -> 64874.83254
A92: HM | B92: Horace Mann Charter Statewide Totals | C92: HM | E92: 22346773.83 | F92: =SUMIF($C9:$C86,"HM",F9:F86) -> 177.244 | G92: =E92/F92 -> 126079.1555
A93: ALL | B93: All Charter Schools Statewide Totals | C93: ALL | E93: 249420819.3 | F93: =SUM(F91:F92) -> 3677.431 | G93: =E93/F93 -> 67824.74486

Sheet BAL19 (hidden)
B1: 1 | C1: 2 | D1: 3 | E1: 4 | F1: 5 | G1: 6 | H1: 7 | I1: 8
A2: FY | B2: vlookup | C2: cha_code | D2: cha_type | E2: balance_id | F2: Line_Desc | G2: balance_sch | H2: balance_found | I2: balance_total
A3: 2019 | B3: =C3&E3 -> 40701 | C3: 407 | D3: =VLOOKUP(C3, TYPE, 3, FALSE) -> HM | E3: 01 | F3: Cash and Cash Equivalents | G3: 91374 | H3: 0 | I3: 91374 | J3: =D3&E3 -> HM01
A4: 2019 | B4: =C4&E4 -> 40702 | C4: 407 | D4: HM | E4: 02 | F4: Accounts Receivable net of doubtful accounts | G4: 0 | H4: 0 | I4: 0 | J4: =D4&E4 -> HM02
A5: 2019 | B5: 40703 | C5: 407 | D5: HM | E5: 03 | F5: Grants Receivable - State | G5: 0 | H5: 0 | I5: 0 | J5: HM03
A6: 2019 | B6: 40704 | C6: 407 | D6: HM | E6: 04 | F6: Grants Receivable - Federal | G6: 0 | H6: 0 | I6: 0 | J6: HM04
A7: 2019 | B7: 40705 | C7: 407 | D7: HM | E7: 05 | F7: Grants Receivable - Private | G7: 0 | H7: 0 | I7: 0 | J7: HM05
A8: 2019 | B8: 40706 | C8: 407 | D8: HM | E8: 06 | F8: Contributions Receivable | G8: 0 | H8: 0 | I8: 0 | J8: HM06
A9: 2019 | B9: 40707 | C9: 407 | D9: HM | E9: 07 | F9: Due from related parties | G9: 42030 | H9: 0 | I9: 42030 | J9: HM07
A10: 2019 | B10: 40708 | C10: 407 | D10: HM | E10: 08 | F10: Prepaid Expenses / Inventory | G10: 1191 | H10: 0 | I10: 1191 | J10: HM08
A11: 2019 | B11: 40709 | C11: 407 | D11: HM | E11: 09 | F11: Short-Term Investments | G11: 0 | H11: 0 | I11: 0 | J11: HM09
A12: 2019 | B12: 40710 | C12: 407 | D12: HM | E12: 10 | F12: Deposit (Security, Other) | G12: 0 | H12: 0 | I12: 0 | J12: HM10
A13: 2019 | B13: 40711 | C13: 407 | D13: HM | E13: 11 | F13: Restricted Current Assets | G13: 0 | H13: 0 | I13: 0 | J13: HM11
A14: 2019 | B14: 40712 | C14: 407 | D14: HM | E14: 12 | F14: TOTAL CURRENT ASSETS | G14: 134595 | H14: 0 | I14: 134595 | J14: HM12
A15: 2019 | B15: 40713 | C15: 407 | D15: HM | E15: 13 | F15: - Land and Buildings | G15: 0 | H15: 0 | I15: 0 | J15: HM13
A16: 2019 | B16: 40714 | C16: 407 | D16: HM | E16: 14 | F16: - Building/Leasehold Improvement | G16: 0 | H16: 0 | I16: 0 | J16: HM14
A17: 2019 | B17: 40715 | C17: 407 | D17: HM | E17: 15 | F17: - Furniture and Equipment | G17: 0 | H17: 0 | I17: 0 | J17: HM15
A18: 2019 | B18: 40716 | C18: 407 | D18: HM | E18: 16 | F18: - Less Accumulated Depreciation | G18: 0 | H18: 0 | I18: 0 | J18: HM16
A19: 2019 | B19: 40717 | C19: 407 | D19: HM | E19: 17 | F19: Net Capital Assets | G19: 0 | H19: 0 | I19: 0 | J19: HM17
A20: 2019 | B20: 40718 | C20: 407 | D20: HM | E20: 18 | F20: Restricted Noncurrent Assets | G20: 0 | H20: 0 | I20: 0 | J20: HM18
A21: 2019 | B21: 40719 | C21: 407 | D21: HM | E21: 19 | F21: Long-Term Investments | G21: 0 | H21: 0 | I21: 0 | J21: HM19
A22: 2019 | B22: 40720 | C22: 407 | D22: HM | E22: 20 | F22: Building Acquisition / Financing Costs / Deferred Expenses | G22: 0 | H22: 0 | I22: 0 | J22: HM20
A23: 2019 | B23: 40721 | C23: 407 | D23: HM | E23: 21 | F23: Long-Term Grants / Contributions Receivable | G23: 0 | H23: 0 | I23: 0 | J23: HM21
A24: 2019 | B24: 40722 | C24: 407 | D24: HM | E24: 22 | F24: TOTAL NONCURRENT ASSETS | G24: 0 | H24: 0 | I24: 0 | J24: HM22
A25: 2019 | B25: 40723 | C25: 407 | D25: HM | E25: 23 | F25: TOTAL ASSETS | G25: 134595 | H25: 0 | I25: 134595 | J25: HM23
A26: 2019 | B26: 40724 | C26: 407 | D26: HM | E26: 24 | F26: Accounts Payable | G26: 22455.04 | H26: 0 | I26: 22455.04 | J26: HM24
A27: 2019 | B27: 40725 | C27: 407 | D27: HM | E27: 25 | F27: Accrued Expenses / Accrued Payroll | G27: 9207.14 | H27: 0 | I27: 9207.14 | J27: HM25
A28: 2019 | B28: 40726 | C28: 407 | D28: HM | E28: 26 | F28: Deferred Revenue | G28: 0 | H28: 0 | I28: 0 | J28: HM26
A29: 2019 | B29: 40727 | C29: 407 | D29: HM | E29: 27 | F29: Due to related parties | G29: 0 | H29: 0 | I29: 0 | J29: HM27
A30: 2019 | B30: 40728 | C30: 407 | D30: HM | E30: 28 | F30: Current Debt Payable | G30: 0 | H30: 0 | I30: 0 | J30: HM28
A31: 2019 | B31: 40729 | C31: 407 | D31: HM | E31: 29 | F31: Current Lease Obligations Payable | G31: 0 | H31: 0 | I31: 0 | J31: HM29
A32: 2019 | B32: 40730 | C32: 407 | D32: HM | E32: 30 | F32: TOTAL CURRENT LIABILITIES | G32: 31662.18 | H32: 0 | I32: 31662.18 | J32: HM30
A33: 2019 | B33: 40731 | C33: 407 | D33: HM | E33: 31 | F33: Noncurrent Lease Obligations | G33: 0 | H33: 0 | I33: 0 | J33: HM31
A34: 2019 | B34: 40732 | C34: 407 | D34: HM | E34: 32 | F34: Long-Term Debt | G34: 0 | H34: 0 | I34: 0 | J34: HM32
A35: 2019 | B35: 40733 | C35: 407 | D35: HM | E35: 33 | F35: Deferred Revenue | G35: 0 | H35: 0 | I35: 0 | J35: HM33
A36: 2019 | B36: 40734 | C36: 407 | D36: HM | E36: 34 | F36: TOTAL NONCURRENT LIABILITIES | G36: 0 | H36: 0 | I36: 0 | J36: HM34
A37: 2019 | B37: 40735 | C37: 407 | D37: HM | E37: 35 | F37: TOTAL LIABILITIES | G37: 31662.18 | H37: 0 | I37: 31662.18 | J37: HM35
A38: 2019 | B38: 40736 | C38: 407 | D38: HM | E38: 36 | F38: Investment in capital assets (net of related debt) | G38: 0 | H38: 0 | I38: 0 | J38: HM36
A39: 2019 | B39: 40737 | C39: 407 | D39: HM | E39: 37 | F39: Temporarily Restricted | G39: 0 | H39: 0 | I39: 0 | J39: HM37
A40: 2019 | B40: 40738 | C40: 407 | D40: HM | E40: 38 | F40: Permanently Restricted | G40: 0 | H40: 0 | I40: 0 | J40: HM38
A41: 2019 | B41: 40739 | C41: 407 | D41: HM | E41: 39 | F41: Unrestricted (non-capital) | G41: 102933 | H41: 0 | I41: 102933 | J41: HM39
A42: 2019 | B42: 40740 | C42: 407 | D42: HM | E42: 40 | F42: TOTAL NET ASSETS | G42: 102933 | H42: 0 | I42: 102933 | J42: HM40
A43: 2019 | B43: 40741 | C43: 407 | D43: HM | E43: 41 | F43: TOTAL LIABILITIES AND NET ASSETS | G43: 134595 | H43: 0 | I43: 134595 | J43: HM41
A44: 2019 | B44: 40901 | C44: 409 | D44: C | E44: 01 | F44: Cash and Cash Equivalents | G44: 1695400 | H44: 1597274 | I44: 3292674 | J44: C01
A45: 2019 | B45: 40902 | C45: 409 | D45: C | E45: 02 | F45: Accounts Receivable net of doubtful accounts | G45: 22267 | H45: 0 | I45: 22267 | J45: C02
A46: 2019 | B46: 40903 | C46: 409 | D46: C | E46: 03 | F46: Grants Receivable - State | G46: 463745.36 | H46: 0 | I46: 463745.36 | J46: C03
A47: 2019 | B47: 40904 | C47: 409 | D47: C | E47: 04 | F47: Grants Receivable - Federal | G47: 61090.4 | H47: 0 | I47: 61090.4 | J47: C04
A48: 2019 | B48: 40905 | C48: 409 | D48: C | E48: 05 | F48: Grants Receivable - Private | G48: 0 | H48: 0 | I48: 0 | J48: C05
A49: 2019 | B49: 40906 | C49: 409 | D49: C | E49: 06 | F49: Contributions Receivable | G49: 0 | H49: 20000 | I49: 20000 | J49: C06
A50: 2019 | B50: 40907 | C50: 409 | D50: C | E50: 07 | F50: Due from related parties | G50: 121862 | H50: -121862 | I50: 0 | J50: C07
A51: 2019 | B51: 40908 | C51: 409 | D51: C | E51: 08 | F51: Prepaid Expenses / Inventory | G51: 27314 | H51: 2951 | I51: 30265 | J51: C08
A52: 2019 | B52: 40909 | C52: 409 | D52: C | E52: 09 | F52: Short-Term Investments | G52: 0 | H52: 0 | I52: 0 | J52: C09
A53: 2019 | B53: 40910 | C53: 409 | D53: C | E53: 10 | F53: Deposit (Security, Other) | G53: 0 | H53: 25000 | I53: 25000 | J53: C10
A54: 2019 | B54: 40911 | C54: 409 | D54: C | E54: 11 | F54: Restricted Current Assets | G54: 0 | H54: 0 | I54: 0 | J54: C11
A55: 2019 | B55: 40912 | C55: 409 | D55: C | E55: 12 | F55: TOTAL CURRENT ASSETS | G55: 2391678.76 | H55: 1523363 | I55: 3915041.76 | J55: C12
A56: 2019 | B56: 40913 | C56: 409 | D56: C | E56: 13 | F56: - Land and Buildings | G56: 0 | H56: 14797425 | I56: 14797425 | J56: C13
A57: 2019 | B57: 40914 | C57: 409 | D57: C | E57: 14 | F57: - Building/Leasehold Improvement | G57: 0 | H57: 220769 | I57: 220769 | J57: C14
A58: 2019 | B58: 40915 | C58: 409 | D58: C | E58: 15 | F58: - Furniture and Equipment | G58: 82711 | H58: 435473 | I58: 518184 | J58: C15
A59: 2019 | B59: 40916 | C59: 409 | D59: C | E59: 16 | F59: - Less Accumulated Depreciation | G59: -49158 | H59: -1194168 | I59: -1243326 | J59: C16
A60: 2019 | B60: 40917 | C60: 409 | D60: C | E60: 17 | F60: Net Capital Assets | G60: 33553 | H60: 14259499 | I60: 14293052 | J60: C17
A61: 2019 | B61: 40918 | C61: 409 | D61: C | E61: 18 | F61: Restricted Noncurrent Assets | G61: 0 | H61: 861 | I61: 861 | J61: C18
A62: 2019 | B62: 40919 | C62: 409 | D62: C | E62: 19 | F62: Long-Term Investments | G62: 0 | H62: 0 | I62: 0 | J62: C19
A63: 2019 | B63: 40920 | C63: 409 | D63: C | E63: 20 | F63: Building Acquisition / Financing Costs / Deferred Expenses | G63: 0 | H63: 10042850 | I63: 10042850 | J63: C20
A64: 2019 | B64: 40921 | C64: 409 | D64: C | E64: 21 | F64: Long-Term Grants / Contributions Receivable | G64: 0 | H64: 0 | I64: 0 | J64: C21
A65: 2019 | B65: 40922 | C65: 409 | D65: C | E65: 22 | F65: TOTAL NONCURRENT ASSETS | G65: 33553 | H65: 24303210 | I65: 24336763 | J65: C22
A66: 2019 | B66: 40923 | C66: 409 | D66: C | E66: 23 | F66: TOTAL ASSETS | G66: 2425232 | H66: 25826573 | I66: 28251805 | J66: C23
A67: 2019 | B67: 40924 | C67: 409 | D67: =VLOOKUP(C67, TYPE, 3, FALSE) -> C | E67: 24 | F67: Accounts Payable | G67: 131363 | H67: 39217 | I67: 170580 | J67: C24
A68: 2019 | B68: =C68&E68 -> 40925 | C68: 409 | D68: C | E68: 25 | F68: Accrued Expenses / Accrued Payroll | G68: 222903 | H68: 138627 | I68: 361530 | J68: =D68&E68 -> C25
A69: 2019 | B69: 40926 | C69: 409 | D69: C | E69: 26 | F69: Deferred Revenue | G69: 0 | H69: 0 | I69: 0 | J69: C26
A70: 2019 | B70: 40927 | C70: 409 | D70: C | E70: 27 | F70: Due to related parties | G70: 0 | H70: 0 | I70: 0 | J70: C27
A71: 2019 | B71: 40928 | C71: 409 | D71: C | E71: 28 | F71: Current Debt Payable | G71: 0 | H71: 197546 | I71: 197546 | J71: C28
A72: 2019 | B72: 40929 | C72: 409 | D72: C | E72: 29 | F72: Current Lease Obligations Payable | G72: 0 | H72: 0 | I72: 0 | J72: C29
A73: 2019 | B73: 40930 | C73: 409 | D73: C | E73: 30 | F73: TOTAL CURRENT LIABILITIES | G73: 354266 | H73: 375390 | I73: 729656 | J73: C30
A74: 2019 | B74: 40931 | C74: 409 | D74: C | E74: 31 | F74: Noncurrent Lease Obligations | G74: 1217232 | H74: -1217232 | I74: 0 | J74: C31
A75: 2019 | B75: 40932 | C75: 409 | D75: C | E75: 32 | F75: Long-Term Debt | G75: 0 | H75: 23285334 | I75: 23285334 | J75: C32
A76: 2019 | B76: 40933 | C76: 409 | D76: C | E76: 33 | F76: Deferred Revenue | G76: 0 | H76: 0 | I76: 0 | J76: C33
A77: 2019 | B77: 40934 | C77: 409 | D77: C | E77: 34 | F77: TOTAL NONCURRENT LIABILITIES | G77: 1217232 | H77: 22068102 | I77: 23285334 | J77: C34
A78: 2019 | B78: 40935 | C78: 409 | D78: C | E78: 35 | F78: TOTAL LIABILITIES | G78: 1571498 | H78: 22443492 | I78: 24014990 | J78: C35
A79: 2019 | B79: 40936 | C79: 409 | D79: C | E79: 36 | F79: Investment in capital assets (net of related debt) | G79: 33553 | H79: 115371 | I79: 148924 | J79: C36
A80: 2019 | B80: 40937 | C80: 409 | D80: C | E80: 37 | F80: Temporarily Restricted | G80: 0 | H80: 1147391 | I80: 1147391 | J80: C37
A81: 2019 | B81: 40938 | C81: 409 | D81: C | E81: 38 | F81: Permanently Restricted | G81: 0 | H81: 0 | I81: 0 | J81: C38
A82: 2019 | B82: 40939 | C82: 409 | D82: C | E82: 39 | F82: Unrestricted (non-capital) | G82: 820181 | H82: 2120319 | I82: 2940500 | J82: C39
A83: 2019 | B83: 40940 | C83: 409 | D83: C | E83: 40 | F83: TOTAL NET ASSETS | G83: 853734 | H83: 3383081 | I83: 4236815 | J83: C40
A84: 2019 | B84: 40941 | C84: 409 | D84: C | E84: 41 | F84: TOTAL LIABILITIES AND NET ASSETS | G84: 2425232 | H84: 25826573 | I84: 28251805 | J84: C41
A85: 2019 | B85: 41001 | C85: 410 | D85: C | E85: 01 | F85: Cash and Cash Equivalents | G85: 244152 | H85: 3120168 | I85: 3364320 | J85: C01
A86: 2019 | B86: 41002 | C86: 410 | D86: C | E86: 02 | F86: Accounts Receivable net of doubtful accounts | G86: 32616 | H86: 0 | I86: 32616 | J86: C02
A87: 2019 | B87: 41003 | C87: 410 | D87: C | E87: 03 | F87: Grants Receivable - State | G87: 2003509 | H87: 0 | I87: 2003509 | J87: C03
A88: 2019 | B88: 41004 | C88: 410 | D88: C | E88: 04 | F88: Grants Receivable - Federal | G88: 554518 | H88: 0 | I88: 554518 | J88: C04
A89: 2019 | B89: 41005 | C89: 410 | D89: C | E89: 05 | F89: Grants Receivable - Private | G89: 0 | H89: 1349250 | I89: 1349250 | J89: C05
A90: 2019 | B90: 41006 | C90: 410 | D90: C | E90: 06 | F90: Contributions Receivable | G90: 0 | H90: 0 | I90: 0 | J90: C06
A91: 2019 | B91: 41007 | C91: 410 | D91: C | E91: 07 | F91: Due from related parties | G91: -2122205 | H91: 2122205 | I91: 0 | J91: C07
A92: 2019 | B92: 41008 | C92: 410 | D92: C | E92: 08 | F92: Prepaid Expenses / Inventory | G92: 139941 | H92: 12288 | I92: 152229 | J92: C08
A93: 2019 | B93: 41009 | C93: 410 | D93: C | E93: 09 | F93: Short-Term Investments | G93: 0 | H93: 0 | I93: 0 | J93: C09
A94: 2019 | B94: 41010 | C94: 410 | D94: C | E94: 10 | F94: Deposit (Security, Other) | G94: 0 | H94: 0 | I94: 0 | J94: C10
A95: 2019 | B95: 41011 | C95: 410 | D95: C | E95: 11 | F95: Restricted Current Assets | G95: 0 | H95: 0 | I95: 0 | J95: C11
A96: 2019 | B96: 41012 | C96: 410 | D96: C | E96: 12 | F96: TOTAL CURRENT ASSETS | G96: 852531 | H96: 6603911 | I96: 7456442 | J96: C12
A97: 2019 | B97: 41013 | C97: 410 | D97: C | E97: 13 | F97: - Land and Buildings | G97: 33318070 | H97: 481651 | I97: 33799721 | J97: C13
A98: 2019 | B98: 41014 | C98: 410 | D98: C | E98: 14 | F98: - Building/Leasehold Improvement | G98: 1056334 | H98: 0 | I98: 1056334 | J98: C14
A99: 2019 | B99: 41015 | C99: 410 | D99: C | E99: 15 | F99: - Furniture and Equipment | G99: 1309368 | H99: 0 | I99: 1309368 | J99: C15
A100: 2019 | B100: 41016 | C100: 410 | D100: C | E100: 16 | F100: - Less Accumulated Depreciation | G100: -3657214 | H100: 0 | I100: -3657214 | J100: C16
A101: 2019 | B101: 41017 | C101: 410 | D101: C | E101: 17 | F101: Net Capital Assets | G101: 32026558 | H101: 481651 | I101: 32508209 | J101: C17
A102: 2019 | B102: 41018 | C102: 410 | D102: C | E102: 18 | F102: Restricted Noncurrent Assets | G102: 1010867 | H102: 1115643 | I102: 2126510 | J102: C18
A103: 2019 | B103: 41019 | C103: 410 | D103: C | E103: 19 | F103: Long-Term Investments | G103: 0 | H103: 0 | I103: 0 | J103: C19
A104: 2019 | B104: 41020 | C104: 410 | D104: C | E104: 20 | F104: Building Acquisition / Financing Costs / Deferred Expenses | G104: -11735850 | H104: 11735850 | I104: 0 | J104: C20
A105: 2019 | B105: 41021 | C105: 410 | D105: C | E105: 21 | F105: Long-Term Grants / Contributions Receivable | G105: 0 | H105: 1006197 | I105: 1006197 | J105: C21
A106: 2019 | B106: 41022 | C106: 410 | D106: C | E106: 22 | F106: TOTAL NONCURRENT ASSETS | G106: 21301575 | H106: 14339341 | I106: 35640916 | J106: C22
A107: 2019 | B107: 41023 | C107: 410 | D107: C | E107: 23 | F107: TOTAL ASSETS | G107: 22154106 | H107: 20943252 | I107: 43097358 | J107: C23
A108: 2019 | B108: 41024 | C108: 410 | D108: C | E108: 24 | F108: Accounts Payable | G108: 510344 | H108: 151436 | I108: 661780 | J108: C24
A109: 2019 | B109: 41025 | C109: 410 | D109: C | E109: 25 | F109: Accrued Expenses / Accrued Payroll | G109: 947741 | H109: 2500 | I109: 950241 | J109: C25
A110: 2019 | B110: 41026 | C110: 410 | D110: C | E110: 26 | F110: Deferred Revenue | G110: 0 | H110: 0 | I110: 0 | J110: C26
A111: 2019 | B111: 41027 | C111: 410 | D111: C | E111: 27 | F111: Due to related parties | G111: 0 | H111: 0 | I111: 0 | J111: C27
A112: 2019 | B112: 41028 | C112: 410 | D112: C | E112: 28 | F112: Current Debt Payable | G112: 560595 | H112: 118001 | I112: 678596 | J112: C28
A113: 2019 | B113: 41029 | C113: 410 | D113: C | E113: 29 | F113: Current Lease Obligations Payable | G113: 0 | H113: 0 | I113: 0 | J113: C29
A114: 2019 | B114: 41030 | C114: 410 | D114: C | E114: 30 | F114: TOTAL CURRENT LIABILITIES | G114: 2018680 | H114: 271937 | I114: 2290617 | J114: C30
A115: 2019 | B115: 41031 | C115: 410 | D115: C | E115: 31 | F115: Noncurrent Lease Obligations | G115: 177884 | H115: 0 | I115: 177884 | J115: C31
A116: 2019 | B116: 41032 | C116: 410 | D116: C | E116: 32 | F116: Long-Term Debt | G116: 20559650 | H116: 3947795 | I116: 24507445 | J116: C32
A117: 2019 | B117: 41033 | C117: 410 | D117: C | E117: 33 | F117: Deferred Revenue | G117: 0 | H117: 295000 | I117: 295000 | J117: C33
A118: 2019 | B118: 41034 | C118: 410 | D118: C | E118: 34 | F118: TOTAL NONCURRENT LIABILITIES | G118: 20737534 | H118: 4242795 | I118: 24980329 | J118: C34
A119: 2019 | B119: 41035 | C119: 410 | D119: C | E119: 35 | F119: TOTAL LIABILITIES | G119: 22756214 | H119: 4514732 | I119: 27270946 | J119: C35
A120: 2019 | B120: 41036 | C120: 410 | D120: C | E120: 36 | F120: Investment in capital assets (net of related debt) | G120: -1190056 | H120: 10424364 | I120: 9234308 | J120: C36
A121: 2019 | B121: 41037 | C121: 410 | D121: C | E121: 37 | F121: Temporarily Restricted | G121: 2000 | H121: 3250980 | I121: 3252980 | J121: C37
A122: 2019 | B122: 41038 | C122: 410 | D122: C | E122: 38 | F122: Permanently Restricted | G122: 0 | H122: 0 | I122: 0 | J122: C38
A123: 2019 | B123: 41039 | C123: 410 | D123: C | E123: 39 | F123: Unrestricted (non-capital) | G123: 585948 | H123: 2753176 | I123: 3339124 | J123: C39
A124: 2019 | B124: 41040 | C124: 410 | D124: C | E124: 40 | F124: TOTAL NET ASSETS | G124: -602108 | H124: 16428520 | I124: 15826412 | J124: C40
A125: 2019 | B125: 41041 | C125: 410 | D125: C | E125: 41 | F125: TOTAL LIABILITIES AND NET ASSETS | G125: 22154106 | H125: 20943252 | I125: 43097358 | J125: C41
A126: 2019 | B126: 41101 | C126: 411 | D126: HM | E126: 01 | F126: Cash and Cash Equivalents | G126: 258149 | H126: 252889 | I126: 511038 | J126: HM01
A127: 2019 | B127: 41102 | C127: 411 | D127: HM | E127: 02 | F127: Accounts Receivable net of doubtful accounts | G127: 0 | H127: 0 | I127: 0 | J127: HM02
A128: 2019 | B128: 41103 | C128: 411 | D128: HM | E128: 03 | F128: Grants Receivable - State | G128: 0 | H128: 0 | I128: 0 | J128: HM03
A129: 2019 | B129: 41104 | C129: 411 | D129: HM | E129: 04 | F129: Grants Receivable - Federal | G129: 0 | H129: 0 | I129: 0 | J129: HM04
A130: 2019 | B130: 41105 | C130: 411 | D130: HM | E130: 05 | F130: Grants Receivable - Private | G130: 0 | H130: 0 | I130: 0 | J130: HM05
A131: 2019 | B131: 41106 | C131: 411 | D131: =VLOOKUP(C131, TYPE, 3, FALSE) -> HM | E131: 06 | F131: Contributions Receivable | G131: 0 | H131: 0 | I131: 0 | J131: HM06
A132: 2019 | B132: =C132&E132 -> 41107 | C132: 411 | D132: HM | E132: 07 | F132: Due from related parties | G132: -15000 | H132: 15000 | I132: 0 | J132: =D132&E132 -> HM07
A133: 2019 | B133: 41108 | C133: 411 | D133: HM | E133: 08 | F133: Prepaid Expenses / Inventory | G133: 19214 | H133: 0 | I133: 19214 | J133: HM08
A134: 2019 | B134: 41109 | C134: 411 | D134: HM | E134: 09 | F134: Short-Term Investments | G134: 0 | H134: 0 | I134: 0 | J134: HM09
A135: 2019 | B135: 41110 | C135: 411 | D135: HM | E135: 10 | F135: Deposit (Security, Other) | G135: 0 | H135: 0 | I135: 0 | J135: HM10
A136: 2019 | B136: 41111 | C136: 411 | D136: HM | E136: 11 | F136: Restricted Current Assets | G136: 0 | H136: 0 | I136: 0 | J136: HM11
A137: 2019 | B137: 41112 | C137: 411 | D137: HM | E137: 12 | F137: TOTAL CURRENT ASSETS | G137: 262363 | H137: 267889 | I137: 530252 | J137: HM12
A138: 2019 | B138: 41113 | C138: 411 | D138: HM | E138: 13 | F138: - Land and Buildings | G138: 0 | H138: 0 | I138: 0 | J138: HM13
A139: 2019 | B139: 41114 | C139: 411 | D139: HM | E139: 14 | F139: - Building/Leasehold Improvement | G139: 0 | H139: 0 | I139: 0 | J139: HM14
A140: 2019 | B140: 41115 | C140: 411 | D140: HM | E140: 15 | F140: - Furniture and Equipment | G140: 168447 | H140: 0 | I140: 168447 | J140: HM15
A141: 2019 | B141: 41116 | C141: 411 | D141: HM | E141: 16 | F141: - Less Accumulated Depreciation | G141: -105285 | H141: 0 | I141: -105285 | J141: HM16
A142: 2019 | B142: 41117 | C142: 411 | D142: HM | E142: 17 | F142: Net Capital Assets | G142: 63162 | H142: 0 | I142: 63162 | J142: HM17
A143: 2019 | B143: 41118 | C143: 411 | D143: HM | E143: 18 | F143: Restricted Noncurrent Assets | G143: 0 | H143: 0 | I143: 0 | J143: HM18
A144: 2019 | B144: 41119 | C144: 411 | D144: HM | E144: 19 | F144: Long-Term Investments | G144: 0 | H144: 0 | I144: 0 | J144: HM19
A145: 2019 | B145: 41120 | C145: 411 | D145: HM | E145: 20 | F145: Building Acquisition / Financing Costs / Deferred Expenses | G145: 0 | H145: 0 | I145: 0 | J145: HM20
A146: 2019 | B146: 41121 | C146: 411 | D146: HM | E146: 21 | F146: Long-Term Grants / Contributions Receivable | G146: 0 | H146: 0 | I146: 0 | J146: HM21
A147: 2019 | B147: 41122 | C147: 411 | D147: HM | E147: 22 | F147: TOTAL NONCURRENT ASSETS | G147: 63162 | H147: 0 | I147: 63162 | J147: HM22
A148: 2019 | B148: 41123 | C148: 411 | D148: HM | E148: 23 | F148: TOTAL ASSETS | G148: 325525 | H148: 267889 | I148: 593414 | J148: HM23
A149: 2019 | B149: 41124 | C149: 411 | D149: HM | E149: 24 | F149: Accounts Payable | G149: 20497 | H149: 0 | I149: 20497 | J149: HM24
A150: 2019 | B150: 41125 | C150: 411 | D150: HM | E150: 25 | F150: Accrued Expenses / Accrued Payroll | G150: 0 | H150: 0 | I150: 0 | J150: HM25
A151: 2019 | B151: 41126 | C151: 411 | D151: HM | E151: 26 | F151: Deferred Revenue | G151: 0 | H151: 0 | I151: 0 | J151: HM26
A152: 2019 | B152: 41127 | C152: 411 | D152: HM | E152: 27 | F152: Due to related parties | G152: 0 | H152: 0 | I152: 0 | J152: HM27
A153: 2019 | B153: 41128 | C153: 411 | D153: HM | E153: 28 | F153: Current Debt Payable | G153: 0 | H153: 0 | I153: 0 | J153: HM28
A154: 2019 | B154: 41129 | C154: 411 | D154: HM | E154: 29 | F154: Current Lease Obligations Payable | G154: 0 | H154: 0 | I154: 0 | J154: HM29
A155: 2019 | B155: 41130 | C155: 411 | D155: HM | E155: 30 | F155: TOTAL CURRENT LIABILITIES | G155: 20497 | H155: 0 | I155: 20497 | J155: HM30
A156: 2019 | B156: 41131 | C156: 411 | D156: HM | E156: 31 | F156: Noncurrent Lease Obligations | G156: 0 | H156: 0 | I156: 0 | J156: HM31
A157: 2019 | B157: 41132 | C157: 411 | D157: HM | E157: 32 | F157: Long-Term Debt | G157: 0 | H157: 0 | I157: 0 | J157: HM32
A158: 2019 | B158: 41133 | C158: 411 | D158: HM | E158: 33 | F158: Deferred Revenue | G158: 0 | H158: 0 | I158: 0 | J158: HM33
A159: 2019 | B159: 41134 | C159: 411 | D159: HM | E159: 34 | F159: TOTAL NONCURRENT LIABILITIES | G159: 0 | H159: 0 | I159: 0 | J159: HM34
A160: 2019 | B160: 41135 | C160: 411 | D160: HM | E160: 35 | F160: TOTAL LIABILITIES | G160: 20497 | H160: 0 | I160: 20497 | J160: HM35
A161: 2019 | B161: 41136 | C161: 411 | D161: HM | E161: 36 | F161: Investment in capital assets (net of related debt) | G161: 63162 | H161: 0 | I161: 63162 | J161: HM36
A162: 2019 | B162: 41137 | C162: 411 | D162: HM | E162: 37 | F162: Temporarily Restricted | G162: 0 | H162: 4978 | I162: 4978 | J162: HM37
A163: 2019 | B163: 41138 | C163: 411 | D163: HM | E163: 38 | F163: Permanently Restricted | G163: 0 | H163: 0 | I163: 0 | J163: HM38
A164: 2019 | B164: 41139 | C164: 411 | D164: HM | E164: 39 | F164: Unrestricted (non-capital) | G164: 241866 | H164: 262911 | I164: 504777 | J164: HM39
A165: 2019 | B165: 41140 | C165: 411 | D165: HM | E165: 40 | F165: TOTAL NET ASSETS | G165: 305028 | H165: 267889 | I165: 572917 | J165: HM40
A166: 2019 | B166: 41141 | C166: 411 | D166: HM | E166: 41 | F166: TOTAL LIABILITIES AND NET ASSETS | G166: 325525 | H166: 267889 | I166: 593414 | J166: HM41
A167: 2019 | B167: 41201 | C167: 412 | D167: C | E167: 01 | F167: Cash and Cash Equivalents | G167: 3597119 | H167: 138439 | I167: 3735558 | J167: C01
A168: 2019 | B168: 41202 | C168: 412 | D168: C | E168: 02 | F168: Accounts Receivable net of doubtful accounts | G168: 821491 | H168: 0 | I168: 821491 | J168: C02
A169: 2019 | B169: 41203 | C169: 412 | D169: C | E169: 03 | F169: Grants Receivable - State | G169: 0 | H169: 0 | I169: 0 | J169: C03
A170: 2019 | B170: 41204 | C170: 412 | D170: C | E170: 04 | F170: Grants Receivable - Federal | G170: 64068 | H170: 0 | I170: 64068 | J170: C04
A171: 2019 | B171: 41205 | C171: 412 | D171: C | E171: 05 | F171: Grants Receivable - Private | G171: 0 | H171: 0 | I171: 0 | J171: C05
A172: 2019 | B172: 41206 | C172: 412 | D172: C | E172: 06 | F172: Contributions Receivable | G172: 0 | H172: 0 | I172: 0 | J172: C06
A173: 2019 | B173: 41207 | C173: 412 | D173: C | E173: 07 | F173: Due from related parties | G173: 0 | H173: 0 | I173: 0 | J173: C07
A174: 2019 | B174: 41208 | C174: 412 | D174: C | E174: 08 | F174: Prepaid Expenses / Inventory | G174: 13105 | H174: 0 | I174: 13105 | J174: C08
A175: 2019 | B175: 41209 | C175: 412 | D175: C | E175: 09 | F175: Short-Term Investments | G175: 0 | H175: 14093 | I175: 14093 | J175: C09
A176: 2019 | B176: 41210 | C176: 412 | D176: C | E176: 10 | F176: Deposit (Security, Other) | G176: 19040 | H176: 0 | I176: 19040 | J176: C10
A177: 2019 | B177: 41211 | C177: 412 | D177: C | E177: 11 | F177: Restricted Current Assets | G177: 0 | H177: 0 | I177: 0 | J177: C11
A178: 2019 | B178: 41212 | C178: 412 | D178: C | E178: 12 | F178: TOTAL CURRENT ASSETS | G178: 4514823 | H178: 152532 | I178: 4667355 | J178: C12
A179: 2019 | B179: 41213 | C179: 412 | D179: C | E179: 13 | F179: - Land and Buildings | G179: 5000000 | H179: 0 | I179: 5000000 | J179: C13
A180: 2019 | B180: 41214 | C180: 412 | D180: C | E180: 14 | F180: - Building/Leasehold Improvement | G180: 12030295 | H180: 0 | I180: 12030295 | J180: C14
A181: 2019 | B181: 41215 | C181: 412 | D181: C | E181: 15 | F181: - Furniture and Equipment | G181: 2010697 | H181: 0 | I181: 2010697 | J181: C15
A182: 2019 | B182: 41216 | C182: 412 | D182: C | E182: 16 | F182: - Less Accumulated Depreciation | G182: -7495480 | H182: 0 | I182: -7495480 | J182: C16
A183: 2019 | B183: 41217 | C183: 412 | D183: C | E183: 17 | F183: Net Capital Assets | G183: 11545512 | H183: 0 | I183: 11545512 | J183: C17
A184: 2019 | B184: 41218 | C184: 412 | D184: C | E184: 18 | F184: Restricted Noncurrent Assets | G184: 6508221 | H184: 0 | I184: 6508221 | J184: C18
A185: 2019 | B185: 41219 | C185: 412 | D185: C | E185: 19 | F185: Long-Term Investments | G185: 0 | H185: 0 | I185: 0 | J185: C19
A186: 2019 | B186: 41220 | C186: 412 | D186: C | E186: 20 | F186: Building Acquisition / Financing Costs / Deferred Expenses | G186: 90486 | H186: 0 | I186: 90486 | J186: C20
A187: 2019 | B187: 41221 | C187: 412 | D187: C | E187: 21 | F187: Long-Term Grants / Contributions Receivable | G187: 0 | H187: 0 | I187: 0 | J187: C21
A188: 2019 | B188: 41222 | C188: 412 | D188: C | E188: 22 | F188: TOTAL NONCURRENT ASSETS | G188: 18144219 | H188: 0 | I188: 18144219 | J188: C22
A189: 2019 | B189: 41223 | C189: 412 | D189: C | E189: 23 | F189: TOTAL ASSETS | G189: 22659042 | H189: 152532 | I189: 22811574 | J189: C23
A190: 2019 | B190: 41224 | C190: 412 | D190: C | E190: 24 | F190: Accounts Payable | G190: 71664 | H190: 0 | I190: 71664 | J190: C24
A191: 2019 | B191: 41225 | C191: 412 | D191: C | E191: 25 | F191: Accrued Expenses / Accrued Payroll | G191: 626158 | H191: 0 | I191: 626158 | J191: C25
A192: 2019 | B192: 41226 | C192: 412 | D192: C | E192: 26 | F192: Deferred Revenue | G192: 0 | H192: 0 | I192: 0 | J192: C26
A193: 2019 | B193: 41227 | C193: 412 | D193: C | E193: 27 | F193: Due to related parties | G193: 0 | H193: 0 | I193: 0 | J193: C27
A194: 2019 | B194: 41228 | C194: 412 | D194: C | E194: 28 | F194: Current Debt Payable | G194: 216658 | H194: 0 | I194: 216658 | J194: C28
A195: 2019 | B195: 41229 | C195: 412 | D195: =VLOOKUP(C195, TYPE, 3, FALSE) -> C | E195: 29 | F195: Current Lease Obligations Payable | G195: 0 | H195: 0 | I195: 0 | J195: C29
A196: 2019 | B196: =C196&E196 -> 41230 | C196: 412 | D196: C | E196: 30 | F196: TOTAL CURRENT LIABILITIES | G196: 914480 | H196: 0 | I196: 914480 | J196: =D196&E196 -> C30
A197: 2019 | B197: 41231 | C197: 412 | D197: C | E197: 31 | F197: Noncurrent Lease Obligations | G197: 0 | H197: 0 | I197: 0 | J197: C31
A198: 2019 | B198: 41232 | C198: 412 | D198: C | E198: 32 | F198: Long-Term Debt | G198: 14969003 | H198: 0 | I198: 14969003 | J198: C32
A199: 2019 | B199: 41233 | C199: 412 | D199: C | E199: 33 | F199: Deferred Revenue | G199: 0 | H199: 0 | I199: 0 | J199: C33
A200: 2019 | B200: 41234 | C200: 412 | D200: C | E200: 34 | F200: TOTAL NONCURRENT LIABILITIES | G200: 14969003 | H200: 0 | I200: 14969003 | J200: C34
... 3205 more rows

Sheet INC19 (hidden)
B1: 1 | C1: 2 | D1: 3 | E1: 4 | F1: 5 | G1: 6 | H1: 7 | I1: 8
A2: FY | B2: vlookup | C2: cha_code | D2: cha_type | E2: income_id | F2: Line_Desc | G2: income_sch | H2: income_found | I2: income_total
A3: 2019 | B3: =C3&E3 -> 40701 | C3: 407 | D3: =VLOOKUP(C3, TYPE, 3, FALSE) -> HM | E3: 01 | F3: Tuition | G3: 4012813 | H3: 0 | I3: 4012813 | J3: =D3&E3 -> HM01
A4: 2019 | B4: =C4&E4 -> 40702a | C4: 407 | D4: HM | E4: 02a | F4: Grants - State - passed through ESE | G4: 0 | H4: 0 | I4: 0 | J4: =D4&E4 -> HM02a
A5: 2019 | B5: 40702b | C5: 407 | D5: HM | E5: 02b | F5: Grants - State - other non-ESE pass-through | G5: 0 | H5: 0 | I5: 0 | J5: HM02b
A6: 2019 | B6: 40703 | C6: 407 | D6: HM | E6: 03 | F6: Grants - Federal - Passed through ESE | G6: 0 | H6: 0 | I6: 0 | J6: HM03
A7: 2019 | B7: 40704 | C7: 407 | D7: HM | E7: 04 | F7: Grants - Federal - Direct or other pass-through | G7: 303403 | H7: 0 | I7: 303403 | J7: HM04
A8: 2019 | B8: 40705a | C8: 407 | D8: HM | E8: 05a | F8: Grants - Private (restricted) | G8: 0 | H8: 0 | I8: 0 | J8: HM05a
A9: 2019 | B9: 40705b | C9: 407 | D9: HM | E9: 05b | F9: Grants - Private (unrestricted) | G9: 0 | H9: 0 | I9: 0 | J9: HM05b
A10: 2019 | B10: 40706 | C10: 407 | D10: HM | E10: 06 | F10: Nutrition Funding - State | G10: 0 | H10: 0 | I10: 0 | J10: HM06
A11: 2019 | B11: 40707 | C11: 407 | D11: HM | E11: 07 | F11: Nutrition Funding - Federal | G11: 0 | H11: 0 | I11: 0 | J11: HM07
A12: 2019 | B12: 40708 | C12: 407 | D12: HM | E12: 08 | F12: Nutrition Funding - Fees | G12: 0 | H12: 0 | I12: 0 | J12: HM08
A13: 2019 | B13: 40709 | C13: 407 | D13: HM | E13: 09 | F13: Other Program / Student Activity Fees | G13: 0 | H13: 0 | I13: 0 | J13: HM09
A14: 2019 | B14: 40710 | C14: 407 | D14: HM | E14: 10 | F14: Regional Transportation Aid | G14: 0 | H14: 0 | I14: 0 | J14: HM10
A15: 2019 | B15: 40711 | C15: 407 | D15: HM | E15: 11 | F15: Medicaid Reimbursements | G15: 0 | H15: 0 | I15: 0 | J15: HM11
A16: 2019 | B16: 40712 | C16: 407 | D16: HM | E16: 12 | F16: Circuit Breaker Reimbursements | G16: 0 | H16: 0 | I16: 0 | J16: HM12
A17: 2019 | B17: 40713a | C17: 407 | D17: HM | E17: 13a | F17: Contributions, in-kind, host district | G17: 0 | H17: 0 | I17: 0 | J17: HM13a
A18: 2019 | B18: 40713b | C18: 407 | D18: HM | E18: 13b | F18: Contributions, in-kind, other | G18: 1023884 | H18: 0 | I18: 1023884 | J18: HM13b
A19: 2019 | B19: 40713c | C19: 407 | D19: HM | E19: 13c | F19: Contributions, on-behalf, pension | G19: 0 | H19: 0 | I19: 0 | J19: HM13c
A20: 2019 | B20: 40714 | C20: 407 | D20: HM | E20: 14 | F20: Contributions, from Component Unit (restricted) | G20: 0 | H20: 0 | I20: 0 | J20: HM14
A21: 2019 | B21: 40714b | C21: 407 | D21: HM | E21: 14b | F21: Contributions, from Component Unit (unrestricted) | G21: 0 | H21: 0 | I21: 0 | J21: HM14b
A22: 2019 | B22: 40715 | C22: 407 | D22: HM | E22: 15 | F22: Contributions / Fundraising (restricted) | G22: 0 | H22: 0 | I22: 0 | J22: HM15
A23: 2019 | B23: 40715b | C23: 407 | D23: HM | E23: 15b | F23: Contributions / Fundraising (unrestricted) | G23: 0 | H23: 0 | I23: 0 | J23: HM15b
A24: 2019 | B24: 40716 | C24: 407 | D24: HM | E24: 16 | F24: Interest / Investment Income (restricted) | G24: 0 | H24: 0 | I24: 0 | J24: HM16
A25: 2019 | B25: 40716a | C25: 407 | D25: HM | E25: 16a | F25: Interest / Investment Income (unrestricted) | G25: 0 | H25: 0 | I25: 0 | J25: HM16a
A26: 2019 | B26: 40717 | C26: 407 | D26: HM | E26: 17 | F26: Rental Income | G26: 0 | H26: 0 | I26: 0 | J26: HM17
A27: 2019 | B27: 40718 | C27: 407 | D27: HM | E27: 18 | F27: Loan Forgiveness or Other Reimbursement | G27: 0 | H27: 0 | I27: 0 | J27: HM18
A28: 2019 | B28: 40719 | C28: 407 | D28: HM | E28: 19 | F28: Miscellaneous Income | G28: 4033 | H28: 0 | I28: 4033 | J28: HM19
A29: 2019 | B29: 40720 | C29: 407 | D29: HM | E29: 20 | F29: TOTAL REVENUES | G29: 5344133 | H29: 0 | I29: 5344133 | J29: HM20
A30: 2019 | B30: 40721 | C30: 407 | D30: HM | E30: 21 | F30: Administration | G30: 1092389.48 | H30: 0 | I30: 1092389.48 | J30: HM21
A31: 2019 | B31: 40722 | C31: 407 | D31: HM | E31: 22 | F31: Instructional Services | G31: 2664023.761 | H31: 0 | I31: 2664023.761 | J31: HM22
A32: 2019 | B32: 40723 | C32: 407 | D32: HM | E32: 23 | F32: Pupil Services | G32: 535683.39 | H32: 0 | I32: 535683.39 | J32: HM23
A33: 2019 | B33: 40724 | C33: 407 | D33: HM | E33: 24 | F33: Operation & Maintenance of Plant | G33: 164211.74 | H33: 0 | I33: 164211.74 | J33: HM24
A34: 2019 | B34: 40725 | C34: 407 | D34: HM | E34: 25 | F34: Benefits and Other Fixed Charges | G34: 945257.3 | H34: 0 | I34: 945257.3 | J34: HM25
A35: 2019 | B35: 40726 | C35: 407 | D35: HM | E35: 26 | F35: Community Services | G35: 0 | H35: 0 | I35: 0 | J35: HM26
A36: 2019 | B36: 40727 | C36: 407 | D36: HM | E36: 27 | F36: Non-Operating Financing Expenses | G36: 0 | H36: 0 | I36: 0 | J36: HM27
A37: 2019 | B37: 40728 | C37: 407 | D37: HM | E37: 28 | F37: Component Unit Expenses | G37: 0 | H37: 0 | I37: 0 | J37: HM28
A38: 2019 | B38: 40729 | C38: 407 | D38: HM | E38: 29 | F38: Contributions to School | G38: 0 | H38: 0 | I38: 0 | J38: HM29
A39: 2019 | B39: 40730 | C39: 407 | D39: HM | E39: 30 | F39: TOTAL EXPENSES | G39: 5401565.671 | H39: 0 | I39: 5401565.671 | J39: HM30
A40: 2019 | B40: 40731 | C40: 407 | D40: HM | E40: 31 | F40: TOTAL GAIN/(LOSS) | G40: -57432.671 | H40: 0 | I40: -57432.671 | J40: HM31
A41: 2019 | B41: 40732 | C41: 407 | D41: HM | E41: 32 | F41: Gain/Loss on Sale of Asset or Lease Transaction | G41: 0 | H41: 0 | I41: 0 | J41: HM32
A42: 2019 | B42: 40733 | C42: 407 | D42: HM | E42: 33 | F42: Other Gain/Loss | G42: 0 | H42: 0 | I42: 0 | J42: HM33
A43: 2019 | B43: 40734 | C43: 407 | D43: HM | E43: 34 | F43: TOTAL CHANGES IN NET ASSETS: | G43: -57432.671 | H43: 0 | I43: -57432.671 | J43: HM34
A44: 2019 | B44: 40735 | C44: 407 | D44: HM | E44: 35 | F44: NET ASSETS AT BEGINNING OF YEAR | G44: 160364 | H44: 0 | I44: 160364 | J44: HM35
A45: 2019 | B45: 40736 | C45: 407 | D45: HM | E45: 36 | F45: NET ASSETS AT END OF YEAR | G45: 102931 | H45: 0 | I45: 102931 | J45: HM36
A46: 2019 | B46: 40901 | C46: 409 | D46: C | E46: 01 | F46: Tuition | G46: 5572055 | H46: 0 | I46: 5572055 | J46: C01
A47: 2019 | B47: 40902a | C47: 409 | D47: C | E47: 02a | F47: Grants - State - passed through ESE | G47: 0 | H47: 0 | I47: 0 | J47: C02a
A48: 2019 | B48: 40902b | C48: 409 | D48: C | E48: 02b | F48: Grants - State - other non-ESE pass-through | G48: 0 | H48: 0 | I48: 0 | J48: C02b
A49: 2019 | B49: 40903 | C49: 409 | D49: C | E49: 03 | F49: Grants - Federal - Passed through ESE | G49: 328956 | H49: 0 | I49: 328956 | J49: C03
A50: 2019 | B50: 40904 | C50: 409 | D50: C | E50: 04 | F50: Grants - Federal - Direct or other pass-through | G50: 0 | H50: 0 | I50: 0 | J50: C04
A51: 2019 | B51: 40905a | C51: 409 | D51: C | E51: 05a | F51: Grants - Private (restricted) | G51: 329568 | H51: 937550 | I51: 1267118 | J51: C05a
A52: 2019 | B52: 40905b | C52: 409 | D52: C | E52: 05b | F52: Grants - Private (unrestricted) | G52: 135 | H52: 247613 | I52: 247748 | J52: C05b
A53: 2019 | B53: 40906 | C53: 409 | D53: C | E53: 06 | F53: Nutrition Funding - State | G53: 3050 | H53: 0 | I53: 3050 | J53: C06
A54: 2019 | B54: 40907 | C54: 409 | D54: C | E54: 07 | F54: Nutrition Funding - Federal | G54: 316330 | H54: 0 | I54: 316330 | J54: C07
A55: 2019 | B55: 40908 | C55: 409 | D55: C | E55: 08 | F55: Nutrition Funding - Fees | G55: 0 | H55: 0 | I55: 0 | J55: C08
A56: 2019 | B56: 40909 | C56: 409 | D56: C | E56: 09 | F56: Other Program / Student Activity Fees | G56: 0 | H56: 0 | I56: 0 | J56: C09
A57: 2019 | B57: 40910 | C57: 409 | D57: C | E57: 10 | F57: Regional Transportation Aid | G57: 0 | H57: 0 | I57: 0 | J57: C10
A58: 2019 | B58: 40911 | C58: 409 | D58: C | E58: 11 | F58: Medicaid Reimbursements | G58: 5384 | H58: 0 | I58: 5384 | J58: C11
A59: 2019 | B59: 40912 | C59: 409 | D59: C | E59: 12 | F59: Circuit Breaker Reimbursements | G59: 0 | H59: 0 | I59: 0 | J59: C12
A60: 2019 | B60: 40913a | C60: 409 | D60: C | E60: 13a | F60: Contributions, in-kind, host district | G60: 573964 | H60: 0 | I60: 573964 | J60: C13a
A61: 2019 | B61: 40913b | C61: 409 | D61: C | E61: 13b | F61: Contributions, in-kind, other | G61: 0 | H61: 0 | I61: 0 | J61: C13b
A62: 2019 | B62: 40913c | C62: 409 | D62: C | E62: 13c | F62: Contributions, on-behalf, pension | G62: 776871 | H62: 0 | I62: 776871 | J62: C13c
A63: 2019 | B63: 40914 | C63: 409 | D63: C | E63: 14 | F63: Contributions, from Component Unit (restricted) | G63: 0 | H63: 0 | I63: 0 | J63: C14
A64: 2019 | B64: 40914b | C64: 409 | D64: C | E64: 14b | F64: Contributions, from Component Unit (unrestricted) | G64: 247613 | H64: 0 | I64: 247613 | J64: C14b
A65: 2019 | B65: 40915 | C65: 409 | D65: C | E65: 15 | F65: Contributions / Fundraising (restricted) | G65: 0 | H65: 0 | I65: 0 | J65: C15
A66: 2019 | B66: 40915b | C66: 409 | D66: C | E66: 15b | F66: Contributions / Fundraising (unrestricted) | G66: 0 | H66: 0 | I66: 0 | J66: C15b
A67: 2019 | B67: 40916 | C67: 409 | D67: =VLOOKUP(C67, TYPE, 3, FALSE) -> C | E67: 16 | F67: Interest / Investment Income (restricted) | G67: 0 | H67: 0 | I67: 0 | J67: C16
A68: 2019 | B68: =C68&E68 -> 40916a | C68: 409 | D68: C | E68: 16a | F68: Interest / Investment Income (unrestricted) | G68: 1164 | H68: 110861 | I68: 112025 | J68: =D68&E68 -> C16a
A69: 2019 | B69: 40917 | C69: 409 | D69: C | E69: 17 | F69: Rental Income | G69: 120 | H69: 658893 | I69: 659013 | J69: C17
A70: 2019 | B70: 40918 | C70: 409 | D70: C | E70: 18 | F70: Loan Forgiveness or Other Reimbursement | G70: 0 | H70: 0 | I70: 0 | J70: C18
A71: 2019 | B71: 40919 | C71: 409 | D71: C | E71: 19 | F71: Miscellaneous Income | G71: 4179 | H71: 519570 | I71: 523749 | J71: C19
A72: 2019 | B72: 40920 | C72: 409 | D72: C | E72: 20 | F72: TOTAL REVENUES | G72: 8159389 | H72: 2474487 | I72: 10633876 | J72: C20
A73: 2019 | B73: 40921 | C73: 409 | D73: C | E73: 21 | F73: Administration | G73: 748278 | H73: 0 | I73: 748278 | J73: C21
A74: 2019 | B74: 40922 | C74: 409 | D74: C | E74: 22 | F74: Instructional Services | G74: 3687102 | H74: 0 | I74: 3687102 | J74: C22
A75: 2019 | B75: 40923 | C75: 409 | D75: C | E75: 23 | F75: Pupil Services | G75: 1163290 | H75: 0 | I75: 1163290 | J75: C23
A76: 2019 | B76: 40924 | C76: 409 | D76: C | E76: 24 | F76: Operation & Maintenance of Plant | G76: 353866 | H76: 0 | I76: 353866 | J76: C24
A77: 2019 | B77: 40925 | C77: 409 | D77: C | E77: 25 | F77: Benefits and Other Fixed Charges | G77: 1325353 | H77: 0 | I77: 1325353 | J77: C25
A78: 2019 | B78: 40926 | C78: 409 | D78: C | E78: 26 | F78: Community Services | G78: 301 | H78: 0 | I78: 301 | J78: C26
A79: 2019 | B79: 40927 | C79: 409 | D79: C | E79: 27 | F79: Non-Operating Financing Expenses | G79: 1115341 | H79: 0 | I79: 1115341 | J79: C27
A80: 2019 | B80: 40928 | C80: 409 | D80: C | E80: 28 | F80: Component Unit Expenses | G80: 0 | H80: 1128503 | I80: 1128503 | J80: C28
A81: 2019 | B81: 40929 | C81: 409 | D81: C | E81: 29 | F81: Contributions to School | G81: 0 | H81: 657851 | I81: 657851 | J81: C29
A82: 2019 | B82: 40930 | C82: 409 | D82: C | E82: 30 | F82: TOTAL EXPENSES | G82: 8393531 | H82: 1786354 | I82: 10179885 | J82: C30
A83: 2019 | B83: 40931 | C83: 409 | D83: C | E83: 31 | F83: TOTAL GAIN/(LOSS) | G83: -234142 | H83: 688133 | I83: 453991 | J83: C31
A84: 2019 | B84: 40932 | C84: 409 | D84: C | E84: 32 | F84: Gain/Loss on Sale of Asset or Lease Transaction | G84: 0 | H84: 0 | I84: 0 | J84: C32
A85: 2019 | B85: 40933 | C85: 409 | D85: C | E85: 33 | F85: Other Gain/Loss | G85: 0 | H85: 0 | I85: 0 | J85: C33
A86: 2019 | B86: 40934 | C86: 409 | D86: C | E86: 34 | F86: TOTAL CHANGES IN NET ASSETS: | G86: -234142 | H86: 688133 | I86: 453991 | J86: C34
A87: 2019 | B87: 40935 | C87: 409 | D87: C | E87: 35 | F87: NET ASSETS AT BEGINNING OF YEAR | G87: 1087876 | H87: 2694948 | I87: 3782824 | J87: C35
A88: 2019 | B88: 40936 | C88: 409 | D88: C | E88: 36 | F88: NET ASSETS AT END OF YEAR | G88: 853734 | H88: 3383081 | I88: 4236815 | J88: C36
A89: 2019 | B89: 41001 | C89: 410 | D89: C | E89: 01 | F89: Tuition | G89: 19958619 | H89: 0 | I89: 19958619 | J89: C01
A90: 2019 | B90: 41002a | C90: 410 | D90: C | E90: 02a | F90: Grants - State - passed through ESE | G90: 0 | H90: 0 | I90: 0 | J90: C02a
A91: 2019 | B91: 41002b | C91: 410 | D91: C | E91: 02b | F91: Grants - State - other non-ESE pass-through | G91: 0 | H91: 0 | I91: 0 | J91: C02b
A92: 2019 | B92: 41003 | C92: 410 | D92: C | E92: 03 | F92: Grants - Federal - Passed through ESE | G92: 1122780 | H92: 0 | I92: 1122780 | J92: C03
A93: 2019 | B93: 41004 | C93: 410 | D93: C | E93: 04 | F93: Grants - Federal - Direct or other pass-through | G93: 0 | H93: 0 | I93: 0 | J93: C04
A94: 2019 | B94: 41005a | C94: 410 | D94: C | E94: 05a | F94: Grants - Private (restricted) | G94: 182382 | H94: 0 | I94: 182382 | J94: C05a
A95: 2019 | B95: 41005b | C95: 410 | D95: C | E95: 05b | F95: Grants - Private (unrestricted) | G95: 0 | H95: 0 | I95: 0 | J95: C05b
A96: 2019 | B96: 41006 | C96: 410 | D96: C | E96: 06 | F96: Nutrition Funding - State | G96: 10641 | H96: 0 | I96: 10641 | J96: C06
A97: 2019 | B97: 41007 | C97: 410 | D97: C | E97: 07 | F97: Nutrition Funding - Federal | G97: 528294 | H97: 0 | I97: 528294 | J97: C07
A98: 2019 | B98: 41008 | C98: 410 | D98: C | E98: 08 | F98: Nutrition Funding - Fees | G98: 20769 | H98: 0 | I98: 20769 | J98: C08
A99: 2019 | B99: 41009 | C99: 410 | D99: C | E99: 09 | F99: Other Program / Student Activity Fees | G99: 0 | H99: 0 | I99: 0 | J99: C09
A100: 2019 | B100: 41010 | C100: 410 | D100: C | E100: 10 | F100: Regional Transportation Aid | G100: 248968 | H100: 0 | I100: 248968 | J100: C10
A101: 2019 | B101: 41011 | C101: 410 | D101: C | E101: 11 | F101: Medicaid Reimbursements | G101: 64016 | H101: 0 | I101: 64016 | J101: C11
A102: 2019 | B102: 41012 | C102: 410 | D102: C | E102: 12 | F102: Circuit Breaker Reimbursements | G102: 0 | H102: 0 | I102: 0 | J102: C12
A103: 2019 | B103: 41013a | C103: 410 | D103: C | E103: 13a | F103: Contributions, in-kind, host district | G103: 133336 | H103: 0 | I103: 133336 | J103: C13a
A104: 2019 | B104: 41013b | C104: 410 | D104: C | E104: 13b | F104: Contributions, in-kind, other | G104: 1291 | H104: 8127 | I104: 9418 | J104: C13b
A105: 2019 | B105: 41013c | C105: 410 | D105: C | E105: 13c | F105: Contributions, on-behalf, pension | G105: 3203453 | H105: 0 | I105: 3203453 | J105: C13c
A106: 2019 | B106: 41014 | C106: 410 | D106: C | E106: 14 | F106: Contributions, from Component Unit (restricted) | G106: 0 | H106: 0 | I106: 0 | J106: C14
A107: 2019 | B107: 41014b | C107: 410 | D107: C | E107: 14b | F107: Contributions, from Component Unit (unrestricted) | G107: 0 | H107: 0 | I107: 0 | J107: C14b
A108: 2019 | B108: 41015 | C108: 410 | D108: C | E108: 15 | F108: Contributions / Fundraising (restricted) | G108: 0 | H108: 3160633 | I108: 3160633 | J108: C15
A109: 2019 | B109: 41015b | C109: 410 | D109: C | E109: 15b | F109: Contributions / Fundraising (unrestricted) | G109: 2884 | H109: 867272 | I109: 870156 | J109: C15b
A110: 2019 | B110: 41016 | C110: 410 | D110: C | E110: 16 | F110: Interest / Investment Income (restricted) | G110: 0 | H110: 0 | I110: 0 | J110: C16
A111: 2019 | B111: 41016a | C111: 410 | D111: C | E111: 16a | F111: Interest / Investment Income (unrestricted) | G111: 0 | H111: 264786 | I111: 264786 | J111: C16a
A112: 2019 | B112: 41017 | C112: 410 | D112: C | E112: 17 | F112: Rental Income | G112: 755163 | H112: 690697 | I112: 1445860 | J112: C17
A113: 2019 | B113: 41018 | C113: 410 | D113: C | E113: 18 | F113: Loan Forgiveness or Other Reimbursement | G113: 0 | H113: 0 | I113: 0 | J113: C18
A114: 2019 | B114: 41019 | C114: 410 | D114: C | E114: 19 | F114: Miscellaneous Income | G114: 148264 | H114: 0 | I114: 148264 | J114: C19
A115: 2019 | B115: 41020 | C115: 410 | D115: C | E115: 20 | F115: TOTAL REVENUES | G115: 26380860 | H115: 4991515 | I115: 31372375 | J115: C20
A116: 2019 | B116: 41021 | C116: 410 | D116: C | E116: 21 | F116: Administration | G116: 1940096.35 | H116: 0 | I116: 1940096.35 | J116: C21
A117: 2019 | B117: 41022 | C117: 410 | D117: C | E117: 22 | F117: Instructional Services | G117: 13634193.41 | H117: 0 | I117: 13634193.41 | J117: C22
A118: 2019 | B118: 41023 | C118: 410 | D118: C | E118: 23 | F118: Pupil Services | G118: 1900898.49 | H118: 0 | I118: 1900898.49 | J118: C23
A119: 2019 | B119: 41024 | C119: 410 | D119: C | E119: 24 | F119: Operation & Maintenance of Plant | G119: 1088461 | H119: 0 | I119: 1088461 | J119: C24
A120: 2019 | B120: 41025 | C120: 410 | D120: C | E120: 25 | F120: Benefits and Other Fixed Charges | G120: 4564049 | H120: 0 | I120: 4564049 | J120: C25
A121: 2019 | B121: 41026 | C121: 410 | D121: C | E121: 26 | F121: Community Services | G121: 0 | H121: 0 | I121: 0 | J121: C26
A122: 2019 | B122: 41027 | C122: 410 | D122: C | E122: 27 | F122: Non-Operating Financing Expenses | G122: 2734070 | H122: 0 | I122: 2734070 | J122: C27
A123: 2019 | B123: 41028 | C123: 410 | D123: C | E123: 28 | F123: Component Unit Expenses | G123: 0 | H123: 1585180 | I123: 1585180 | J123: C28
A124: 2019 | B124: 41029 | C124: 410 | D124: C | E124: 29 | F124: Contributions to School | G124: 0 | H124: 168632 | I124: 168632 | J124: C29
A125: 2019 | B125: 41030 | C125: 410 | D125: C | E125: 30 | F125: TOTAL EXPENSES | G125: 25861768.25 | H125: 1753812 | I125: 27615580.25 | J125: C30
A126: 2019 | B126: 41031 | C126: 410 | D126: C | E126: 31 | F126: TOTAL GAIN/(LOSS) | G126: 519091.7513 | H126: 3237703 | I126: 3756794.751 | J126: C31
A127: 2019 | B127: 41032 | C127: 410 | D127: C | E127: 32 | F127: Gain/Loss on Sale of Asset or Lease Transaction | G127: 0 | H127: 0 | I127: 0 | J127: C32
A128: 2019 | B128: 41033 | C128: 410 | D128: C | E128: 33 | F128: Other Gain/Loss | G128: 0 | H128: 1960001 | I128: 1960001 | J128: C33
A129: 2019 | B129: 41034 | C129: 410 | D129: C | E129: 34 | F129: TOTAL CHANGES IN NET ASSETS: | G129: 519091.7513 | H129: 5197704 | I129: 5716795.751 | J129: C34
A130: 2019 | B130: 41035 | C130: 410 | D130: C | E130: 35 | F130: NET ASSETS AT BEGINNING OF YEAR | G130: -1121200 | H130: 11230816 | I130: 10109616 | J130: C35
A131: 2019 | B131: 41036 | C131: 410 | D131: =VLOOKUP(C131, TYPE, 3, FALSE) -> C | E131: 36 | F131: NET ASSETS AT END OF YEAR | G131: -602108 | H131: 16428520 | I131: 15826412 | J131: C36
A132: 2019 | B132: =C132&E132 -> 41101 | C132: 411 | D132: HM | E132: 01 | F132: Tuition | G132: 4921349.04 | H132: 0 | I132: 4921349.04 | J132: =D132&E132 -> HM01
A133: 2019 | B133: 41102a | C133: 411 | D133: HM | E133: 02a | F133: Grants - State - passed through ESE | G133: 0 | H133: 0 | I133: 0 | J133: HM02a
A134: 2019 | B134: 41102b | C134: 411 | D134: HM | E134: 02b | F134: Grants - State - other non-ESE pass-through | G134: 0 | H134: 0 | I134: 0 | J134: HM02b
A135: 2019 | B135: 41103 | C135: 411 | D135: HM | E135: 03 | F135: Grants - Federal - Passed through ESE | G135: 708071 | H135: 0 | I135: 708071 | J135: HM03
A136: 2019 | B136: 41104 | C136: 411 | D136: HM | E136: 04 | F136: Grants - Federal - Direct or other pass-through | G136: 0 | H136: 0 | I136: 0 | J136: HM04
A137: 2019 | B137: 41105a | C137: 411 | D137: HM | E137: 05a | F137: Grants - Private (restricted) | G137: 0 | H137: 55000 | I137: 55000 | J137: HM05a
A138: 2019 | B138: 41105b | C138: 411 | D138: HM | E138: 05b | F138: Grants - Private (unrestricted) | G138: 55000 | H138: 0 | I138: 55000 | J138: HM05b
A139: 2019 | B139: 41106 | C139: 411 | D139: HM | E139: 06 | F139: Nutrition Funding - State | G139: 0 | H139: 0 | I139: 0 | J139: HM06
A140: 2019 | B140: 41107 | C140: 411 | D140: HM | E140: 07 | F140: Nutrition Funding - Federal | G140: 0 | H140: 0 | I140: 0 | J140: HM07
A141: 2019 | B141: 41108 | C141: 411 | D141: HM | E141: 08 | F141: Nutrition Funding - Fees | G141: 0 | H141: 0 | I141: 0 | J141: HM08
A142: 2019 | B142: 41109 | C142: 411 | D142: HM | E142: 09 | F142: Other Program / Student Activity Fees | G142: 1403 | H142: 0 | I142: 1403 | J142: HM09
A143: 2019 | B143: 41110 | C143: 411 | D143: HM | E143: 10 | F143: Regional Transportation Aid | G143: 0 | H143: 0 | I143: 0 | J143: HM10
A144: 2019 | B144: 41111 | C144: 411 | D144: HM | E144: 11 | F144: Medicaid Reimbursements | G144: 0 | H144: 0 | I144: 0 | J144: HM11
A145: 2019 | B145: 41112 | C145: 411 | D145: HM | E145: 12 | F145: Circuit Breaker Reimbursements | G145: 0 | H145: 0 | I145: 0 | J145: HM12
A146: 2019 | B146: 41113a | C146: 411 | D146: HM | E146: 13a | F146: Contributions, in-kind, host district | G146: 2124752.08 | H146: 0 | I146: 2124752.08 | J146: HM13a
A147: 2019 | B147: 41113b | C147: 411 | D147: HM | E147: 13b | F147: Contributions, in-kind, other | G147: 0 | H147: 0 | I147: 0 | J147: HM13b
A148: 2019 | B148: 41113c | C148: 411 | D148: HM | E148: 13c | F148: Contributions, on-behalf, pension | G148: 0 | H148: 0 | I148: 0 | J148: HM13c
A149: 2019 | B149: 41114 | C149: 411 | D149: HM | E149: 14 | F149: Contributions, from Component Unit (restricted) | G149: 0 | H149: 0 | I149: 0 | J149: HM14
A150: 2019 | B150: 41114b | C150: 411 | D150: HM | E150: 14b | F150: Contributions, from Component Unit (unrestricted) | G150: 0 | H150: 0 | I150: 0 | J150: HM14b
A151: 2019 | B151: 41115 | C151: 411 | D151: HM | E151: 15 | F151: Contributions / Fundraising (restricted) | G151: 0 | H151: 0 | I151: 0 | J151: HM15
A152: 2019 | B152: 41115b | C152: 411 | D152: HM | E152: 15b | F152: Contributions / Fundraising (unrestricted) | G152: 40395.3 | H152: 15897 | I152: 56292.3 | J152: HM15b
A153: 2019 | B153: 41116 | C153: 411 | D153: HM | E153: 16 | F153: Interest / Investment Income (restricted) | G153: 132.09 | H153: 2512 | I153: 2644.09 | J153: HM16
A154: 2019 | B154: 41116a | C154: 411 | D154: HM | E154: 16a | F154: Interest / Investment Income (unrestricted) | G154: 0 | H154: 0 | I154: 0 | J154: HM16a
A155: 2019 | B155: 41117 | C155: 411 | D155: HM | E155: 17 | F155: Rental Income | G155: 0 | H155: 0 | I155: 0 | J155: HM17
A156: 2019 | B156: 41118 | C156: 411 | D156: HM | E156: 18 | F156: Loan Forgiveness or Other Reimbursement | G156: 0 | H156: 0 | I156: 0 | J156: HM18
A157: 2019 | B157: 41119 | C157: 411 | D157: HM | E157: 19 | F157: Miscellaneous Income | G157: 5811.85 | H157: 0 | I157: 5811.85 | J157: HM19
A158: 2019 | B158: 41120 | C158: 411 | D158: HM | E158: 20 | F158: TOTAL REVENUES | G158: 7856914.36 | H158: 73409 | I158: 7930323.36 | J158: HM20
A159: 2019 | B159: 41121 | C159: 411 | D159: HM | E159: 21 | F159: Administration | G159: 562503.937 | H159: 0 | I159: 562503.937 | J159: HM21
A160: 2019 | B160: 41122 | C160: 411 | D160: HM | E160: 22 | F160: Instructional Services | G160: 5046844.65 | H160: 0 | I160: 5046844.65 | J160: HM22
A161: 2019 | B161: 41123 | C161: 411 | D161: HM | E161: 23 | F161: Pupil Services | G161: 449386.2532 | H161: 0 | I161: 449386.2532 | J161: HM23
A162: 2019 | B162: 41124 | C162: 411 | D162: HM | E162: 24 | F162: Operation & Maintenance of Plant | G162: 528900.68 | H162: 0 | I162: 528900.68 | J162: HM24
A163: 2019 | B163: 41125 | C163: 411 | D163: HM | E163: 25 | F163: Benefits and Other Fixed Charges | G163: 1202629.09 | H163: 0 | I163: 1202629.09 | J163: HM25
A164: 2019 | B164: 41126 | C164: 411 | D164: HM | E164: 26 | F164: Community Services | G164: 0 | H164: 0 | I164: 0 | J164: HM26
A165: 2019 | B165: 41127 | C165: 411 | D165: HM | E165: 27 | F165: Non-Operating Financing Expenses | G165: 0 | H165: 0 | I165: 0 | J165: HM27
A166: 2019 | B166: 41128 | C166: 411 | D166: HM | E166: 28 | F166: Component Unit Expenses | G166: 0 | H166: 18245 | I166: 18245 | J166: HM28
A167: 2019 | B167: 41129 | C167: 411 | D167: HM | E167: 29 | F167: Contributions to School | G167: 0 | H167: 55000 | I167: 55000 | J167: HM29
A168: 2019 | B168: 41130 | C168: 411 | D168: HM | E168: 30 | F168: TOTAL EXPENSES | G168: 7790264.61 | H168: 73245 | I168: 7863509.61 | J168: HM30
A169: 2019 | B169: 41131 | C169: 411 | D169: HM | E169: 31 | F169: TOTAL GAIN/(LOSS) | G169: 66649.75 | H169: 164 | I169: 66813.75 | J169: HM31
A170: 2019 | B170: 41132 | C170: 411 | D170: HM | E170: 32 | F170: Gain/Loss on Sale of Asset or Lease Transaction | G170: 0 | H170: 0 | I170: 0 | J170: HM32
A171: 2019 | B171: 41133 | C171: 411 | D171: HM | E171: 33 | F171: Other Gain/Loss | G171: 0 | H171: 0 | I171: 0 | J171: HM33
A172: 2019 | B172: 41134 | C172: 411 | D172: HM | E172: 34 | F172: TOTAL CHANGES IN NET ASSETS: | G172: 66649.75 | H172: 164 | I172: 66813.75 | J172: HM34
A173: 2019 | B173: 41135 | C173: 411 | D173: HM | E173: 35 | F173: NET ASSETS AT BEGINNING OF YEAR | G173: 238378 | H173: 267725 | I173: 506103 | J173: HM35
A174: 2019 | B174: 41136 | C174: 411 | D174: HM | E174: 36 | F174: NET ASSETS AT END OF YEAR | G174: 305028 | H174: 267889 | I174: 572917 | J174: HM36
A175: 2019 | B175: 41201 | C175: 412 | D175: C | E175: 01 | F175: Tuition | G175: 9076335 | H175: 0 | I175: 9076335 | J175: C01
A176: 2019 | B176: 41202a | C176: 412 | D176: C | E176: 02a | F176: Grants - State - passed through ESE | G176: 0 | H176: 0 | I176: 0 | J176: C02a
A177: 2019 | B177: 41202b | C177: 412 | D177: C | E177: 02b | F177: Grants - State - other non-ESE pass-through | G177: 0 | H177: 0 | I177: 0 | J177: C02b
A178: 2019 | B178: 41203 | C178: 412 | D178: C | E178: 03 | F178: Grants - Federal - Passed through ESE | G178: 429349 | H178: 0 | I178: 429349 | J178: C03
A179: 2019 | B179: 41204 | C179: 412 | D179: C | E179: 04 | F179: Grants - Federal - Direct or other pass-through | G179: 0 | H179: 0 | I179: 0 | J179: C04
A180: 2019 | B180: 41205a | C180: 412 | D180: C | E180: 05a | F180: Grants - Private (restricted) | G180: 0 | H180: 0 | I180: 0 | J180: C05a
A181: 2019 | B181: 41205b | C181: 412 | D181: C | E181: 05b | F181: Grants - Private (unrestricted) | G181: 0 | H181: 217376 | I181: 217376 | J181: C05b
A182: 2019 | B182: 41206 | C182: 412 | D182: C | E182: 06 | F182: Nutrition Funding - State | G182: 0 | H182: 0 | I182: 0 | J182: C06
A183: 2019 | B183: 41207 | C183: 412 | D183: C | E183: 07 | F183: Nutrition Funding - Federal | G183: 187687.84 | H183: 0 | I183: 187687.84 | J183: C07
A184: 2019 | B184: 41208 | C184: 412 | D184: C | E184: 08 | F184: Nutrition Funding - Fees | G184: 0 | H184: 0 | I184: 0 | J184: C08
A185: 2019 | B185: 41209 | C185: 412 | D185: C | E185: 09 | F185: Other Program / Student Activity Fees | G185: 0 | H185: 0 | I185: 0 | J185: C09
A186: 2019 | B186: 41210 | C186: 412 | D186: C | E186: 10 | F186: Regional Transportation Aid | G186: 0 | H186: 0 | I186: 0 | J186: C10
A187: 2019 | B187: 41211 | C187: 412 | D187: C | E187: 11 | F187: Medicaid Reimbursements | G187: 10857.14 | H187: 0 | I187: 10857.14 | J187: C11
A188: 2019 | B188: 41212 | C188: 412 | D188: C | E188: 12 | F188: Circuit Breaker Reimbursements | G188: 0 | H188: 0 | I188: 0 | J188: C12
A189: 2019 | B189: 41213a | C189: 412 | D189: C | E189: 13a | F189: Contributions, in-kind, host district | G189: 0 | H189: 0 | I189: 0 | J189: C13a
A190: 2019 | B190: 41213b | C190: 412 | D190: C | E190: 13b | F190: Contributions, in-kind, other | G190: 639352 | H190: 0 | I190: 639352 | J190: C13b
A191: 2019 | B191: 41213c | C191: 412 | D191: C | E191: 13c | F191: Contributions, on-behalf, pension | G191: 1419392 | H191: 0 | I191: 1419392 | J191: C13c
A192: 2019 | B192: 41214 | C192: 412 | D192: C | E192: 14 | F192: Contributions, from Component Unit (restricted) | G192: 0 | H192: 0 | I192: 0 | J192: C14
A193: 2019 | B193: 41214b | C193: 412 | D193: C | E193: 14b | F193: Contributions, from Component Unit (unrestricted) | G193: 295376 | H193: 50824 | I193: 346200 | J193: C14b
A194: 2019 | B194: 41215 | C194: 412 | D194: C | E194: 15 | F194: Contributions / Fundraising (restricted) | G194: 0 | H194: 0 | I194: 0 | J194: C15
A195: 2019 | B195: 41215b | C195: 412 | D195: =VLOOKUP(C195, TYPE, 3, FALSE) -> C | E195: 15b | F195: Contributions / Fundraising (unrestricted) | G195: 250 | H195: 19361 | I195: 19611 | J195: C15b
A196: 2019 | B196: =C196&E196 -> 41216 | C196: 412 | D196: C | E196: 16 | F196: Interest / Investment Income (restricted) | G196: 0 | H196: 0 | I196: 0 | J196: =D196&E196 -> C16
A197: 2019 | B197: 41216a | C197: 412 | D197: C | E197: 16a | F197: Interest / Investment Income (unrestricted) | G197: 147406.55 | H197: 292 | I197: 147698.55 | J197: C16a
A198: 2019 | B198: 41217 | C198: 412 | D198: C | E198: 17 | F198: Rental Income | G198: 0 | H198: 0 | I198: 0 | J198: C17
A199: 2019 | B199: 41218 | C199: 412 | D199: C | E199: 18 | F199: Loan Forgiveness or Other Reimbursement | G199: 0 | H199: 0 | I199: 0 | J199: C18
A200: 2019 | B200: 41219 | C200: 412 | D200: C | E200: 19 | F200: Miscellaneous Income | G200: 25 | H200: 0 | I200: 25 | J200: C19
... 3371 more rows

Sheet FE19 (hidden)
B1: 1 | C1: 2 | D1: 3 | E1: 4 | F1: 5 | G1: 6 | H1: 7 | I1: 8 | J1: 9 | K1: 10 | L1: 11 | M1: 12
A2: FY | B2: vlookup | C2: cha_code | D2: cha_type | E2: FuncExp_id | F2: Line_Desc | G2: general | H2: sped | I2: undist | J2: state | K2: federal | L2: private | M2: total
A3: 2019 | B3: =C3&E3 -> 407100 | C3: 407 | D3: =VLOOKUP(C3, TYPE, 3, FALSE) -> HM | E3: 100 | F3: Administration | G3: 0 | H3: 0 | I3: 1092389.48 | J3: 0 | K3: 0 | L3: 0 | M3: 1092389.48 | N3: =D3&E3 -> HM100
A4: 2019 | B4: =C4&E4 -> 407110 | C4: 407 | D4: HM | E4: 110 | F4: Subtotal - Board of Trustees | G4: 0 | H4: 0 | I4: 637.34 | J4: 0 | K4: 0 | L4: 0 | M4: 637.34 | N4: =D4&E4 -> HM110
A5: 2019 | B5: 407111 | C5: 407 | D5: HM | E5: 111 | F5: Contracted Services | G5: 0 | H5: 0 | I5: 0 | J5: 0 | K5: 0 | L5: 0 | M5: 0 | N5: HM111
A6: 2019 | B6: 407112 | C6: 407 | D6: HM | E6: 112 | F6: Travel and other expenses | G6: 0 | H6: 0 | I6: 637.34 | J6: 0 | K6: 0 | L6: 0 | M6: 637.34 | N6: HM112
A7: 2019 | B7: 407120a | C7: 407 | D7: HM | E7: 120a | F7: Subtotal - Non-Instructional Administration and Support Staff | G7: 0 | H7: 0 | I7: 1091752.14 | J7: 0 | K7: 0 | L7: 0 | M7: 1091752.14 | N7: HM120a
A8: 2019 | B8: 407121a | C8: 407 | D8: HM | E8: 121a | F8: Salaries - Professional and Support Staff | G8: 0 | H8: 0 | I8: 1088611.16 | J8: 0 | K8: 0 | L8: 0 | M8: 1088611.16 | N8: HM121a
A9: 2019 | B9: 407122a | C9: 407 | D9: HM | E9: 122a | F9: Contracted Services - Professional and Support Staff | G9: 0 | H9: 0 | I9: 0 | J9: 0 | K9: 0 | L9: 0 | M9: 0 | N9: HM122a
A10: 2019 | B10: 407123 | C10: 407 | D10: HM | E10: 123 | F10: Recruitment/Advertising | G10: 0 | H10: 0 | I10: 0 | J10: 0 | K10: 0 | L10: 0 | M10: 0 | N10: HM123
A11: 2019 | B11: 407124 | C11: 407 | D11: HM | E11: 124 | F11: Travel, Dues, and other expenses | G11: 0 | H11: 0 | I11: 0 | J11: 0 | K11: 0 | L11: 0 | M11: 0 | N11: HM124
A12: 2019 | B12: 407125 | C12: 407 | D12: HM | E12: 125 | F12: Supplies and Materials | G12: 0 | H12: 0 | I12: 3140.98 | J12: 0 | K12: 0 | L12: 0 | M12: 3140.98 | N12: HM125
A13: 2019 | B13: 407126 | C13: 407 | D13: HM | E13: 126 | F13: Depreciation - non instructional | G13: 0 | H13: 0 | I13: 0 | J13: 0 | K13: 0 | L13: 0 | M13: 0 | N13: HM126
A14: 2019 | B14: 407170 | C14: 407 | D14: HM | E14: 170 | F14: Subtotal - Development (Private) | G14: 0 | H14: 0 | I14: 0 | J14: 0 | K14: 0 | L14: 0 | M14: 0 | N14: HM170
A15: 2019 | B15: 407170a | C15: 407 | D15: HM | E15: 170a | F15: Salaries - Professional - Private | G15: 0 | H15: 0 | I15: 0 | J15: 0 | K15: 0 | L15: 0 | M15: 0 | N15: HM170a
A16: 2019 | B16: 407170b | C16: 407 | D16: HM | E16: 170b | F16: Contracted Services - Private | G16: 0 | H16: 0 | I16: 0 | J16: 0 | K16: 0 | L16: 0 | M16: 0 | N16: HM170b
A17: 2019 | B17: 407170c | C17: 407 | D17: HM | E17: 170c | F17: Fundraising - Private | G17: 0 | H17: 0 | I17: 0 | J17: 0 | K17: 0 | L17: 0 | M17: 0 | N17: HM170c
A18: 2019 | B18: 407171 | C18: 407 | D18: HM | E18: 171 | F18: Subtotal - Development (Public) | G18: 0 | H18: 0 | I18: 0 | J18: 0 | K18: 0 | L18: 0 | M18: 0 | N18: HM171
A19: 2019 | B19: 407171a | C19: 407 | D19: HM | E19: 171a | F19: Salaries - Professional - Public | G19: 0 | H19: 0 | I19: 0 | J19: 0 | K19: 0 | L19: 0 | M19: 0 | N19: HM171a
A20: 2019 | B20: 407171b | C20: 407 | D20: HM | E20: 171b | F20: Contracted Services - Public | G20: 0 | H20: 0 | I20: 0 | J20: 0 | K20: 0 | L20: 0 | M20: 0 | N20: HM171b
A21: 2019 | B21: 407200 | C21: 407 | D21: HM | E21: 200 | F21: Instructional Services | G21: 1882142.867 | H21: 457142.4438 | I21: 23406.02 | J21: 0 | K21: 301332.43 | L21: 0 | M21: 2664023.761 | N21: HM200
A22: 2019 | B22: 407210 | C22: 407 | D22: HM | E22: 210 | F22: Instructional Subtotal - Instructional Leadership | G22: 240687.2523 | H22: 29643.2177 | I22: 0 | J22: 0 | K22: 40637.44 | L22: 0 | M22: 310967.91 | N22: HM210
A23: 2019 | B23: 407211 | C23: 407 | D23: HM | E23: 211 | F23: Salaries - Professional | G23: 119576.6264 | H23: 14779.1336 | I23: 0 | J23: 0 | K23: 0 | L23: 0 | M23: 134355.76 | N23: HM211
A24: 2019 | B24: 407212 | C24: 407 | D24: HM | E24: 212 | F24: Salaries - Clerical | G24: 103926.9376 | H24: 12844.9024 | I24: 0 | J24: 0 | K24: 40637.44 | L24: 0 | M24: 157409.28 | N24: HM212
A25: 2019 | B25: 407213 | C25: 407 | D25: HM | E25: 213 | F25: Contracted Services | G25: 0 | H25: 0 | I25: 0 | J25: 0 | K25: 0 | L25: 0 | M25: 0 | N25: HM213
A26: 2019 | B26: 407214 | C26: 407 | D26: HM | E26: 214 | F26: Supplies and Materials | G26: 1877.16 | H26: 127.37 | I26: 0 | J26: 0 | K26: 0 | L26: 0 | M26: 2004.53 | N26: HM214
A27: 2019 | B27: 407215 | C27: 407 | D27: HM | E27: 215 | F27: Travel and other expenses | G27: 15306.5283 | H27: 1891.8117 | I27: 0 | J27: 0 | K27: 0 | L27: 0 | M27: 17198.34 | N27: HM215
A28: 2019 | B28: 407220 | C28: 407 | D28: HM | E28: 220 | F28: Instructional Subtotal - Classroom and Specialist Teachers | G28: 1365245.59 | H28: 393050.8 | I28: 0 | J28: 0 | K28: 74988 | L28: 0 | M28: 1833284.39 | N28: HM220
A29: 2019 | B29: 407221 | C29: 407 | D29: HM | E29: 221 | F29: Salaries - Teachers, Classroom | G29: 1098206.58 | H29: 359928.81 | I29: 0 | J29: 0 | K29: 74040 | L29: 0 | M29: 1532175.39 | N29: HM221
A30: 2019 | B30: 407222 | C30: 407 | D30: HM | E30: 222 | F30: Salaries - Teachers, Specialists | G30: 267039.01 | H30: 33121.99 | I30: 0 | J30: 0 | K30: 948 | L30: 0 | M30: 301109 | N30: HM222
A31: 2019 | B31: 407230 | C31: 407 | D31: HM | E31: 230 | F31: Instructional Subtotal - Other Teaching Services | G31: 54973.84 | H31: 6849.241 | I31: 0 | J31: 0 | K31: 165545.99 | L31: 0 | M31: 227369.071 | N31: HM230
A32: 2019 | B32: 407231 | C32: 407 | D32: HM | E32: 231 | F32: Salaries - Professional | G32: 1214.26 | H32: 150.08 | I32: 0 | J32: 0 | K32: 0 | L32: 0 | M32: 1364.34 | N32: HM231
A33: 2019 | B33: 407232 | C33: 407 | D33: HM | E33: 232 | F33: Salaries - Non-clerical Paraprofessionals | G33: 53759.58 | H33: 6699.161 | I33: 0 | J33: 0 | K33: 165545.99 | L33: 0 | M33: 226004.731 | N33: HM232
A34: 2019 | B34: 407233 | C34: 407 | D34: HM | E34: 233 | F34: Salaries - Clerical | G34: 0 | H34: 0 | I34: 0 | J34: 0 | K34: 0 | L34: 0 | M34: 0 | N34: HM233
A35: 2019 | B35: 407234 | C35: 407 | D35: HM | E35: 234 | F35: Contracted Services | G35: 0 | H35: 0 | I35: 0 | J35: 0 | K35: 0 | L35: 0 | M35: 0 | N35: HM234
A36: 2019 | B36: 407240 | C36: 407 | D36: HM | E36: 240 | F36: Instructional Subtotal - Professional Development | G36: 52482.41 | H36: 6570 | I36: 10897.13 | J36: 0 | K36: 18071 | L36: 0 | M36: 88020.54 | N36: HM240
A37: 2019 | B37: 407241 | C37: 407 | D37: HM | E37: 241 | F37: Salaries - Professional | G37: 52482.41 | H37: 6570 | I37: 0 | J37: 0 | K37: 6500 | L37: 0 | M37: 65552.41 | N37: HM241
A38: 2019 | B38: 407242 | C38: 407 | D38: HM | E38: 242 | F38: Contracted Services | G38: 0 | H38: 0 | I38: 0 | J38: 0 | K38: 0 | L38: 0 | M38: 0 | N38: HM242
A39: 2019 | B39: 407243 | C39: 407 | D39: HM | E39: 243 | F39: Supplies and Materials | G39: 0 | H39: 0 | I39: 10897.13 | J39: 0 | K39: 11571 | L39: 0 | M39: 22468.13 | N39: HM243
A40: 2019 | B40: 407244 | C40: 407 | D40: HM | E40: 244 | F40: Travel and other expenses | G40: 0 | H40: 0 | I40: 0 | J40: 0 | K40: 0 | L40: 0 | M40: 0 | N40: HM244
A41: 2019 | B41: 407250 | C41: 407 | D41: HM | E41: 250 | F41: Instructional Subtotal - Guidance, Psychological & Testing | G41: 90057.87 | H41: 11130.5 | I41: 0 | J41: 0 | K41: 0 | L41: 0 | M41: 101188.37 | N41: HM250
A42: 2019 | B42: 407251 | C42: 407 | D42: HM | E42: 251 | F42: Salaries - Professional | G42: 90057.87 | H42: 11130.5 | I42: 0 | J42: 0 | K42: 0 | L42: 0 | M42: 101188.37 | N42: HM251
A43: 2019 | B43: 407252 | C43: 407 | D43: HM | E43: 252 | F43: Salaries - Clerical | G43: 0 | H43: 0 | I43: 0 | J43: 0 | K43: 0 | L43: 0 | M43: 0 | N43: HM252
A44: 2019 | B44: 407253 | C44: 407 | D44: HM | E44: 253 | F44: Contracted Services | G44: 0 | H44: 0 | I44: 0 | J44: 0 | K44: 0 | L44: 0 | M44: 0 | N44: HM253
A45: 2019 | B45: 407254 | C45: 407 | D45: HM | E45: 254 | F45: Supplies and Materials | G45: 0 | H45: 0 | I45: 0 | J45: 0 | K45: 0 | L45: 0 | M45: 0 | N45: HM254
A46: 2019 | B46: 407260 | C46: 407 | D46: HM | E46: 260 | F46: Instructional Subtotal - Materials, Equipment & Technology | G46: 78695.9049 | H46: 9898.6851 | I46: 12508.89 | J46: 0 | K46: 2090 | L46: 0 | M46: 103193.48 | N46: HM260
A47: 2019 | B47: 407261 | C47: 407 | D47: HM | E47: 261 | F47: Textbooks & Related Media/Materials | G47: 25065.733 | H47: 2961.217 | I47: 0 | J47: 0 | K47: 0 | L47: 0 | M47: 28026.95 | N47: HM261
A48: 2019 | B48: 407262 | C48: 407 | D48: HM | E48: 262 | F48: Other Instructional Materials | G48: 0 | H48: 0 | I48: 0 | J48: 0 | K48: 0 | L48: 0 | M48: 0 | N48: HM262
A49: 2019 | B49: 407263 | C49: 407 | D49: HM | E49: 263 | F49: Instructional Equipment | G49: 248.9419 | H49: 30.7681 | I49: 0 | J49: 0 | K49: 0 | L49: 0 | M49: 279.71 | N49: HM263
A50: 2019 | B50: 407264 | C50: 407 | D50: HM | E50: 264 | F50: General Supplies | G50: 35679.66 | H50: 4412.4 | I50: 0 | J50: 0 | K50: 0 | L50: 0 | M50: 40092.06 | N50: HM264
A51: 2019 | B51: 407265 | C51: 407 | D51: HM | E51: 265 | F51: Other Instructional Services | G51: 0 | H51: 0 | I51: 0 | J51: 0 | K51: 0 | L51: 0 | M51: 0 | N51: HM265
A52: 2019 | B52: 407266 | C52: 407 | D52: HM | E52: 266 | F52: Classroom Instructional Technology Hardware | G52: 0 | H52: 0 | I52: 0 | J52: 0 | K52: 0 | L52: 0 | M52: 0 | N52: HM266
A53: 2019 | B53: 407267 | C53: 407 | D53: HM | E53: 267 | F53: Other Instructional Technology Hardware | G53: 0 | H53: 0 | I53: 12508.89 | J53: 0 | K53: 0 | L53: 0 | M53: 12508.89 | N53: HM267
A54: 2019 | B54: 407268a | C54: 407 | D54: HM | E54: 268a | F54: Classroom Instructional Software | G54: 0 | H54: 0 | I54: 0 | J54: 0 | K54: 0 | L54: 0 | M54: 0 | N54: HM268a
A55: 2019 | B55: 407268b | C55: 407 | D55: HM | E55: 268b | F55: Other Instructional Software | G55: 17701.57 | H55: 2494.3 | I55: 0 | J55: 0 | K55: 2090 | L55: 0 | M55: 22285.87 | N55: HM268b
A56: 2019 | B56: 407269 | C56: 407 | D56: HM | E56: 269 | F56: Depreciation for Furniture, Equipment & Technology | G56: 0 | H56: 0 | I56: 0 | J56: 0 | K56: 0 | L56: 0 | M56: 0 | N56: HM269
A57: 2019 | B57: 407300 | C57: 407 | D57: HM | E57: 300 | F57: Pupil Services | G57: 296539.1 | H57: 36650.9 | I57: 202493.39 | J57: 0 | K57: 0 | L57: 0 | M57: 535683.39 | N57: HM300
A58: 2019 | B58: 407310 | C58: 407 | D58: HM | E58: 310 | F58: Health Services | G58: 0 | H58: 0 | I58: 67876.02 | J58: 0 | K58: 0 | L58: 0 | M58: 67876.02 | N58: HM310
A59: 2019 | B59: 407315 | C59: 407 | D59: HM | E59: 315 | F59: Health Services - Contracted | G59: 0 | H59: 0 | I59: 0 | J59: 0 | K59: 0 | L59: 0 | M59: 0 | N59: HM315
A60: 2019 | B60: 407320 | C60: 407 | D60: HM | E60: 320 | F60: Athletic Services (including Transportation) | G60: 0 | H60: 0 | I60: 78372.58 | J60: 0 | K60: 0 | L60: 0 | M60: 78372.58 | N60: HM320
A61: 2019 | B61: 407325 | C61: 407 | D61: HM | E61: 325 | F61: Athletic Services (including Transportation) - Contracted | G61: 0 | H61: 0 | I61: 0 | J61: 0 | K61: 0 | L61: 0 | M61: 0 | N61: HM325
A62: 2019 | B62: 407330 | C62: 407 | D62: HM | E62: 330 | F62: Food Services | G62: 0 | H62: 0 | I62: 56244.79 | J62: 0 | K62: 0 | L62: 0 | M62: 56244.79 | N62: HM330
A63: 2019 | B63: 407335 | C63: 407 | D63: HM | E63: 335 | F63: Food Services - Contracted | G63: 0 | H63: 0 | I63: 0 | J63: 0 | K63: 0 | L63: 0 | M63: 0 | N63: HM335
A64: 2019 | B64: 407340 | C64: 407 | D64: HM | E64: 340 | F64: Student Transportation (to and from school) | G64: 296539.1 | H64: 36650.9 | I64: 0 | J64: 0 | K64: 0 | L64: 0 | M64: 333190 | N64: HM340
A65: 2019 | B65: 407345 | C65: 407 | D65: HM | E65: 345 | F65: Student Transportation (to and from school) - Contracted | G65: 0 | H65: 0 | I65: 0 | J65: 0 | K65: 0 | L65: 0 | M65: 0 | N65: HM345
A66: 2019 | B66: 407350 | C66: 407 | D66: HM | E66: 350 | F66: Depreciation of Transportation Vehicles | G66: 0 | H66: 0 | I66: 0 | J66: 0 | K66: 0 | L66: 0 | M66: 0 | N66: HM350
A67: 2019 | B67: 407360 | C67: 407 | D67: =VLOOKUP(C67, TYPE, 3, FALSE) -> HM | E67: 360 | F67: Other Student Activities | G67: 0 | H67: 0 | I67: 0 | J67: 0 | K67: 0 | L67: 0 | M67: 0 | N67: HM360
A68: 2019 | B68: =C68&E68 -> 407400 | C68: 407 | D68: HM | E68: 400 | F68: Operation & Maintenance of Plant | G68: 0 | H68: 0 | I68: 164211.74 | J68: 0 | K68: 0 | L68: 0 | M68: 164211.74 | N68: =D68&E68 -> HM400
A69: 2019 | B69: 407410 | C69: 407 | D69: HM | E69: 410 | F69: Operation & Maintenance of Buildings and Grounds | G69: 0 | H69: 0 | I69: 73187.18 | J69: 0 | K69: 0 | L69: 0 | M69: 73187.18 | N69: HM410
A70: 2019 | B70: 407420 | C70: 407 | D70: HM | E70: 420 | F70: Utilities | G70: 0 | H70: 0 | I70: 91024.56 | J70: 0 | K70: 0 | L70: 0 | M70: 91024.56 | N70: HM420
A71: 2019 | B71: 407430 | C71: 407 | D71: HM | E71: 430 | F71: Maintenance of Equipment | G71: 0 | H71: 0 | I71: 0 | J71: 0 | K71: 0 | L71: 0 | M71: 0 | N71: HM430
A72: 2019 | B72: 407440 | C72: 407 | D72: HM | E72: 440 | F72: Networking and Telecommunications | G72: 0 | H72: 0 | I72: 0 | J72: 0 | K72: 0 | L72: 0 | M72: 0 | N72: HM440
A73: 2019 | B73: 407500 | C73: 407 | D73: HM | E73: 500 | F73: Fixed Charges | G73: 0 | H73: 0 | I73: 943186.74 | J73: 0 | K73: 2070.56 | L73: 0 | M73: 945257.3 | N73: HM500
A74: 2019 | B74: 407510 | C74: 407 | D74: HM | E74: 510 | F74: Employee Retirement & Taxes | G74: 0 | H74: 0 | I74: 0 | J74: 0 | K74: 0 | L74: 0 | M74: 0 | N74: HM510
A75: 2019 | B75: 407520 | C75: 407 | D75: HM | E75: 520 | F75: Fringe Benefits | G75: 0 | H75: 0 | I75: 936052.84 | J75: 0 | K75: 2070.56 | L75: 0 | M75: 938123.4 | N75: HM520
A76: 2019 | B76: 407530 | C76: 407 | D76: HM | E76: 530 | F76: Insurance (non-employee) | G76: 0 | H76: 0 | I76: 7133.9 | J76: 0 | K76: 0 | L76: 0 | M76: 7133.9 | N76: HM530
A77: 2019 | B77: 407550 | C77: 407 | D77: HM | E77: 550 | F77: Rental/Lease of Equipment | G77: 0 | H77: 0 | I77: 0 | J77: 0 | K77: 0 | L77: 0 | M77: 0 | N77: HM550
A78: 2019 | B78: 407560 | C78: 407 | D78: HM | E78: 560 | F78: Short-Term Interest | G78: 0 | H78: 0 | I78: 0 | J78: 0 | K78: 0 | L78: 0 | M78: 0 | N78: HM560
A79: 2019 | B79: 407600 | C79: 407 | D79: HM | E79: 600 | F79: Community Services | G79: 0 | H79: 0 | I79: 0 | J79: 0 | K79: 0 | L79: 0 | M79: 0 | N79: HM600
A80: 2019 | B80: 407610 | C80: 407 | D80: HM | E80: 610 | F80: Dissemination Activities | G80: 0 | H80: 0 | I80: 0 | J80: 0 | K80: 0 | L80: 0 | M80: 0 | N80: HM610
A81: 2019 | B81: 407620 | C81: 407 | D81: HM | E81: 620 | F81: Civic Activities | G81: 0 | H81: 0 | I81: 0 | J81: 0 | K81: 0 | L81: 0 | M81: 0 | N81: HM620
A82: 2019 | B82: 407700 | C82: 407 | D82: HM | E82: 700 | F82: Non-Operating / Capital Facilities Costs | G82: 0 | H82: 0 | I82: 0 | J82: 0 | K82: 0 | L82: 0 | M82: 0 | N82: HM700
A83: 2019 | B83: 407720 | C83: 407 | D83: HM | E83: 720 | F83: Long-Term Interest, facilities related | G83: 0 | H83: 0 | I83: 0 | J83: 0 | K83: 0 | L83: 0 | M83: 0 | N83: HM720
A84: 2019 | B84: 407725 | C84: 407 | D84: HM | E84: 725 | F84: Long-Term Interest, non-facilities related | G84: 0 | H84: 0 | I84: 0 | J84: 0 | K84: 0 | L84: 0 | M84: 0 | N84: HM725
A85: 2019 | B85: 407730 | C85: 407 | D85: HM | E85: 730 | F85: Other costs related to capital facilities acquisition | G85: 0 | H85: 0 | I85: 0 | J85: 0 | K85: 0 | L85: 0 | M85: 0 | N85: HM730
A86: 2019 | B86: 407740 | C86: 407 | D86: HM | E86: 740 | F86: Rental/Lease of Buildings & Grounds | G86: 0 | H86: 0 | I86: 0 | J86: 0 | K86: 0 | L86: 0 | M86: 0 | N86: HM740
A87: 2019 | B87: 407750 | C87: 407 | D87: HM | E87: 750 | F87: Depreciation of Equipment, Building, & Grounds | G87: 0 | H87: 0 | I87: 0 | J87: 0 | K87: 0 | L87: 0 | M87: 0 | N87: HM750
A88: 2019 | B88: 407760 | C88: 407 | D88: HM | E88: 760 | F88: Bad debt / loss on disposal of assets | G88: 0 | H88: 0 | I88: 0 | J88: 0 | K88: 0 | L88: 0 | M88: 0 | N88: HM760
A89: 2019 | B89: 407800 | C89: 407 | D89: HM | E89: 800 | F89: TOTALS | G89: 2178681.967 | H89: 493793.3438 | I89: 2425687.37 | J89: 0 | K89: 303402.99 | L89: 0 | M89: 5401565.671 | N89: HM800
A90: 2019 | B90: 407910 | C90: 407 | D90: HM | E90: 910 | F90: Reference: Capitalized Expenditures | G90: 0 | H90: 0 | I90: 0 | J90: 0 | K90: 0 | L90: 0 | M90: 0 | N90: HM910
A91: 2019 | B91: 407920 | C91: 407 | D91: HM | E91: 920 | F91: Reference: Deferrals/Carryovers | G91: 0 | H91: 0 | I91: 0 | J91: 0 | K91: 0 | L91: 0 | M91: 0 | N91: HM920
A92: 2019 | B92: 407900 | C92: 407 | D92: HM | E92: 900 | F92: Reference: Totals | G92: 0 | H92: 0 | I92: 2425687.37 | J92: 0 | K92: 303402.99 | L92: 0 | M92: 5401565.671 | N92: HM900
A93: 2019 | B93: 409100 | C93: 409 | D93: C | E93: 100 | F93: Administration | G93: 0 | H93: 0 | I93: 630698 | J93: 0 | K93: 20580 | L93: 97000 | M93: 748278 | N93: C100
A94: 2019 | B94: 409110 | C94: 409 | D94: C | E94: 110 | F94: Subtotal - Board of Trustees | G94: 0 | H94: 0 | I94: 10109 | J94: 0 | K94: 0 | L94: 0 | M94: 10109 | N94: C110
A95: 2019 | B95: 409111 | C95: 409 | D95: C | E95: 111 | F95: Contracted Services | G95: 0 | H95: 0 | I95: 9995 | J95: 0 | K95: 0 | L95: 0 | M95: 9995 | N95: C111
A96: 2019 | B96: 409112 | C96: 409 | D96: C | E96: 112 | F96: Travel and other expenses | G96: 0 | H96: 0 | I96: 114 | J96: 0 | K96: 0 | L96: 0 | M96: 114 | N96: C112
A97: 2019 | B97: 409120a | C97: 409 | D97: C | E97: 120a | F97: Subtotal - Non-Instructional Administration and Support Staff | G97: 0 | H97: 0 | I97: 538572 | J97: 0 | K97: 20580 | L97: 97000 | M97: 656152 | N97: C120a
A98: 2019 | B98: 409121a | C98: 409 | D98: C | E98: 121a | F98: Salaries - Professional and Support Staff | G98: 0 | H98: 0 | I98: 300919 | J98: 0 | K98: 19080 | L98: 97000 | M98: 416999 | N98: C121a
A99: 2019 | B99: 409122a | C99: 409 | D99: C | E99: 122a | F99: Contracted Services - Professional and Support Staff | G99: 0 | H99: 0 | I99: 184369 | J99: 0 | K99: 0 | L99: 0 | M99: 184369 | N99: C122a
A100: 2019 | B100: 409123 | C100: 409 | D100: C | E100: 123 | F100: Recruitment/Advertising | G100: 0 | H100: 0 | I100: 19079 | J100: 0 | K100: 1500 | L100: 0 | M100: 20579 | N100: C123
A101: 2019 | B101: 409124 | C101: 409 | D101: C | E101: 124 | F101: Travel, Dues, and other expenses | G101: 0 | H101: 0 | I101: 12007 | J101: 0 | K101: 0 | L101: 0 | M101: 12007 | N101: C124
A102: 2019 | B102: 409125 | C102: 409 | D102: C | E102: 125 | F102: Supplies and Materials | G102: 0 | H102: 0 | I102: 22198 | J102: 0 | K102: 0 | L102: 0 | M102: 22198 | N102: C125
A103: 2019 | B103: 409126 | C103: 409 | D103: C | E103: 126 | F103: Depreciation - non instructional | G103: 0 | H103: 0 | I103: 0 | J103: 0 | K103: 0 | L103: 0 | M103: 0 | N103: C126
A104: 2019 | B104: 409170 | C104: 409 | D104: C | E104: 170 | F104: Subtotal - Development (Private) | G104: 0 | H104: 0 | I104: 82017 | J104: 0 | K104: 0 | L104: 0 | M104: 82017 | N104: C170
A105: 2019 | B105: 409170a | C105: 409 | D105: C | E105: 170a | F105: Salaries - Professional - Private | G105: 0 | H105: 0 | I105: 66933 | J105: 0 | K105: 0 | L105: 0 | M105: 66933 | N105: C170a
A106: 2019 | B106: 409170b | C106: 409 | D106: C | E106: 170b | F106: Contracted Services - Private | G106: 0 | H106: 0 | I106: 5933 | J106: 0 | K106: 0 | L106: 0 | M106: 5933 | N106: C170b
A107: 2019 | B107: 409170c | C107: 409 | D107: C | E107: 170c | F107: Fundraising - Private | G107: 0 | H107: 0 | I107: 9151 | J107: 0 | K107: 0 | L107: 0 | M107: 9151 | N107: C170c
A108: 2019 | B108: 409171 | C108: 409 | D108: C | E108: 171 | F108: Subtotal - Development (Public) | G108: 0 | H108: 0 | I108: 0 | J108: 0 | K108: 0 | L108: 0 | M108: 0 | N108: C171
A109: 2019 | B109: 409171a | C109: 409 | D109: C | E109: 171a | F109: Salaries - Professional - Public | G109: 0 | H109: 0 | I109: 0 | J109: 0 | K109: 0 | L109: 0 | M109: 0 | N109: C171a
A110: 2019 | B110: 409171b | C110: 409 | D110: C | E110: 171b | F110: Contracted Services - Public | G110: 0 | H110: 0 | I110: 0 | J110: 0 | K110: 0 | L110: 0 | M110: 0 | N110: C171b
A111: 2019 | B111: 409200 | C111: 409 | D111: C | E111: 200 | F111: Instructional Services | G111: 2369693 | H111: 810792 | I111: 32901 | J111: 0 | K111: 270661 | L111: 203055 | M111: 3687102 | N111: C200
A112: 2019 | B112: 409210 | C112: 409 | D112: C | E112: 210 | F112: Instructional Subtotal - Instructional Leadership | G112: 26210 | H112: 62271 | I112: 0 | J112: 0 | K112: 0 | L112: 133250 | M112: 221731 | N112: C210
A113: 2019 | B113: 409211 | C113: 409 | D113: C | E113: 211 | F113: Salaries - Professional | G113: 26210 | H113: 62271 | I113: 0 | J113: 0 | K113: 0 | L113: 133250 | M113: 221731 | N113: C211
A114: 2019 | B114: 409212 | C114: 409 | D114: C | E114: 212 | F114: Salaries - Clerical | G114: 0 | H114: 0 | I114: 0 | J114: 0 | K114: 0 | L114: 0 | M114: 0 | N114: C212
A115: 2019 | B115: 409213 | C115: 409 | D115: C | E115: 213 | F115: Contracted Services | G115: 0 | H115: 0 | I115: 0 | J115: 0 | K115: 0 | L115: 0 | M115: 0 | N115: C213
A116: 2019 | B116: 409214 | C116: 409 | D116: C | E116: 214 | F116: Supplies and Materials | G116: 0 | H116: 0 | I116: 0 | J116: 0 | K116: 0 | L116: 0 | M116: 0 | N116: C214
A117: 2019 | B117: 409215 | C117: 409 | D117: C | E117: 215 | F117: Travel and other expenses | G117: 0 | H117: 0 | I117: 0 | J117: 0 | K117: 0 | L117: 0 | M117: 0 | N117: C215
A118: 2019 | B118: 409220 | C118: 409 | D118: C | E118: 220 | F118: Instructional Subtotal - Classroom and Specialist Teachers | G118: 1443494 | H118: 485871 | I118: 0 | J118: 0 | K118: 79165 | L118: 20793 | M118: 2029323 | N118: C220
A119: 2019 | B119: 409221 | C119: 409 | D119: C | E119: 221 | F119: Salaries - Teachers, Classroom | G119: 1443494 | H119: 174507 | I119: 0 | J119: 0 | K119: 0 | L119: 20793 | M119: 1638794 | N119: C221
A120: 2019 | B120: 409222 | C120: 409 | D120: C | E120: 222 | F120: Salaries - Teachers, Specialists | G120: 0 | H120: 311364 | I120: 0 | J120: 0 | K120: 79165 | L120: 0 | M120: 390529 | N120: C222
A121: 2019 | B121: 409230 | C121: 409 | D121: C | E121: 230 | F121: Instructional Subtotal - Other Teaching Services | G121: 250488 | H121: 194530 | I121: 0 | J121: 0 | K121: 117864 | L121: 5000 | M121: 567882 | N121: C230
A122: 2019 | B122: 409231 | C122: 409 | D122: C | E122: 231 | F122: Salaries - Professional | G122: 0 | H122: 0 | I122: 0 | J122: 0 | K122: 0 | L122: 0 | M122: 0 | N122: C231
A123: 2019 | B123: 409232 | C123: 409 | D123: C | E123: 232 | F123: Salaries - Non-clerical Paraprofessionals | G123: 241738 | H123: 0 | I123: 0 | J123: 0 | K123: 11723 | L123: 0 | M123: 253461 | N123: C232
A124: 2019 | B124: 409233 | C124: 409 | D124: C | E124: 233 | F124: Salaries - Clerical | G124: 0 | H124: 0 | I124: 0 | J124: 0 | K124: 0 | L124: 0 | M124: 0 | N124: C233
A125: 2019 | B125: 409234 | C125: 409 | D125: C | E125: 234 | F125: Contracted Services | G125: 8750 | H125: 194530 | I125: 0 | J125: 0 | K125: 106141 | L125: 5000 | M125: 314421 | N125: C234
A126: 2019 | B126: 409240 | C126: 409 | D126: C | E126: 240 | F126: Instructional Subtotal - Professional Development | G126: 421304 | H126: 0 | I126: 0 | J126: 0 | K126: 5000 | L126: 20300 | M126: 446604 | N126: C240
A127: 2019 | B127: 409241 | C127: 409 | D127: C | E127: 241 | F127: Salaries - Professional | G127: 250167 | H127: 0 | I127: 0 | J127: 0 | K127: 0 | L127: 0 | M127: 250167 | N127: C241
A128: 2019 | B128: 409242 | C128: 409 | D128: C | E128: 242 | F128: Contracted Services | G128: 93822 | H128: 0 | I128: 0 | J128: 0 | K128: 5000 | L128: 12500 | M128: 111322 | N128: C242
A129: 2019 | B129: 409243 | C129: 409 | D129: C | E129: 243 | F129: Supplies and Materials | G129: 5066 | H129: 0 | I129: 0 | J129: 0 | K129: 0 | L129: 0 | M129: 5066 | N129: C243
A130: 2019 | B130: 409244 | C130: 409 | D130: C | E130: 244 | F130: Travel and other expenses | G130: 72249 | H130: 0 | I130: 0 | J130: 0 | K130: 0 | L130: 7800 | M130: 80049 | N130: C244
A131: 2019 | B131: 409250 | C131: 409 | D131: =VLOOKUP(C131, TYPE, 3, FALSE) -> C | E131: 250 | F131: Instructional Subtotal - Guidance, Psychological & Testing | G131: 48147 | H131: 68120 | I131: 0 | J131: 0 | K131: 49211 | L131: 0 | M131: 165478 | N131: C250
A132: 2019 | B132: =C132&E132 -> 409251 | C132: 409 | D132: C | E132: 251 | F132: Salaries - Professional | G132: 48147 | H132: 0 | I132: 0 | J132: 0 | K132: 0 | L132: 0 | M132: 48147 | N132: =D132&E132 -> C251
A133: 2019 | B133: 409252 | C133: 409 | D133: C | E133: 252 | F133: Salaries - Clerical | G133: 0 | H133: 0 | I133: 0 | J133: 0 | K133: 0 | L133: 0 | M133: 0 | N133: C252
A134: 2019 | B134: 409253 | C134: 409 | D134: C | E134: 253 | F134: Contracted Services | G134: 0 | H134: 59017 | I134: 0 | J134: 0 | K134: 49211 | L134: 0 | M134: 108228 | N134: C253
A135: 2019 | B135: 409254 | C135: 409 | D135: C | E135: 254 | F135: Supplies and Materials | G135: 0 | H135: 9103 | I135: 0 | J135: 0 | K135: 0 | L135: 0 | M135: 9103 | N135: C254
A136: 2019 | B136: 409260 | C136: 409 | D136: C | E136: 260 | F136: Instructional Subtotal - Materials, Equipment & Technology | G136: 180050 | H136: 0 | I136: 32901 | J136: 0 | K136: 19421 | L136: 23712 | M136: 256084 | N136: C260
A137: 2019 | B137: 409261 | C137: 409 | D137: C | E137: 261 | F137: Textbooks & Related Media/Materials | G137: 6419 | H137: 0 | I137: 0 | J137: 0 | K137: 17421 | L137: 6000 | M137: 29840 | N137: C261
A138: 2019 | B138: 409262 | C138: 409 | D138: C | E138: 262 | F138: Other Instructional Materials | G138: 0 | H138: 0 | I138: 32901 | J138: 0 | K138: 0 | L138: 0 | M138: 32901 | N138: C262
A139: 2019 | B139: 409263 | C139: 409 | D139: C | E139: 263 | F139: Instructional Equipment | G139: 4959 | H139: 0 | I139: 0 | J139: 0 | K139: 0 | L139: 0 | M139: 4959 | N139: C263
A140: 2019 | B140: 409264 | C140: 409 | D140: C | E140: 264 | F140: General Supplies | G140: 84907 | H140: 0 | I140: 0 | J140: 0 | K140: 0 | L140: 2909 | M140: 87816 | N140: C264
A141: 2019 | B141: 409265 | C141: 409 | D141: C | E141: 265 | F141: Other Instructional Services | G141: 45272 | H141: 0 | I141: 0 | J141: 0 | K141: 0 | L141: 0 | M141: 45272 | N141: C265
A142: 2019 | B142: 409266 | C142: 409 | D142: C | E142: 266 | F142: Classroom Instructional Technology Hardware | G142: 6294 | H142: 0 | I142: 0 | J142: 0 | K142: 2000 | L142: 0 | M142: 8294 | N142: C266
A143: 2019 | B143: 409267 | C143: 409 | D143: C | E143: 267 | F143: Other Instructional Technology Hardware | G143: 0 | H143: 0 | I143: 0 | J143: 0 | K143: 0 | L143: 0 | M143: 0 | N143: C267
A144: 2019 | B144: 409268a | C144: 409 | D144: C | E144: 268a | F144: Classroom Instructional Software | G144: 32199 | H144: 0 | I144: 0 | J144: 0 | K144: 0 | L144: 14803 | M144: 47002 | N144: C268a
A145: 2019 | B145: 409268b | C145: 409 | D145: C | E145: 268b | F145: Other Instructional Software | G145: 0 | H145: 0 | I145: 0 | J145: 0 | K145: 0 | L145: 0 | M145: 0 | N145: C268b
A146: 2019 | B146: 409269 | C146: 409 | D146: C | E146: 269 | F146: Depreciation for Furniture, Equipment & Technology | G146: 0 | H146: 0 | I146: 0 | J146: 0 | K146: 0 | L146: 0 | M146: 0 | N146: C269
A147: 2019 | B147: 409300 | C147: 409 | D147: C | E147: 300 | F147: Pupil Services | G147: 573964 | H147: 0 | I147: 247298 | J147: 3050 | K147: 316330 | L147: 22648 | M147: 1163290 | N147: C300
A148: 2019 | B148: 409310 | C148: 409 | D148: C | E148: 310 | F148: Health Services | G148: 0 | H148: 0 | I148: 59455 | J148: 0 | K148: 0 | L148: 0 | M148: 59455 | N148: C310
A149: 2019 | B149: 409315 | C149: 409 | D149: C | E149: 315 | F149: Health Services - Contracted | G149: 0 | H149: 0 | I149: 17959 | J149: 0 | K149: 0 | L149: 0 | M149: 17959 | N149: C315
A150: 2019 | B150: 409320 | C150: 409 | D150: C | E150: 320 | F150: Athletic Services (including Transportation) | G150: 0 | H150: 0 | I150: 0 | J150: 0 | K150: 0 | L150: 0 | M150: 0 | N150: C320
A151: 2019 | B151: 409325 | C151: 409 | D151: C | E151: 325 | F151: Athletic Services (including Transportation) - Contracted | G151: 0 | H151: 0 | I151: 0 | J151: 0 | K151: 0 | L151: 0 | M151: 0 | N151: C325
A152: 2019 | B152: 409330 | C152: 409 | D152: C | E152: 330 | F152: Food Services | G152: 0 | H152: 0 | I152: 40068 | J152: 0 | K152: 0 | L152: 0 | M152: 40068 | N152: C330
A153: 2019 | B153: 409335 | C153: 409 | D153: C | E153: 335 | F153: Food Services - Contracted | G153: 0 | H153: 0 | I153: 45171 | J153: 3050 | K153: 316330 | L153: 0 | M153: 364551 | N153: C335
A154: 2019 | B154: 409340 | C154: 409 | D154: C | E154: 340 | F154: Student Transportation (to and from school) | G154: 573964 | H154: 0 | I154: 0 | J154: 0 | K154: 0 | L154: 0 | M154: 573964 | N154: C340
A155: 2019 | B155: 409345 | C155: 409 | D155: C | E155: 345 | F155: Student Transportation (to and from school) - Contracted | G155: 0 | H155: 0 | I155: 0 | J155: 0 | K155: 0 | L155: 0 | M155: 0 | N155: C345
A156: 2019 | B156: 409350 | C156: 409 | D156: C | E156: 350 | F156: Depreciation of Transportation Vehicles | G156: 0 | H156: 0 | I156: 0 | J156: 0 | K156: 0 | L156: 0 | M156: 0 | N156: C350
A157: 2019 | B157: 409360 | C157: 409 | D157: C | E157: 360 | F157: Other Student Activities | G157: 0 | H157: 0 | I157: 84645 | J157: 0 | K157: 0 | L157: 22648 | M157: 107293 | N157: C360
A158: 2019 | B158: 409400 | C158: 409 | D158: C | E158: 400 | F158: Operation & Maintenance of Plant | G158: 0 | H158: 0 | I158: 353866 | J158: 0 | K158: 0 | L158: 0 | M158: 353866 | N158: C400
A159: 2019 | B159: 409410 | C159: 409 | D159: C | E159: 410 | F159: Operation & Maintenance of Buildings and Grounds | G159: 0 | H159: 0 | I159: 209086 | J159: 0 | K159: 0 | L159: 0 | M159: 209086 | N159: C410
A160: 2019 | B160: 409420 | C160: 409 | D160: C | E160: 420 | F160: Utilities | G160: 0 | H160: 0 | I160: 87680 | J160: 0 | K160: 0 | L160: 0 | M160: 87680 | N160: C420
A161: 2019 | B161: 409430 | C161: 409 | D161: C | E161: 430 | F161: Maintenance of Equipment | G161: 0 | H161: 0 | I161: 17187 | J161: 0 | K161: 0 | L161: 0 | M161: 17187 | N161: C430
A162: 2019 | B162: 409440 | C162: 409 | D162: C | E162: 440 | F162: Networking and Telecommunications | G162: 0 | H162: 0 | I162: 39913 | J162: 0 | K162: 0 | L162: 0 | M162: 39913 | N162: C440
A163: 2019 | B163: 409500 | C163: 409 | D163: C | E163: 500 | F163: Fixed Charges | G163: 0 | H163: 0 | I163: 1287638 | J163: 0 | K163: 37715 | L163: 0 | M163: 1325353 | N163: C500
A164: 2019 | B164: 409510 | C164: 409 | D164: C | E164: 510 | F164: Employee Retirement & Taxes | G164: 0 | H164: 0 | I164: 842082 | J164: 0 | K164: 3755 | L164: 0 | M164: 845837 | N164: C510
A165: 2019 | B165: 409520 | C165: 409 | D165: C | E165: 520 | F165: Fringe Benefits | G165: 0 | H165: 0 | I165: 386188 | J165: 0 | K165: 0 | L165: 0 | M165: 386188 | N165: C520
A166: 2019 | B166: 409530 | C166: 409 | D166: C | E166: 530 | F166: Insurance (non-employee) | G166: 0 | H166: 0 | I166: 36091 | J166: 0 | K166: 0 | L166: 0 | M166: 36091 | N166: C530
A167: 2019 | B167: 409550 | C167: 409 | D167: C | E167: 550 | F167: Rental/Lease of Equipment | G167: 0 | H167: 0 | I167: 23277 | J167: 0 | K167: 33960 | L167: 0 | M167: 57237 | N167: C550
A168: 2019 | B168: 409560 | C168: 409 | D168: C | E168: 560 | F168: Short-Term Interest | G168: 0 | H168: 0 | I168: 0 | J168: 0 | K168: 0 | L168: 0 | M168: 0 | N168: C560
A169: 2019 | B169: 409600 | C169: 409 | D169: C | E169: 600 | F169: Community Services | G169: 0 | H169: 0 | I169: 301 | J169: 0 | K169: 0 | L169: 0 | M169: 301 | N169: C600
A170: 2019 | B170: 409610 | C170: 409 | D170: C | E170: 610 | F170: Dissemination Activities | G170: 0 | H170: 0 | I170: 0 | J170: 0 | K170: 0 | L170: 0 | M170: 0 | N170: C610
A171: 2019 | B171: 409620 | C171: 409 | D171: C | E171: 620 | F171: Civic Activities | G171: 0 | H171: 0 | I171: 301 | J171: 0 | K171: 0 | L171: 0 | M171: 301 | N171: C620
A172: 2019 | B172: 409700 | C172: 409 | D172: C | E172: 700 | F172: Non-Operating / Capital Facilities Costs | G172: 0 | H172: 0 | I172: 1115341 | J172: 0 | K172: 0 | L172: 0 | M172: 1115341 | N172: C700
A173: 2019 | B173: 409720 | C173: 409 | D173: C | E173: 720 | F173: Long-Term Interest, facilities related | G173: 0 | H173: 0 | I173: 438900 | J173: 0 | K173: 0 | L173: 0 | M173: 438900 | N173: C720
A174: 2019 | B174: 409725 | C174: 409 | D174: C | E174: 725 | F174: Long-Term Interest, non-facilities related | G174: 0 | H174: 0 | I174: 0 | J174: 0 | K174: 0 | L174: 0 | M174: 0 | N174: C725
A175: 2019 | B175: 409730 | C175: 409 | D175: C | E175: 730 | F175: Other costs related to capital facilities acquisition | G175: 0 | H175: 0 | I175: 0 | J175: 0 | K175: 0 | L175: 0 | M175: 0 | N175: C730
A176: 2019 | B176: 409740 | C176: 409 | D176: C | E176: 740 | F176: Rental/Lease of Buildings & Grounds | G176: 0 | H176: 0 | I176: 658893 | J176: 0 | K176: 0 | L176: 0 | M176: 658893 | N176: C740
A177: 2019 | B177: 409750 | C177: 409 | D177: C | E177: 750 | F177: Depreciation of Equipment, Building, & Grounds | G177: 0 | H177: 0 | I177: 17548 | J177: 0 | K177: 0 | L177: 0 | M177: 17548 | N177: C750
A178: 2019 | B178: 409760 | C178: 409 | D178: C | E178: 760 | F178: Bad debt / loss on disposal of assets | G178: 0 | H178: 0 | I178: 0 | J178: 0 | K178: 0 | L178: 0 | M178: 0 | N178: C760
A179: 2019 | B179: 409800 | C179: 409 | D179: C | E179: 800 | F179: TOTALS | G179: 2943657 | H179: 810792 | I179: 3668043 | J179: 3050 | K179: 645286 | L179: 322703 | M179: 8393531 | N179: C800
A180: 2019 | B180: 409910 | C180: 409 | D180: C | E180: 910 | F180: Reference: Capitalized Expenditures | G180: 0 | H180: 0 | I180: 0 | J180: 0 | K180: 0 | L180: 6865 | M180: 6865 | N180: C910
A181: 2019 | B181: 409920 | C181: 409 | D181: C | E181: 920 | F181: Reference: Deferrals/Carryovers | G181: 0 | H181: 0 | I181: 0 | J181: 0 | K181: 0 | L181: 0 | M181: 0 | N181: C920
A182: 2019 | B182: 409900 | C182: 409 | D182: C | E182: 900 | F182: Reference: Totals | G182: 0 | H182: 0 | I182: 3668043 | J182: 3050 | K182: 645286 | L182: 329568 | M182: 8400396 | N182: C900
A183: 2019 | B183: 410100 | C183: 410 | D183: C | E183: 100 | F183: Administration | G183: 0 | H183: 0 | I183: 1912894.23 | J183: 0 | K183: 11490.05 | L183: 15712.07 | M183: 1940096.35 | N183: C100
A184: 2019 | B184: 410110 | C184: 410 | D184: C | E184: 110 | F184: Subtotal - Board of Trustees | G184: 0 | H184: 0 | I184: 2146 | J184: 0 | K184: 0 | L184: 0 | M184: 2146 | N184: C110
A185: 2019 | B185: 410111 | C185: 410 | D185: C | E185: 111 | F185: Contracted Services | G185: 0 | H185: 0 | I185: 0 | J185: 0 | K185: 0 | L185: 0 | M185: 0 | N185: C111
A186: 2019 | B186: 410112 | C186: 410 | D186: C | E186: 112 | F186: Travel and other expenses | G186: 0 | H186: 0 | I186: 2146 | J186: 0 | K186: 0 | L186: 0 | M186: 2146 | N186: C112
A187: 2019 | B187: 410120a | C187: 410 | D187: C | E187: 120a | F187: Subtotal - Non-Instructional Administration and Support Staff | G187: 0 | H187: 0 | I187: 1780777.14 | J187: 0 | K187: 11490.05 | L187: 15712.07 | M187: 1807979.26 | N187: C120a
A188: 2019 | B188: 410121a | C188: 410 | D188: C | E188: 121a | F188: Salaries - Professional and Support Staff | G188: 0 | H188: 0 | I188: 997497.2999 | J188: 0 | K188: 11490.05 | L188: 4500 | M188: 1013487.35 | N188: C121a
A189: 2019 | B189: 410122a | C189: 410 | D189: C | E189: 122a | F189: Contracted Services - Professional and Support Staff | G189: 0 | H189: 0 | I189: 418575.34 | J189: 0 | K189: 0 | L189: 11212.07 | M189: 429787.41 | N189: C122a
A190: 2019 | B190: 410123 | C190: 410 | D190: C | E190: 123 | F190: Recruitment/Advertising | G190: 0 | H190: 0 | I190: 305177 | J190: 0 | K190: 0 | L190: 0 | M190: 305177 | N190: C123
A191: 2019 | B191: 410124 | C191: 410 | D191: C | E191: 124 | F191: Travel, Dues, and other expenses | G191: 0 | H191: 0 | I191: 34305 | J191: 0 | K191: 0 | L191: 0 | M191: 34305 | N191: C124
A192: 2019 | B192: 410125 | C192: 410 | D192: C | E192: 125 | F192: Supplies and Materials | G192: 0 | H192: 0 | I192: 25222.5 | J192: 0 | K192: 0 | L192: 0 | M192: 25222.5 | N192: C125
A193: 2019 | B193: 410126 | C193: 410 | D193: C | E193: 126 | F193: Depreciation - non instructional | G193: 0 | H193: 0 | I193: 0 | J193: 0 | K193: 0 | L193: 0 | M193: 0 | N193: C126
A194: 2019 | B194: 410170 | C194: 410 | D194: C | E194: 170 | F194: Subtotal - Development (Private) | G194: 0 | H194: 0 | I194: 129971.09 | J194: 0 | K194: 0 | L194: 0 | M194: 129971.09 | N194: C170
A195: 2019 | B195: 410170a | C195: 410 | D195: =VLOOKUP(C195, TYPE, 3, FALSE) -> C | E195: 170a | F195: Salaries - Professional - Private | G195: 0 | H195: 0 | I195: 116293.09 | J195: 0 | K195: 0 | L195: 0 | M195: 116293.09 | N195: C170a
A196: 2019 | B196: =C196&E196 -> 410170b | C196: 410 | D196: C | E196: 170b | F196: Contracted Services - Private | G196: 0 | H196: 0 | I196: 0 | J196: 0 | K196: 0 | L196: 0 | M196: 0 | N196: =D196&E196 -> C170b
A197: 2019 | B197: 410170c | C197: 410 | D197: C | E197: 170c | F197: Fundraising - Private | G197: 0 | H197: 0 | I197: 13678 | J197: 0 | K197: 0 | L197: 0 | M197: 13678 | N197: C170c
A198: 2019 | B198: 410171 | C198: 410 | D198: C | E198: 171 | F198: Subtotal - Development (Public) | G198: 0 | H198: 0 | I198: 0 | J198: 0 | K198: 0 | L198: 0 | M198: 0 | N198: C171
A199: 2019 | B199: 410171a | C199: 410 | D199: C | E199: 171a | F199: Salaries - Professional - Public | G199: 0 | H199: 0 | I199: 0 | J199: 0 | K199: 0 | L199: 0 | M199: 0 | N199: C171a
A200: 2019 | B200: 410171b | C200: 410 | D200: C | E200: 171b | F200: Contracted Services - Public | G200: 0 | H200: 0 | I200: 0 | J200: 0 | K200: 0 | L200: 0 | M200: 0 | N200: C171b
... 4300 more rows

Sheet CSLIST (hidden)
B1: Select a Charter School | C1: LEA
A2: 2 | B2: Abby Kelley Foster Charter Public School | C2: 445
A3: 3 | B3: Academy of the Pacific Rim Charter Public School | C3: 412
A4: 4 | B4: Advanced Math and Science Academy Charter School | C4: 430
A5: 5 | B5: Alma del Mar Charter School | C5: 409
A6: 6 | B6: Argosy Collegiate Charter School | C6: 3509
A7: 7 | B7: Atlantis Charter School | C7: 491
A8: 8 | B8: Barnstable Community Horace Mann Charter Public School | C8: 427
A9: 9 | B9: Baystate Academy Charter Public School | C9: 3502
A10: 10 | B10: Benjamin Banneker Charter Public School | C10: 420
A11: 11 | B11: Benjamin Franklin Classical Charter Public School | C11: 447
A12: 12 | B12: Bentley Academy Charter School | C12: 3511
A13: 13 | B13: Berkshire Arts and Technology Charter Public School | C13: 414
A14: 14 | B14: Boston Collegiate Charter School | C14: 449
A15: 15 | B15: Boston Day and Evening Academy Charter School | C15: 424
A16: 16 | B16: Boston Green Academy Horace Mann Charter School | C16: 411
A17: 17 | B17: Boston Preparatory Charter Public School | C17: 416
A18: 18 | B18: Boston Renaissance Charter Public School | C18: 481
A19: 19 | B19: Bridge Boston Charter School | C19: 417
A20: 20 | B20: Brooke Charter School | C20: 428
A21: 21 | B21: Cape Cod Lighthouse Charter School | C21: 432
A22: 22 | B22: Christa McAuliffe Charter School | C22: 418
A23: 23 | B23: City On A Hill Charter Public School | C23: 437
A24: 24 | B24: City On A Hill Charter Public School II | C24: 3504
A25: 25 | B25: City On A Hill Charter Public School New Bedford | C25: 3507
A26: 26 | B26: Codman Academy Charter Public School | C26: 438
A27: 27 | B27: Collegiate Charter School of Lowell | C27: 3503
A28: 28 | B28: Community Charter School of Cambridge | C28: 436
A29: 29 | B29: Community Day Charter Public School - Gateway | C29: 426
A30: 30 | B30: Community Day Charter Public School - Prospect | C30: 440
A31: 31 | B31: Community Day Charter Public School - R. Kingman Webster | C31: 431
A32: 32 | B32: Conservatory Lab Charter School | C32: 439
A33: 33 | B33: Dudley Street Neighborhood Charter School | C33: 407
A34: 34 | B34: Edward M. Kennedy Academy for Health Careers: A HMCPS | C34: 452
A35: 35 | B35: Excel Academy Charter School | C35: 410
A36: 36 | B36: Four Rivers Charter Public School | C36: 413
A37: 37 | B37: Foxborough Regional Charter School | C37: 446
A38: 38 | B38: Francis W. Parker Charter Essential School | C38: 478
A39: 39 | B39: Global Learning Charter Public School | C39: 496
A40: 40 | B40: Hampden Charter School of Science East | C40: 499
A41: 41 | B41: Hampden Charter School of Science-West | C41: 3516
A42: 42 | B42: Helen Y Davis Leadership Academy Charter Public School | C42: 419
A43: 43 | B43: Hill View Montessori Charter Public School | C43: 455
A44: 44 | B44: Hilltown Cooperative Charter Public School | C44: 450
A45: 45 | B45: Holyoke Community Charter School | C45: 453
A46: 46 | B46: Innovation Academy Charter School | C46: 435
A47: 47 | B47: KIPP Academy Boston Charter School | C47: 463
A48: 48 | B48: KIPP Academy Lynn Charter School | C48: 429
A49: 49 | B49: Lawrence Family Development Charter School | C49: 454
A50: 50 | B50: Libertas Academy Charter School | C50: 3514
A51: 51 | B51: Lowell Community Charter Public School | C51: 456
A52: 52 | B52: Lowell Middlesex Academy Charter School | C52: 458
A53: 53 | B53: Map Academy Charter School | C53: 3517
A54: 54 | B54: Marblehead Community Charter Public School | C54: 464
A55: 55 | B55: Martha's Vineyard Public Charter School | C55: 466
A56: 56 | B56: Martin Luther King, Jr. Charter School of Excellence | C56: 492
A57: 57 | B57: Match Charter Public School | C57: 469
A58: 58 | B58: Mystic Valley Regional Charter School | C58: 470
A59: 59 | B59: Neighborhood House Charter School | C59: 444
A60: 60 | B60: New Heights Charter School of Brockton | C60: 3513
A61: 61 | B61: Old Sturbridge Academy | C61: 3515
A62: 62 | B62: Paulo Freire Social Justice Charter School | C62: 3501
A63: 63 | B63: Phoenix Academy Charter Public High School, Chelsea | C63: 493
A64: 64 | B64: Phoenix Academy Charter Public High School, Lawrence | C64: 3518
A65: 65 | B65: Phoenix Academy Public Charter High School, Springfield | C65: 3508
A66: 66 | B66: Pioneer Charter School of Science | C66: 494
A67: 67 | B67: Pioneer Charter School of Science II | C67: 3506
A68: 68 | B68: Pioneer Valley Chinese Immersion Charter School | C68: 497
A69: 69 | B69: Pioneer Valley Performing Arts Charter Public School | C69: 479
A70: 70 | B70: Prospect Hill Academy Charter School | C70: 487
A71: 71 | B71: Rising Tide Charter Public School | C71: 483
A72: 72 | B72: River Valley Charter School | C72: 482
A73: 73 | B73: Roxbury Preparatory Charter School | C73: 484
A74: 74 | B74: Sabis International Charter School | C74: 441
A75: 75 | B75: Salem Academy Charter School | C75: 485
A76: 76 | B76: Seven Hills Charter Public School | C76: 486
A77: 77 | B77: Sizer School, A North Central Charter Essential School | C77: 474
A78: 78 | B78: South Shore Charter Public School | C78: 488
A79: 79 | B79: Springfield Preparatory Charter School | C79: 3510
A80: 80 | B80: Sturgis Charter Public School | C80: 489
A81: 81 | B81: UP Academy Charter School of Boston | C81: 480
A82: 82 | B82: UP Academy Charter School of Dorchester | C82: 3505
A83: 83 | B83: Veritas Preparatory Charter School | C83: 498

Sheet FACTS (hidden)
A1: LEA | B1: Charter School | C1: Type | D1: Acct. Cohort | E1: Acct. Liaison | F1: Location | G1: Charter Status 7/1/2018 | H1: Charter Granted | I1: Counts Toward Numeric Cap | J1: Year Opened (Fall) | K1: FY19 Years of Operation | L1: 1st Charter Renewal | M1: 2nd Charter Renewal | N1: 3rd Charter Renewal | O1: 4th Charter Renewal Year | P1: 1st Charter Renewal | Q1: 2nd Charter Renewal | R1: 3rd Charter Renewal | S1: 4th Charter Renewal | T1: Last Charter Renewal | U1: Charter Expires | V1: Charter Expires | W1: Regional | X1: EMO | Y1: Max Grade Span | Z1: Max. Enroll # | AA1: Location Type | AB1: School Type | AC1: If Closed: School Year of Closure | AD1: Closure type
A2: 445 | B2: Abby Kelley Foster Charter Public School | C2: C | D2: 2 | F2: Worcester | G2: No Status | H2: 1998 | I2: Yes | J2: 1998 | K2: 21 | L2: 2003 | M2: 2008 | N2: 2013 | O2: 2018 | P2: 2003 | Q2: 2008 | R2: 2013 | S2: 2018 | T2: 2018 | U2: 2023 | V2: 2023 | W2: Yes | X2: Former | Y2: K-12 | Z2: 1426 | AA2: Urban | AB2: K12 | AC2: NA
A3: 412 | B3: Academy of the Pacific Rim Charter Public School | C3: C | D3: 1 | F3: Boston | G3: No Status | H3: 1995 | I3: Yes | J3: 1997 | K3: 22 | L3: 2002 | M3: 2007 | N3: 2012 | O3: 2017 | P3: 2002 | Q3: 2007 | R3: 2012 | S3: 2017 | T3: 2017 | U3: 2022 | V3: 2022 | W3: No | X3: No | Y3: 05-12 | Z3: 545 | AA3: Boston | AB3: MSHS | AC3: NA
A4: 430 | B4: Advanced Math and Science Academy Charter School | C4: C | D4: 4 | F4: Marlborough | G4: No Status | H4: 2004 | I4: Yes | J4: 2005 | K4: 14 | L4: 2010 | M4: 2015 | N4: 2020 | O4: 2025 | P4: 2010 | Q4: 2015 | R4: NA | S4: NA | T4: 2015 | U4: 2020 | V4: 2020 | W4: Yes | X4: No | Y4: 06-12 | Z4: 966 | AA4: Suburb | AB4: MSHS | AC4: NA
A5: 409 | B5: Alma del Mar Charter School | C5: C | D5: 5 | F5: New Bedford | G5: No Status | H5: 2011 | I5: Yes | J5: 2011 | K5: 8 | L5: 2016 | M5: 2021 | N5: 2026 | O5: 2031 | P5: 2016 | Q5: NA | R5: NA | S5: NA | T5: 2016 | U5: 2021 | V5: 2021 | W5: No | X5: No | Y5: K-08 | Z5: 450 | AA5: Urban | AB5: ESMS | AC5: NA
A6: 3509 | B6: Argosy Collegiate Charter School | C6: C | D6: 3 | F6: Fall River | G6: No Status | H6: 2014 | I6: No | J6: 2014 | K6: 5 | L6: 2019 | M6: 2024 | N6: 2029 | O6: 2034 | P6: NA | Q6: NA | R6: NA | S6: NA | T6: 0 | U6: 2019 | V6: 2019 | W6: No | X6: No | Y6: 06-12 | Z6: 644 | AA6: Urban | AB6: MSHS | AC6: NA
A7: 491 | B7: Atlantis Charter School | C7: C | D7: 4 | F7: Fall River | G7: No Status | H7: 1994 | I7: Yes | J7: 1995 | K7: 24 | L7: 2000 | M7: 2005 | N7: 2010 | O7: 2015 | P7: 2000 | Q7: 2005 | R7: 2010 | S7: 2015 | T7: 2015 | U7: 2020 | V7: 2020 | W7: No | X7: No | Y7: K-12 | Z7: 1378 | AA7: Urban | AB7: K12 | AC7: NA
A8: 427 | B8: Barnstable Community Horace Mann Charter Public School | C8: HM | D8: 3 | F8: Barnstable | G8: No Status | H8: 2004 | I8: Yes | J8: 2004 | K8: 15 | L8: 2009 | M8: 2014 | N8: 2019 | O8: 2024 | P8: 2009 | Q8: 2014 | R8: NA | S8: NA | T8: 2014 | U8: 2019 | V8: 2019 | W8: NA | X8: No | Y8: K-03 | Z8: 475 | AA8: Suburb | AB8: ES | AC8: NA
A9: 3502 | B9: Baystate Academy Charter Public School | C9: C | D9: 2 | F9: Springfield | G9: Conditions | H9: 2012 | I9: No | J9: 2013 | K9: 6 | L9: 2018 | M9: 2023 | N9: 2028 | O9: 2033 | P9: 2018 | Q9: NA | R9: NA | S9: NA | T9: 2018 | U9: 2023 | V9: 2023 | W9: No | X9: No | Y9: 06-12 | Z9: 560 | AA9: Urban | AB9: MSHS | AC9: NA
A10: 420 | B10: Benjamin Banneker Charter Public School | C10: C | D10: 5 | F10: Cambridge | G10: No Status | H10: 1995 | I10: Yes | J10: 1996 | K10: 23 | L10: 2001 | M10: 2006 | N10: 2011 | O10: 2016 | P10: 2001 | Q10: 2006 | R10: 2011 | S10: 2016 | T10: 2016 | U10: 2021 | V10: 2021 | W10: No | X10: No | Y10: PK-06 | Z10: 350 | AA10: Urban | AB10: ESMS | AC10: NA
A11: 447 | B11: Benjamin Franklin Classical Charter Public School | C11: C | D11: 4 | F11: Franklin | G11: No Status | H11: 1994 | I11: Yes | J11: 1995 | K11: 24 | L11: 2000 | M11: 2005 | N11: 2010 | O11: 2015 | P11: 2000 | Q11: 2005 | R11: 2010 | S11: 2015 | T11: 2015 | U11: 2020 | V11: 2020 | W11: Yes | X11: No | Y11: K-08 | Z11: 900 | AA11: Suburb | AB11: ESMS | AC11: NA
A12: 3511 | B12: Bentley Academy Charter School | C12: HM | D12: 4 | F12: Salem | G12: No Status | H12: 2015 | I12: Yes | J12: 2015 | K12: 4 | L12: 2020 | M12: 2025 | N12: 2030 | O12: 2035 | P12: NA | Q12: NA | R12: NA | S12: NA | T12: 0 | U12: 2020 | V12: 2020 | W12: No | X12: No | Y12: K-05 | Z12: 350 | AA12: Urban | AB12: ES | AC12: NA
A13: 414 | B13: Berkshire Arts and Technology Charter Public School | C13: C | D13: 3 | F13: Adams | G13: No Status | H13: 2003 | I13: Yes | J13: 2004 | K13: 15 | L13: 2009 | M13: 2014 | N13: 2019 | O13: 2024 | P13: 2009 | Q13: 2014 | R13: NA | S13: NA | T13: 2014 | U13: 2019 | V13: 2019 | W13: Yes | X13: No | Y13: 06-12 | Z13: 363 | AA13: Rural | AB13: MSHS | AC13: NA
A14: 449 | B14: Boston Collegiate Charter School | C14: C | D14: 2 | F14: Boston | G14: No Status | H14: 1998 | I14: Yes | J14: 1998 | K14: 21 | L14: 2003 | M14: 2008 | N14: 2013 | O14: 2018 | P14: 2003 | Q14: 2008 | R14: 2013 | S14: 2018 | T14: 2018 | U14: 2023 | V14: 2023 | W14: No | X14: No | Y14: 05-12 | Z14: 700 | AA14: Boston | AB14: MSHS | AC14: NA
A15: 424 | B15: Boston Day and Evening Academy Charter School | C15: HM | D15: 2 | F15: Boston | G15: No Status | H15: 1998 | I15: Yes | J15: 1998 | K15: 21 | L15: 2003 | M15: 2008 | N15: 2013 | O15: 2018 | P15: 2003 | Q15: 2008 | R15: 2013 | S15: 2018 | T15: 2018 | U15: 2023 | V15: 2023 | W15: NA | X15: No | Y15: 09-12 | Z15: 405 | AA15: Boston | AB15: HS | AC15: NA
A16: 411 | B16: Boston Green Academy Horace Mann Charter School | C16: HM | D16: 5 | F16: Boston | G16: Probation | H16: 2011 | I16: Yes | J16: 2011 | K16: 8 | L16: 2016 | M16: 2021 | N16: 2026 | O16: 2031 | P16: 2016 | Q16: NA | R16: NA | S16: NA | T16: 2016 | U16: 2021 | V16: 2021 | W16: NA | X16: No | Y16: 06-12 | Z16: 595 | AA16: Boston | AB16: MSHS | AC16: NA
A17: 416 | B17: Boston Preparatory Charter Public School | C17: C | D17: 3 | F17: Boston | G17: No Status | H17: 2003 | I17: Yes | J17: 2004 | K17: 15 | L17: 2009 | M17: 2014 | N17: 2019 | O17: 2024 | P17: 2009 | Q17: 2014 | R17: NA | S17: NA | T17: 2014 | U17: 2019 | V17: 2019 | W17: No | X17: No | Y17: 06-12 | Z17: 700 | AA17: Boston | AB17: MSHS | AC17: NA
A18: 481 | B18: Boston Renaissance Charter Public School | C18: C | D18: 4 | F18: Boston | G18: Conditions | H18: 1994 | I18: Yes | J18: 1995 | K18: 24 | L18: 2000 | M18: 2005 | N18: 2010 | O18: 2015 | P18: 2000 | Q18: 2005 | R18: 2010 | S18: 2015 | T18: 2015 | U18: 2020 | V18: 2020 | W18: No | X18: Former | Y18: PK-06 | Z18: 944 | AA18: Boston | AB18: ESMS | AC18: NA
A19: 417 | B19: Bridge Boston Charter School | C19: C | D19: 5 | F19: Boston | G19: No Status | H19: 2011 | I19: No | J19: 2011 | K19: 8 | L19: 2016 | M19: 2021 | N19: 2026 | O19: 2031 | P19: 2016 | Q19: NA | R19: NA | S19: NA | T19: 2016 | U19: 2021 | V19: 2021 | W19: No | X19: No | Y19: PK-8 | Z19: 335 | AA19: Boston | AB19: ESMS | AC19: NA
A20: 428 | B20: Brooke Charter School | C20: C | D20: 1 | F20: Boston | G20: No Status | H20: 2001 | I20: Yes | J20: 2002 | K20: 17 | L20: 2007 | M20: 2012 | N20: 2017 | O20: 2022 | P20: 2007 | Q20: 2012 | R20: 2017 | S20: NA | T20: 2017 | U20: 2022 | V20: 2022 | W20: Yes | X20: No | Y20: K-12 | Z20: 2221 | AA20: Boston | AB20: K12 | AC20: NA
A21: 432 | B21: Cape Cod Lighthouse Charter School | C21: C | D21: 4 | F21: Harwich | G21: No Status | H21: 1994 | I21: Yes | J21: 1995 | K21: 24 | L21: 2000 | M21: 2005 | N21: 2010 | O21: 2015 | P21: 2000 | Q21: 2005 | R21: 2010 | S21: 2015 | T21: 2015 | U21: 2020 | V21: 2020 | W21: Yes | X21: No | Y21: 06-08 | Z21: 260 | AA21: Suburb | AB21: MS | AC21: NA
A22: 418 | B22: Christa McAuliffe Charter School | C22: C | D22: 1 | F22: Framingham | G22: No Status | H22: 2001 | I22: Yes | J22: 2002 | K22: 17 | L22: 2007 | M22: 2012 | N22: 2017 | O22: 2022 | P22: 2007 | Q22: 2012 | R22: 2017 | S22: NA | T22: 2017 | U22: 2022 | V22: 2022 | W22: Yes | X22: Former | Y22: 06-08 | Z22: 396 | AA22: Suburb | AB22: MS | AC22: NA
A23: 437 | B23: City on a Hill Charter Public School Circuit Street | C23: C | D23: 4 | F23: Boston | G23: No Status | H23: 1994 | I23: Yes | J23: 1995 | K23: 24 | L23: 2000 | M23: 2005 | N23: 2010 | O23: 2015 | P23: 2000 | Q23: 2005 | R23: 2010 | S23: 2015 | T23: 2015 | U23: 2020 | V23: 2020 | W23: No | X23: No | Y23: 09-12 | Z23: 280 | AA23: Boston | AB23: HS | AC23: NA
A24: 3504 | B24: City on a Hill Charter Public School Dudley Square | C24: C | D24: 2 | F24: Boston | G24: No Status | H24: 2013 | I24: No | J24: 2013 | K24: 6 | L24: 2018 | M24: 2023 | N24: 2028 | O24: 2033 | P24: 2018 | Q24: NA | R24: NA | S24: NA | T24: 2018 | U24: 2023 | V24: 2023 | W24: No | X24: No | Y24: 09-12 | Z24: 280 | AA24: Boston | AB24: HS | AC24: NA
A25: 3507 | B25: City On A Hill Charter Public School New Bedford | C25: C | D25: 3 | F25: New Bedford | G25: No Status | H25: 2013 | I25: Yes | J25: 2014 | K25: 5 | L25: 2019 | M25: 2024 | N25: 2029 | O25: 2034 | P25: NA | Q25: NA | R25: NA | S25: NA | T25: 0 | U25: 2019 | V25: 2019 | W25: No | X25: No | Y25: 09-12 | Z25: 280 | AA25: Urban | AB25: HS | AC25: NA
A26: 438 | B26: Codman Academy Charter Public School | C26: C | D26: 5 | F26: Boston | G26: Conditions | H26: 2001 | I26: Yes | J26: 2001 | K26: 18 | L26: 2006 | M26: 2011 | N26: 2016 | O26: 2021 | P26: 2006 | Q26: 2011 | R26: 2016 | S26: NA | T26: 2016 | U26: 2021 | V26: 2021 | W26: No | X26: No | Y26: PK-12 | Z26: 345 | AA26: Boston | AB26: K12 | AC26: NA
A27: 3503 | B27: Collegiate Charter School of Lowell | C27: C | D27: 2 | F27: Lowell | G27: No Status | H27: 2012 | I27: No | J27: 2013 | K27: 6 | L27: 2018 | M27: 2023 | N27: 2028 | O27: 2033 | P27: 2018 | Q27: NA | R27: NA | S27: NA | T27: 2018 | U27: 2023 | V27: 2023 | W27: No | X27: Yes | Y27: K-12 | Z27: 1200 | AA27: Urban | AB27: K12 | AC27: NA
A28: 436 | B28: Community Charter School of Cambridge | C28: C | D28: 4 | F28: Cambridge | G28: No Status | H28: 2004 | I28: Yes | J28: 2005 | K28: 14 | L28: 2010 | M28: 2015 | N28: 2020 | O28: 2025 | P28: 2010 | Q28: 2015 | R28: NA | S28: NA | T28: 2015 | U28: 2020 | V28: 2020 | W28: No | X28: No | Y28: 06-12 | Z28: 420 | AA28: Urban | AB28: MSHS | AC28: NA
A29: 426 | B29: Community Day Charter Public School - Gateway | C29: C | D29: 1 | F29: Lawrence | G29: No Status | H29: 2011 | I29: No | J29: 2012 | K29: 7 | L29: 2017 | M29: 2022 | N29: 2027 | O29: 2032 | P29: 2017 | Q29: NA | R29: NA | S29: NA | T29: 2017 | U29: 2022 | V29: 2022 | W29: No | X29: Yes | Y29: PK-08 | Z29: 400 | AA29: Urban | AB29: ESMS | AC29: NA
A30: 440 | B30: Community Day Charter Public School - Prospect | C30: C | D30: 4 | F30: Lawrence | G30: No Status | H30: 1994 | I30: Yes | J30: 1995 | K30: 24 | L30: 2000 | M30: 2005 | N30: 2010 | O30: 2015 | P30: 2000 | Q30: 2005 | R30: 2010 | S30: 2015 | T30: 2015 | U30: 2020 | V30: 2020 | W30: No | X30: Yes | Y30: PK-08 | Z30: 400 | AA30: Urban | AB30: ESMS | AC30: NA
A31: 431 | B31: Community Day Charter Public School - R. Kingman Webster | C31: C | D31: 1 | F31: Lawrence | G31: No Status | H31: 2011 | I31: No | J31: 2012 | K31: 7 | L31: 2017 | M31: 2022 | N31: 2027 | O31: 2032 | P31: 2017 | Q31: NA | R31: NA | S31: NA | T31: 2017 | U31: 2022 | V31: 2022 | W31: No | X31: Yes | Y31: PK-08 | Z31: 400 | AA31: Urban | AB31: ESMS | AC31: NA
A32: 439 | B32: Conservatory Lab Charter School | C32: C | D32: 3 | F32: Boston | G32: No Status | H32: 1998 | I32: Yes | J32: 1999 | K32: 20 | L32: 2004 | M32: 2009 | N32: 2014 | O32: 2019 | P32: 2004 | Q32: 2009 | R32: 2014 | S32: NA | T32: 2014 | U32: 2019 | V32: 2019 | W32: No | X32: No | Y32: PK-08 | Z32: 444 | AA32: Boston | AB32: ESMS | AC32: NA
A33: 407 | B33: Dudley Street Neighborhood Charter School | C33: HM | D33: 1 | F33: Boston | G33: No Status | H33: 2012 | I33: Yes | J33: 2012 | K33: 7 | L33: 2017 | M33: 2022 | N33: 2027 | O33: 2032 | P33: 2017 | Q33: NA | R33: NA | S33: NA | T33: 2017 | U33: 2022 | V33: 2022 | W33: NA | X33: No | Y33: PK-5 | Z33: 325 | AA33: Boston | AB33: ES | AC33: NA
A34: 452 | B34: Edward M. Kennedy Academy for Health Careers: A Horace Mann Charter Public School | C34: HM | D34: 2 | F34: Boston | G34: No Status | H34: 1998 | I34: Yes | J34: 1998 | K34: 21 | L34: 2003 | M34: 2008 | N34: 2013 | O34: 2018 | P34: 2003 | Q34: 2008 | R34: 2013 | S34: 2018 | T34: 2018 | U34: 2023 | V34: 2023 | W34: NA | X34: No | Y34: 09-12 | Z34: 448 | AA34: Boston | AB34: HS | AC34: NA
A35: 410 | B35: Excel Academy Charter School | C35: C | D35: 2 | F35: Boston/Chelsea | G35: No Status | H35: 2003 | I35: Yes | J35: 2003 | K35: 16 | L35: 2008 | M35: 2013 | N35: 2018 | O35: 2023 | P35: 2008 | Q35: 2013 | R35: 2018 | S35: NA | T35: 2018 | U35: 2023 | V35: 2023 | W35: Yes | X35: No | Y35: 05-12 | Z35: 1344 | AA35: Boston | AB35: MSHS | AC35: NA
A36: 413 | B36: Four Rivers Charter Public School | C36: C | D36: 2 | F36: Greenfield | G36: No Status | H36: 2002 | I36: Yes | J36: 2003 | K36: 16 | L36: 2008 | M36: 2013 | N36: 2018 | O36: 2023 | P36: 2008 | Q36: 2013 | R36: 2018 | S36: NA | T36: 2018 | U36: 2023 | V36: 2023 | W36: Yes | X36: No | Y36: 07-12 | Z36: 220 | AA36: Urban | AB36: MSHS | AC36: NA
A37: 446 | B37: Foxborough Regional Charter School | C37: C | D37: 2 | F37: Foxborough | G37: No Status | H37: 1998 | I37: Yes | J37: 1998 | K37: 21 | L37: 2003 | M37: 2008 | N37: 2013 | O37: 2018 | P37: 2003 | Q37: 2008 | R37: 2013 | S37: 2018 | T37: 2018 | U37: 2023 | V37: 2023 | W37: Yes | X37: Former | Y37: K-12 | Z37: 1700 | AA37: Suburb | AB37: K12 | AC37: NA
A38: 478 | B38: Francis W. Parker Charter Essential School | C38: C | D38: 4 | F38: Devens | G38: No Status | H38: 1994 | I38: Yes | J38: 1995 | K38: 24 | L38: 2000 | M38: 2005 | N38: 2010 | O38: 2015 | P38: 2000 | Q38: 2005 | R38: 2010 | S38: 2015 | T38: 2015 | U38: 2020 | V38: 2020 | W38: Yes | X38: No | Y38: 07-12 | Z38: 400 | AA38: Suburb | AB38: MSHS | AC38: NA
A39: 496 | B39: Global Learning Charter Public School | C39: C | D39: 1 | F39: New Bedford | G39: No Status | H39: 2006 | I39: Yes | J39: 2007 | K39: 12 | L39: 2012 | M39: 2017 | N39: 2022 | O39: 2027 | P39: 2012 | Q39: 2017 | R39: NA | S39: NA | T39: 2017 | U39: 2022 | V39: 2022 | W39: No | X39: No | Y39: 05-12 | Z39: 500 | AA39: Urban | AB39: MSHS | AC39: NA
A40: 499 | B40: Hampden Charter School of Science | C40: C | D40: 3 | F40: Chicopee | G40: No Status | H40: 2008 | I40: Yes | J40: 2009 | K40: 10 | L40: 2014 | M40: 2019 | N40: 2024 | O40: 2029 | P40: 2014 | Q40: NA | R40: NA | S40: NA | T40: 2014 | U40: 2019 | V40: 2019 | W40: Yes | X40: No | Y40: 06-12 | Z40: 560 | AA40: Urban | AB40: MSHS | AC40: NA
A41: 3516 | B41: Hampden Charter School of Science West | C41: C | F41: Westfield | G41: No Status | H41: 2017 | I41: No | J41: 2018 | K41: 1 | L41: 2023 | M41: 2028 | N41: 2033 | O41: 2038 | P41: NA | Q41: NA | R41: NA | S41: NA | T41: 0 | U41: 2023 | V41: 2023 | W41: Yes | X41: No | Y41: 06-12 | Z41: 588 | AA41: Rural | AB41: MSHS | AC41: NA
A42: 419 | B42: Helen Y Davis Leadership Academy Charter Public School | C42: C | D42: 2 | F42: Boston | G42: Probation | H42: 2002 | I42: Yes | J42: 2003 | K42: 16 | L42: 2008 | M42: 2013 | N42: 2018 | O42: 2023 | P42: 2008 | Q42: 2013 | R42: 2018 | S42: NA | T42: 2018 | U42: 2023 | V42: 2023 | W42: No | X42: No | Y42: 06-08 | Z42: 216 | AA42: Boston | AB42: MS | AC42: NA
A43: 455 | B43: Hill View Montessori Charter Public School | C43: C | D43: 3 | F43: Haverhill | G43: No Status | H43: 2003 | I43: Yes | J43: 2004 | K43: 15 | L43: 2009 | M43: 2014 | N43: 2019 | O43: 2024 | P43: 2009 | Q43: 2014 | R43: NA | S43: NA | T43: 2014 | U43: 2019 | V43: 2019 | W43: No | X43: No | Y43: K-08 | Z43: 306 | AA43: Urban | AB43: ESMS | AC43: NA
A44: 450 | B44: Hilltown Cooperative Charter Public School | C44: C | D44: 4 | F44: East Hampton | G44: No Status | H44: 1994 | I44: Yes | J44: 1995 | K44: 24 | L44: 2000 | M44: 2005 | N44: 2010 | O44: 2015 | P44: 2000 | Q44: 2005 | R44: 2010 | S44: 2015 | T44: 2015 | U44: 2020 | V44: 2020 | W44: Yes | X44: No | Y44: K-08 | Z44: 218 | AA44: Rural | AB44: ESMS | AC44: NA
A45: 453 | B45: Holyoke Community Charter School | C45: C | D45: 4 | F45: Holyoke | G45: No Status | H45: 2001 | I45: Yes | J45: 2005 | K45: 14 | L45: 2010 | M45: 2015 | N45: 2020 | O45: 2025 | P45: 2010 | Q45: 2015 | R45: NA | S45: NA | T45: 2015 | U45: 2020 | V45: 2020 | W45: No | X45: Yes | Y45: K-08 | Z45: 702 | AA45: Urban | AB45: ESMS | AC45: NA
A46: 435 | B46: Innovation Academy Charter School | C46: C | D46: 5 | F46: Tyngsborough | G46: No Status | H46: 1995 | I46: Yes | J46: 1996 | K46: 23 | L46: 2001 | M46: 2006 | N46: 2011 | O46: 2016 | P46: 2001 | Q46: 2006 | R46: 2011 | S46: 2016 | T46: 2016 | U46: 2021 | V46: 2021 | W46: Yes | X46: Former | Y46: 05-12 | Z46: 800 | AA46: Suburb | AB46: MSHS | AC46: NA
A47: 463 | B47: KIPP Academy Boston Charter School | C47: C | D47: 1 | F47: Boston | G47: No Status | H47: 2011 | I47: No | J47: 2012 | K47: 7 | L47: 2017 | M47: 2022 | N47: 2027 | O47: 2032 | P47: 2017 | Q47: NA | R47: NA | S47: NA | T47: 2017 | U47: 2022 | V47: 2022 | W47: No | X47: No | Y47: K-08 | Z47: 588 | AA47: Boston | AB47: ESMS | AC47: NA
A48: 429 | B48: KIPP Academy Lynn Charter School | C48: C | D48: 3 | F48: Lynn | G48: No Status | H48: 2004 | I48: Yes | J48: 2004 | K48: 15 | L48: 2009 | M48: 2014 | N48: 2019 | O48: 2024 | P48: 2009 | Q48: 2014 | R48: NA | S48: NA | T48: 2014 | U48: 2019 | V48: 2019 | W48: No | X48: No | Y48: K-12 | Z48: 1586 | AA48: Urban | AB48: MSHS | AC48: NA
A49: 454 | B49: Lawrence Family Development Charter School | C49: C | D49: 4 | F49: Lawrence | G49: No Status | H49: 1995 | I49: Yes | J49: 1995 | K49: 24 | L49: 2000 | M49: 2005 | N49: 2010 | O49: 2015 | P49: 2000 | Q49: 2005 | R49: 2010 | S49: 2015 | T49: 2015 | U49: 2020 | V49: 2020 | W49: No | X49: No | Y49: PK-08 | Z49: 800 | AA49: Urban | AB49: ESMS | AC49: NA
A50: 3514 | B50: Libertas Academy Charter School (New school opening FY18) | C50: C | D50: Springfield | E50: No | F50: Springfield | G50: No Status | H50: 2016 | I50: No | J50: 2017 | K50: 2 | L50: 2022 | M50: 2027 | N50: 2032 | O50: 2037 | P50: NA | Q50: NA | R50: NA | S50: NA | T50: 0 | U50: 2022 | V50: 2022 | W50: No | X50: No | Y50: 06-12 | Z50: 630 | AA50: Urban | AB50: ESMS | AC50: NA
A51: 456 | B51: Lowell Community Charter Public School | C51: C | D51: 4 | F51: Lowell | G51: No Status | H51: 1999 | I51: Yes | J51: 2000 | K51: 19 | L51: 2005 | M51: 2010 | N51: 2015 | O51: 2020 | P51: 2005 | Q51: 2010 | R51: 2015 | S51: NA | T51: 2015 | U51: 2020 | V51: 2020 | W51: No | X51: Former | Y51: PK-08 | Z51: 800 | AA51: Urban | AB51: ESMS | AC51: NA
A52: 458 | B52: Lowell Middlesex Academy Charter School | C52: C | D52: 4 | F52: Lowell | G52: No Status | H52: 1994 | I52: Yes | J52: 1995 | K52: 24 | L52: 2000 | M52: 2005 | N52: 2010 | O52: 2015 | P52: 2000 | Q52: 2005 | R52: 2010 | S52: 2015 | T52: 2015 | U52: 2020 | V52: 2020 | W52: No | X52: No | Y52: 09-12 | Z52: 150 | AA52: Urban | AB52: HS | AC52: NA
A53: 3517 | B53: Map Academy Charter School | C53: C | F53: Plymouth | G53: No Status | H53: 2017 | I53: Yes | J53: 2018 | K53: 1 | L53: 2023 | M53: 2028 | N53: 2033 | O53: 2038 | P53: NA | Q53: NA | R53: NA | S53: NA | T53: 0 | U53: 2023 | V53: 2023 | W53: Yes | X53: No | Y53: 09-12 | Z53: 300 | AA53: Suburb | AB53: HS | AC53: NA
A54: 464 | B54: Marblehead Community Charter Public School | C54: C | D54: 4 | F54: Marblehead | G54: No Status | H54: 1994 | I54: Yes | J54: 1995 | K54: 24 | L54: 2000 | M54: 2005 | N54: 2010 | O54: 2015 | P54: 2000 | Q54: 2005 | R54: 2010 | S54: 2015 | T54: 2015 | U54: 2020 | V54: 2020 | W54: No | X54: No | Y54: 04-08 | Z54: 230 | AA54: Suburb | AB54: ESMS | AC54: NA
A55: 466 | B55: Martha's Vineyard Public Charter School | C55: C | D55: 5 | F55: West Tisbury | G55: No Status | H55: 1995 | I55: Yes | J55: 1996 | K55: 23 | L55: 2001 | M55: 2006 | N55: 2011 | O55: 2016 | P55: 2001 | Q55: 2006 | R55: 2011 | S55: 2016 | T55: 2016 | U55: 2021 | V55: 2021 | W55: Yes | X55: No | Y55: K-12 | Z55: 180 | AA55: Suburb | AB55: K12 | AC55: NA
A56: 492 | B56: Martin Luther King, Jr. Charter School of Excellence | C56: C | D56: 5 | F56: Springfield | G56: Conditions | H56: 2005 | I56: Yes | J56: 2006 | K56: 13 | L56: 2011 | M56: 2016 | N56: 2021 | O56: 2026 | P56: 2011 | Q56: 2016 | R56: NA | S56: NA | T56: 2016 | U56: 2021 | V56: 2021 | W56: No | X56: No | Y56: K-05 | Z56: 360 | AA56: Urban | AB56: ES | AC56: NA
A57: 469 | B57: Match Charter Public School | C57: C | D57: 4 | F57: Boston | G57: No Status | H57: 1999 | I57: Yes | J57: 2000 | K57: 19 | L57: 2005 | M57: 2010 | N57: 2015 | O57: 2020 | P57: 2005 | Q57: 2010 | R57: 2015 | S57: NA | T57: 2015 | U57: 2020 | V57: 2020 | W57: No | X57: No | Y57: PK-12 | Z57: 1250 | AA57: Boston | AB57: K12 | AC57: NA
A58: 470 | B58: Mystic Valley Regional Charter School | C58: C | D58: 2 | F58: Malden | G58: No Status | H58: 1998 | I58: Yes | J58: 1998 | K58: 21 | L58: 2003 | M58: 2008 | N58: 2013 | O58: 2018 | P58: 2003 | Q58: 2008 | R58: 2013 | S58: 2018 | T58: 2018 | U58: 2023 | V58: 2023 | W58: Yes | X58: Former | Y58: K-12 | Z58: 1900 | AA58: Urban | AB58: K12 | AC58: NA
A59: 444 | B59: Neighborhood House Charter School | C59: C | D59: 4 | F59: Boston | G59: No Status | H59: 1994 | I59: Yes | J59: 1995 | K59: 24 | L59: 2000 | M59: 2005 | N59: 2010 | O59: 2015 | P59: 2000 | Q59: 2005 | R59: 2010 | S59: 2015 | T59: 2015 | U59: 2020 | V59: 2020 | W59: No | X59: No | Y59: PK-12 | Z59: 828 | AA59: Boston | AB59: K12 | AC59: NA
A60: 3513 | B60: New Heights Charter School of Brockton | C60: C | D60: 315 | E60: 315 | F60: Brockton | G60: No Status | H60: 2016 | I60: No | J60: 2016 | K60: 3 | L60: 2021 | M60: 2026 | N60: 2031 | O60: 2036 | P60: NA | Q60: NA | R60: NA | S60: NA | T60: 0 | U60: 2021 | V60: 2021 | W60: Yes | X60: No | Y60: 06-12 | Z60: 735 | AA60: Urban | AB60: ESMS | AC60: NA
A61: 3515 | B61: Old Sturbridge Academy Charter Public School | C61: C | F61: Sturbridge | G61: No Status | H61: 2017 | I61: Yes | J61: 2017 | K61: 2 | L61: 2022 | M61: 2027 | N61: 2032 | O61: 2037 | P61: NA | Q61: NA | R61: NA | S61: NA | T61: 0 | U61: 2022 | V61: 2022 | W61: Yes | X61: Yes | Y61: K-08 | Z61: 360 | AA61: Rural | AB61: ESMS | AC61: NA
A62: 3501 | B62: Paulo Freire Social Justice Charter School | C62: C | D62: 2 | F62: Holyoke | G62: Probation | H62: 2012 | I62: No | J62: 2013 | K62: 6 | L62: 2018 | M62: 2023 | N62: 2028 | O62: 2033 | P62: 2018 | Q62: NA | R62: NA | S62: NA | T62: 2018 | U62: 2023 | V62: 2023 | W62: Yes | X62: No | Y62: 09-12 | Z62: 500 | AA62: Urban | AB62: HS | AC62: NA
A63: 493 | B63: Phoenix Academy Charter Public High School, Chelsea | C63: C | D63: 5 | F63: Chelsea | G63: No Status | H63: 2005 | I63: Yes | J63: 2006 | K63: 13 | L63: 2011 | M63: 2016 | N63: 2021 | O63: 2026 | P63: 2011 | Q63: 2016 | R63: NA | S63: NA | T63: 2016 | U63: 2021 | V63: 2021 | W63: Yes | X63: No | Y63: 09-12 | Z63: 225 | AA63: Urban | AB63: HS | AC63: NA
A64: 3518 | B64: Phoenix Academy Public Charter High School, Lawrence | C64: C | F64: Lawrence | G64: No Status | H64: 2018 | I64: No | J64: 2018 | K64: 1 | L64: 2023 | M64: 2028 | N64: 2033 | O64: 2038 | P64: NA | Q64: NA | R64: NA | S64: NA | T64: 0 | U64: 2023 | V64: 2023 | W64: Yes | X64: No | Y64: 09-12 | Z64: 250 | AA64: Urban | AB64: HS | AC64: NA
A65: 3508 | B65: Phoenix Academy Public Charter High School, Springfield | C65: C | D65: 3 | F65: Springfield | G65: No Status | H65: 2013 | I65: No | J65: 2014 | K65: 5 | L65: 2019 | M65: 2024 | N65: 2029 | O65: 2034 | P65: NA | Q65: NA | R65: NA | S65: NA | T65: 0 | U65: 2019 | V65: 2019 | W65: Yes | X65: No | Y65: 09-12 | Z65: 250 | AA65: Urban | AB65: HS | AC65: NA
A66: 494 | B66: Pioneer Charter School of Science | C66: C | D66: 1 | F66: Everett | G66: No Status | H66: 2006 | I66: Yes | J66: 2007 | K66: 12 | L66: 2012 | M66: 2017 | N66: 2022 | O66: 2027 | P66: 2012 | Q66: 2017 | R66: NA | S66: NA | T66: 2017 | U66: 2022 | V66: 2022 | W66: Yes | X66: No | Y66: K-12 | Z66: 780 | AA66: Urban | AB66: K12 | AC66: NA
A67: 3506 | B67: Pioneer Charter School of Science II | C67: C | D67: 3 | F67: Saugus | G67: No Status | H67: 2013 | I67: No | J67: 2013 | K67: 6 | L67: 2018 | M67: 2023 | N67: 2028 | O67: 2033 | P67: 2018 | Q67: NA | R67: NA | S67: NA | T67: 2018 | U67: 2023 | V67: 2023 | W67: Yes | X67: No | Y67: 07-12 | Z67: 360 | AA67: Urban | AB67: MSHS | AC67: NA
A68: 497 | B68: Pioneer Valley Chinese Immersion Charter School | C68: C | D68: 1 | F68: Hadley | G68: No Status | H68: 2007 | I68: Yes | J68: 2007 | K68: 12 | L68: 2012 | M68: 2017 | N68: 2022 | O68: 2027 | P68: 2012 | Q68: 2017 | R68: NA | S68: NA | T68: 2017 | U68: 2022 | V68: 2022 | W68: Yes | X68: No | Y68: K-12 | Z68: 584 | AA68: Suburb | AB68: K12 | AC68: NA
A69: 479 | B69: Pioneer Valley Performing Arts Charter Public School | C69: C | D69: 5 | F69: South Hadley | G69: No Status | H69: 1996 | I69: Yes | J69: 1996 | K69: 23 | L69: 2001 | M69: 2006 | N69: 2011 | O69: 2016 | P69: 2001 | Q69: 2006 | R69: 2011 | S69: 2016 | T69: 2016 | U69: 2021 | V69: 2021 | W69: Yes | X69: No | Y69: 07-12 | Z69: 400 | AA69: Suburb | AB69: MSHS | AC69: NA
A70: 487 | B70: Prospect Hill Academy Charter School | C70: C | D70: 5 | F70: Somerville (K-6); Cambridge (7-12) | G70: No Status | H70: 1996 | I70: Yes | J70: 1996 | K70: 23 | L70: 2001 | M70: 2006 | N70: 2011 | O70: 2016 | P70: 2001 | Q70: 2006 | R70: 2011 | S70: 2016 | T70: 2016 | U70: 2021 | V70: 2021 | W70: Yes | X70: Former | Y70: PK-12 | Z70: 1200 | AA70: Urban | AB70: K12 | AC70: NA
A71: 483 | B71: Rising Tide Charter Public School | C71: C | D71: 2 | F71: Plymouth | G71: No Status | H71: 1998 | I71: Yes | J71: 1998 | K71: 21 | L71: 2003 | M71: 2008 | N71: 2013 | O71: 2018 | P71: 2003 | Q71: 2008 | R71: 2013 | S71: 2018 | T71: 2018 | U71: 2023 | V71: 2023 | W71: Yes | X71: Former | Y71: 05-12 | Z71: 700 | AA71: Suburb | AB71: MSHS | AC71: NA
A72: 482 | B72: River Valley Charter School | C72: C | D72: 3 | F72: Newburyport | G72: No Status | H72: 1999 | I72: Yes | J72: 1999 | K72: 20 | L72: 2004 | M72: 2009 | N72: 2014 | O72: 2019 | P72: 2004 | Q72: 2009 | R72: 2014 | S72: NA | T72: 2014 | U72: 2019 | V72: 2019 | W72: Yes | X72: No | Y72: K-08 | Z72: 288 | AA72: Rural | AB72: ESMS | AC72: NA
A73: 484 | B73: Roxbury Preparatory Charter School | C73: C | D73: 3 | F73: Boston | G73: No Status | H73: 1998 | I73: Yes | J73: 1999 | K73: 20 | L73: 2004 | M73: 2009 | N73: 2014 | O73: 2019 | P73: 2004 | Q73: 2009 | R73: 2014 | S73: NA | T73: 2014 | U73: 2019 | V73: 2019 | W73: No | X73: Yes | Y73: 05-12 | Z73: 1800 | AA73: Boston | AB73: MSHS | AC73: NA
A74: 441 | B74: Sabis International Charter School | C74: C | D74: 4 | F74: Springfield | G74: Conditions | H74: 1995 | I74: Yes | J74: 1995 | K74: 24 | L74: 2000 | M74: 2005 | N74: 2010 | O74: 2015 | P74: 2000 | Q74: 2005 | R74: 2010 | S74: 2015 | T74: 2015 | U74: 2020 | V74: 2020 | W74: No | X74: Yes | Y74: K-12 | Z74: 1574 | AA74: Urban | AB74: K12 | AC74: NA
A75: 485 | B75: Salem Academy Charter School | C75: C | D75: 3 | F75: Salem | G75: No Status | H75: 2003 | I75: Yes | J75: 2004 | K75: 15 | L75: 2009 | M75: 2014 | N75: 2019 | O75: 2024 | P75: 2009 | Q75: 2014 | R75: NA | S75: NA | T75: 2014 | U75: 2019 | V75: 2019 | W75: No | X75: No | Y75: 06-12 | Z75: 480 | AA75: Urban | AB75: MSHS | AC75: NA
A76: 486 | B76: Seven Hills Charter Public School | C76: C | D76: 5 | F76: Worcester | G76: No Status | H76: 1994 | I76: Yes | J76: 1996 | K76: 23 | L76: 2001 | M76: 2006 | N76: 2011 | O76: 2016 | P76: 2001 | Q76: 2006 | R76: 2011 | S76: 2016 | T76: 2016 | U76: 2021 | V76: 2021 | W76: No | X76: Former | Y76: K-08 | Z76: 666 | AA76: Urban | AB76: ESMS | AC76: NA
A77: 474 | B77: Sizer School, A North Central Charter Essential School | C77: C | D77: 1 | F77: Fitchburg | G77: Conditions | H77: 2001 | I77: Yes | J77: 2002 | K77: 17 | L77: 2007 | M77: 2012 | N77: 2017 | O77: 2022 | P77: 2007 | Q77: 2012 | R77: 2017 | S77: NA | T77: 2017 | U77: 2022 | V77: 2022 | W77: Yes | X77: No | Y77: 07-12 | Z77: 400 | AA77: Urban | AB77: MSHS | AC77: NA
A78: 488 | B78: South Shore Charter Public School | C78: C | D78: 4 | F78: Norwell | G78: No Status | H78: 1994 | I78: Yes | J78: 1995 | K78: 24 | L78: 2000 | M78: 2005 | N78: 2010 | O78: 2015 | P78: 2000 | Q78: 2005 | R78: 2010 | S78: 2015 | T78: 2015 | U78: 2020 | V78: 2020 | W78: Yes | X78: No | Y78: K-12 | Z78: 1075 | AA78: Rural | AB78: K12 | AC78: NA
A79: 3510 | B79: Springfield Preparatory Charter School | C79: C | D79: 4 | F79: Springfield | G79: No Status | H79: 2014 | I79: No | J79: 2015 | K79: 4 | L79: 2020 | M79: 2025 | N79: 2030 | O79: 2035 | P79: NA | Q79: NA | R79: NA | S79: NA | T79: 0 | U79: 2020 | V79: 2020 | W79: No | X79: No | Y79: K-08 | Z79: 486 | AA79: Urban | AB79: ESMS | AC79: NA
A80: 489 | B80: Sturgis Charter Public School | C80: C | D80: 2 | F80: Hyannis | G80: No Status | H80: 1998 | I80: Yes | J80: 1998 | K80: 21 | L80: 2003 | M80: 2008 | N80: 2013 | O80: 2018 | P80: 2003 | Q80: 2008 | R80: 2013 | S80: 2018 | T80: 2018 | U80: 2023 | V80: 2023 | W80: Yes | X80: No | Y80: 09-12 | Z80: 850 | AA80: Suburb | AB80: HS | AC80: NA
A81: 480 | B81: UP Academy Charter School of Boston | C81: HM | D81: 5 | F81: Boston | G81: No Status | H81: 2011 | I81: Yes | J81: 2011 | K81: 8 | L81: 2016 | M81: 2021 | N81: 2026 | O81: 2031 | P81: 2016 | Q81: NA | R81: NA | S81: NA | T81: 2016 | U81: 2021 | V81: 2021 | W81: NA | X81: Yes | Y81: 06-08 | Z81: 540 | AA81: Boston | AB81: MS | AC81: NA
A82: 3505 | B82: UP Academy Charter School of Dorchester | C82: HM | D82: 2 | F82: Boston | G82: Conditions | H82: 2013 | I82: Yes | J82: 2013 | K82: 6 | L82: 2018 | M82: 2023 | N82: 2028 | O82: 2033 | P82: 2018 | Q82: NA | R82: NA | S82: NA | T82: 2018 | U82: 2023 | V82: 2023 | W82: NA | X82: Yes | Y82: PK-08 | Z82: 820 | AA82: Boston | AB82: ESMS | AC82: NA
A83: 498 | B83: Veritas Preparatory Charter School | C83: C | D83: 1 | F83: Springfield | G83: No Status | H83: 2011 | I83: Yes | J83: 2012 | K83: 7 | L83: 2017 | M83: 2022 | N83: 2027 | O83: 2032 | P83: 2017 | Q83: NA | R83: NA | S83: NA | T83: 2017 | U83: 2022 | V83: 2022 | W83: No | X83: No | Y83: 05-08 | Z83: 432 | AA83: Urban | AB83: MS | AC83: NA
A84: Closed Schools | O84: NA
A85: 415 | B85: Amesbury Academy Charter Public School | C85: HM | D85: 5 | F85: Amesbury | G85: NA | H85: 2001 | I85: NA | J85: 2001 | K85: NA | L85: 2006 | M85: 2011 | N85: Post-Opening Surrender | O85: NA | U85: NA | V85: NA | W85: No | X85: No | Y85: 9-12 | Z85: 50 | AA85: Rural | AB85: HS | AC85: 2015 | AD85: surrender
A86: 423 | B86: Barnstable Horace Mann Charter School | C86: HM | D86: NA | E86: NA | F86: Barnstable | G86: NA | H86: 1998 | I86: NA | J86: 1999 | K86: NA | L86: 2004 | M86: 2009 | N86: Post-Opening Surrender | O86: NA | U86: NA | V86: NA | W86: No | X86: No | Y86: 04-05 | Z86: 1000 | AA86: Suburb | AB86: MS | AC86: 2012 | AD86: surrender
A87: 425 | B87: Boston University Residential Charter School | C87: C | D87: NA | E87: NA | F87: Granby | G87: NA | H87: 1994 | I87: NA | J87: 1997 | K87: NA | L87: Post-Opening Surrender | M87: NA | N87: NA | O87: NA | U87: NA | V87: NA | W87: No | X87: No | Y87: 42594 | Z87: NA | AA87: Rural | AB87: MSHS | AC87: 2000 | AD87: surrender
A88: 457 | B88: Brooke Charter School East Boston (FY17-will merge with 0428 and 0457 as Brooke Charter School LEA, 428 K-12) | C88: C | D88: 1 | E88: VLOOKUP(A22, LIAISONS, 3, FALSE) | F88: Boston | G88: NA | H88: 2011 | I88: No | J88: 2012 | K88: NA | L88: Returned due to merger | M88: NA | N88: NA | O88: NA | U88: NA | V88: NA | W88: Yes | X88: No | Y88: K-08 | Z88: 510 | AA88: Boston | AB88: ESMS | AC88: 2016 | AD88: consolidation
A89: 443 | B89: Brooke Charter School Mattapan (FY17-will merge with 0428 and 0457 as Brooke Charter School LEA 428, K-12) | C89: C | D89: 5 | F89: Boston | G89: NA | H89: 2011 | I89: No | J89: 2011 | K89: NA | L89: Returned due to merger | M89: NA | N89: NA | O89: NA | U89: NA | V89: NA | W89: No | X89: No | Y89: K-08 | Z89: 510 | AA89: Boston | AB89: ESMS | AC89: 2016 | AD89: consolidation
A90: 434 | B90: Champion Charter Public School | C90: HM | D90: NA | E90: NA | F90: Brockton | G90: NA | H90: 1998 | I90: NA | J90: 1998 | K90: NA | L90: Post-Opening Surrender | M90: NA | N90: NA | O90: NA | U90: NA | V90: NA | W90: No | X90: No | Y90: 09-12 | Z90: 125 | AA90: Urban | AB90: HS | AC90: 2008 | AD90: surrender
A91: 433 | B91: Dorchester Prep | C91: C | D91: NA | E91: NA | F91: Boston | G91: NA | H91: 2011 | I91: NA | J91: NA | K91: NA | L91: Returned due to merger | M91: NA | N91: NA | O91: NA | U91: NA | V91: NA | W91: No | X91: Former | Y91: 05-12 | Z91: 600 | AA91: Urban | AB91: MSHS | AC91: NA | AD91: consolidation
A92: 475 | B92: Dorchester Collegiate Academy Charter School | C92: C | D92: 3 | F92: Boston | G92: NA | H92: 2008 | I92: NA | J92: 2009 | K92: NA | L92: 2014 | M92: Revocation | N92: NA | O92: NA | U92: NA | V92: NA | W92: No | X92: No | Y92: 04-08 | Z92: 238 | AA92: Boston | AB92: ESMS | AC92: 2016 | AD92: revocation
A93: 459 | B93: Excel Academy Charter School - Boston II | C93: C | D93: NA | E93: NA | F93: Boston | G93: NA | H93: 2011 | I93: NA | J93: 2012 | K93: NA | L93: Returned due to merger | M93: NA | N93: NA | O93: NA | U93: NA | V93: NA | W93: No | X93: No | Y93: 05-12 | Z93: 448 | AA93: Boston | AB93: MSHS | AC93: 2014 | AD93: consolidation
A94: 461 | B94: Excel Academy Charter School - Chelsea | C94: C | D94: NA | E94: NA | F94: Chelsea | G94: NA | H94: 2011 | I94: NA | J94: 2011 | K94: NA | L94: Returned due to merger | M94: NA | N94: NA | O94: NA | U94: NA | V94: NA | W94: No | X94: No | Y94: 05-12 | Z94: 448 | AA94: Urban | AB94: MSHS | AC94: 2014 | AD94: consolidation
A95: 495 | B95: Fall River Maritime Charter Public School | C95: C | D95: NA | E95: NA | F95: Fall River | G95: NA | H95: 2006 | I95: NA | J95: NA | K95: NA | L95: Pre-Opening Surrender | M95: NA | N95: NA | O95: NA | U95: NA | V95: NA | W95: No | X95: Former | Y95: 05-08 | Z95: 80 | AA95: Urban | AB95: MS | AC95: NA | AD95: surrender
A96: 442 | B96: Frederick Douglass Charter School | C96: C | D96: NA | E96: NA | F96: Boston | G96: NA | H96: 1999 | I96: NA | J96: 2000 | K96: NA | L96: Non-Renewal | M96: NA | N96: NA | O96: NA | U96: NA | V96: NA | W96: No | X96: No | Y96: 06-12 | Z96: 408 | AA96: Boston | AB96: MSHS | AC96: 2005 | AD96: revocation
A97: 448 | B97: Gloucester Community Arts Charter School | C97: C | D97: NA | E97: NA | F97: Gloucester | G97: NA | H97: 2009 | I97: NA | J97: 2010 | K97: NA | L97: Post-Opening Surrender | M97: NA | N97: NA | O97: NA | U97: NA | V97: NA | W97: No | X97: No | Y97: K-08 | Z97: 240 | AA97: Urban | AB97: ESMS | AC97: 2013 | AD97: surrender
A98: 462 | B98: Grove Hall Prep | C98: C | D98: NA | E98: NA | F98: Boston | G98: NA | H98: 2011 | I98: NA | J98: 2011 | K98: NA | L98: Returned due to merger | M98: NA | N98: NA | O98: NA | U98: NA | V98: NA | W98: No | X98: Former | Y98: 05-12 | Z98: 600 | AA98: Urban | AB98: MS | AC98: 2012 | AD98: consolidation
A99: 448 | B99: Horace Mann Charter School of Essential Studies | C99: HM | D99: NA | E99: NA | F99: Springfield | G99: NA | H99: 1999 | I99: NA | J99: NA | K99: NA | L99: Pre-Opening Surrender | M99: NA | N99: NA | O99: NA | U99: NA | V99: NA | W99: No | X99: No | Y99: 09-12 | Z99: 600 | AA99: Urban | AB99: ESMS | AC99: NA | AD99: surrender
A100: 460 | B100: Lynn Community Charter School | C100: C | D100: NA | E100: NA | F100: Lynn | G100: NA | H100: 1996 | I100: NA | J100: 1997 | K100: NA | L100: Non-Renewal | M100: NA | N100: NA | O100: NA | U100: NA | V100: NA | W100: No | X100: No | Y100: K-08 | Z100: 270 | AA100: Urban | AB100: ESMS | AC100: 2002 | AD100: non-renewal
A101: 465 | B101: MATCH Community Day Charter Public School | C101: C | D101: NA | E101: NA | F101: Boston | G101: NA | H101: 2011 | I101: NA | J101: 2011 | K101: NA | L101: Returned due to merger | M101: NA | N101: NA | O101: NA | U101: NA | V101: NA | W101: No | X101: No | Y101: PK-12 | Z101: 700 | AA101: Boston | AB101: K12 | AC101: 2014 | AD101: consolidation
A102: 472 | B102: New Bedford Global Learning Charter School | C102: HM | D102: NA | E102: NA | F102: New Bedford | G102: NA | H102: 2000 | I102: NA | J102: 2002 | K102: NA | L102: Post-Opening Surrender | M102: NA | N102: NA | O102: NA | U102: NA | V102: NA | W102: No | X102: No | Y102: 05-12 | Z102: 400 | AA102: Urban | AB102: MSHS | AC102: 2007 | AD102: expired
A103: 471 | B103: New Leadership Charter School | C103: HM | D103: NA | E103: NA | F103: Springfield | G103: NA | H103: 1998 | I103: NA | J103: 1998 | K103: NA | L103: 2003 | M103: 2008 | N103: Post-Opening Surrender | O103: NA | U103: NA | V103: NA | W103: No | X103: No | Y103: 06-12 | Z103: 500 | AA103: Urban | AB103: MSHS | AC103: 2013 | AD103: expired
A104: 467 | B104: New Liberty Charter School of Salem | C104: HM | D104: NA | E104: NA | F104: Salem | G104: NA | H104: 2011 | I104: NA | J104: 2011 | K104: NA | L104: Post-Opening Surrender | M104: NA | N104: NA | O104: NA | U104: NA | V104: NA | W104: NA | X104: No | Y104: 09-12 | Z104: 125 | AA104: Urban | AB104: HS | AC104: 2016 | AD104: expired
A105: 473 | B105: North Star Academy Charter School | C105: C | D105: NA | E105: NA | F105: Springfield | G105: NA | H105: 1995 | I105: NA | J105: 1996 | K105: NA | L105: Post-Opening Surrender | M105: NA | N105: NA | O105: NA | U105: NA | V105: NA | W105: No | X105: No | Y105: 09-12 | Z105: 250 | AA105: Urban | AB105: HS | AC105: 2001 | AD105: surrender
A106: 476 | B106: Northern Bristol County Charter School | C106: C | D106: NA | E106: NA | F106: Bristol County | G106: NA | H106: 2001 | I106: NA | J106: NA | K106: NA | L106: Pre-Opening Surrender | M106: NA | N106: NA | O106: NA | U106: NA | V106: NA | W106: Yes | X106: No | Y106: K-08 | Z106: 500 | AA106: Urban | AB106: ESMS | AC106: NA | AD106: surrender
A107: 451 | B107: Robert M. Hughes Academy Charter Public School | C107: C | D107: NA | E107: NA | F107: Springfield | G107: NA | H107: 1999 | I107: NA | J107: 1999 | K107: NA | L107: 2004 | M107: 2009 | N107: Revocation | O107: NA | U107: NA | V107: NA | W107: No | X107: No | Y107: K-08 | Z107: 180 | AA107: Urban | AB107: ESMS | AC107: 2010 | AD107: revocation
A108: 422 | B108: Roxbury Charter High Public School | C108: C | D108: NA | E108: NA | F108: Boston | G108: NA | H108: 2002 | I108: NA | J108: 2003 | K108: NA | L108: Revocation | M108: NA | N108: NA | O108: NA | U108: NA | V108: NA | W108: No | X108: No | Y108: 09-12 | Z108: 400 | AA108: Boston | AB108: HS | AC108: 2005 | AD108: revocation
A109: 477 | B109: Silver Hill Horace Mann Charter School | C109: HM | D109: NA | E109: NA | F109: Haverhill | G109: NA | H109: 2008 | I109: NA | J109: 2008 | K109: NA | L109: 2013 | M109: Post-Opening Surrender | V109: NA | W109: NA | X109: No | Y109: K-05 | Z109: 580 | AA109: Urban | AB109: ES | AC109: 2018 | AD109: surrender
A110: 421 | B110: South End College Preparatory Charter School | C110: C | D110: NA | E110: NA | F110: Boston | G110: NA | H110: 2002 | I110: NA | J110: NA | K110: NA | L110: Pre-Opening Surrender | M110: NA | N110: NA | O110: NA | U110: NA | V110: NA | W110: No | X110: No | Y110: K-08 | Z110: 500 | AA110: Boston | AB110: ESMS | AC110: 2003 | AD110: surrender
A111: 476 | B111: Spirit of Knowledge Charter School | C111: C | D111: NA | E111: NA | F111: Worcester | G111: NA | H111: 2010 | I111: NA | J111: 2010 | K111: NA | L111: Post-Opening Surrender | M111: NA | N111: NA | O111: NA | U111: NA | V111: NA | W111: No | X111: No | Y111: 07-12 | Z111: 275 | AA111: Urban | AB111: MSHS | AC111: 2014 | AD111: surrender
A112: 3512 | B112: UP Academy Charter School of Springfield | C112: HM | D112: NA | E112: NA | F112: Springfield | G112: NA | H112: NA | I112: NA | J112: NA | K112: NA | L112: Pre-Opening Surrender | U112: 5 | V112: NA | W112: NA | X112: Yes | Y112: 06-08 | Z112: 800 | AA112: Urban | AB112: MS | AC112: NA | AD112: surrender
A113: 490 | B113: Uphams Corner Charter School | C113: C | D113: NA | E113: NA | F113: Boston | G113: NA | H113: 2002 | I113: NA | J113: 2002 | K113: NA | L113: 2007 | M113: Revocation | N113: NA | O113: NA | U113: NA | V113: NA | W113: No | X113: No | Y113: 05-08 | Z113: 200 | AA113: Boston | AB113: MS | AC113: 2009 | AD113: revocation
A114: 498 | B114: Youth Build Boston Charter School | C114: C | D114: NA | E114: NA | F114: Boston | G114: NA | H114: 1994 | I114: NA | J114: 1995 | K114: NA | L114: Revocation | M114: NA | N114: NA | O114: NA | U114: NA | V114: NA | W114: No | X114: No | Y114: 09-12 | Z114: 300 | AA114: Boston | AB114: HS | AC114: 1997 | AD114: surrender
B115: Total Currently Operating Commonwealths: | C115: 74
B116: Total Currently Operating Horace Manns (I): | C116: 3
B117: Total Currently Operating Horace Manns (II): | C117: 0
B118: Total Currently Operating Horace Manns (III): | C118: 5
B119: Total Charters Approved but not yet open: | C119: 0
B120: Total Charters Closed or Never Opened Since 1994: | C120: 30
B121: Total Charters Granted by BOE Since 1994: | C121: 112
A122: Updated Augst 2018

Sheet TEACHEREPIMS (hidden)
A1: Teachers only
A2: NE = Not Existing
A3: Closed = Closed District
A5: ORG_CODE | B5: ORG_NAME | C5: LEA | D5: FTE_19d | E5: HC_19d | F5: FTE_19a | G5: HC_19a | H5: FTE_18d | I5: HC_18d | J5: FTE_18a | K5: HC_18a | L5: FTE_17d | M5: HC_17d | N5: FTE_17a | O5: HC_17a | P5: FTE_16d | Q5: HC_16d | R5: FTE_16a | S5: HC_16a | T5: FTE_15d | U5: HC_15d | V5: FTE_15a | W5: HC_15a | X5: FTE_14d | Y5: HC_14d | Z5: FTE_14a | AA5: HC_14a | AB5: FTE_13d | AC5: HC_13d | AD5: FTE_13a | AE5: HC_13a | AF5: FTE_12d | AG5: HC_12d | AH5: FTE_12a | AI5: HC_12a | AJ5: FTE_11d | AK5: HC_11d | AL5: FTE_11a | AM5: HC_11a | AN5: FTE_10a | AO5: HC_10a
A6: 04070000 | B6: Dudley Street Neighborhood Charter School (District) | C6: 407 | D6: 22 | E6: 22 | F6: 22 | G6: 22 | H6: 19.5 | I6: 20 | J6: 19 | K6: 19 | L6: 20.98 | M6: 21 | N6: 20.98 | O6: 21 | P6: 18.21 | Q6: 19 | R6: 18.25 | S6: 19 | T6: 15.94 | U6: 16 | V6: 14.98 | W6: 15 | X6: 9.999 | Y6: 10 | Z6: 12.998 | AA6: 13 | AB6: 7.994 | AC6: 8 | AD6: 7.994 | AE6: 8 | AF6: NE | AG6: NE | AH6: NE | AI6: NE | AJ6: NE | AK6: NE | AL6: NE | AM6: NE | AN6: NE | AO6: NE
A7: 04090000 | B7: Alma del Mar Charter School (District) | C7: 409 | D7: 34.48 | E7: 35 | F7: 36.5 | G7: 37 | H7: 36.006 | I7: 36 | J7: 35.008 | K7: 35 | L7: 32.15 | M7: 32 | N7: 33.15 | O7: 33 | P7: 23.92 | Q7: 24 | R7: 28.92 | S7: 29 | T7: 17.03 | U7: 17 | V7: 22.38 | W7: 23 | X7: 18.99 | Y7: 19 | Z7: 18.99 | AA7: 19 | AB7: 15.24 | AC7: 15 | AD7: 16.28 | AE7: 16 | AF7: 13.88 | AG7: 14 | AH7: 13.88 | AI7: 14 | AJ7: NE | AK7: NE | AL7: NE | AM7: NE | AN7: NE | AO7: NE
A8: 04100000 | B8: Excel Academy Charter (District) | C8: 410 | D8: 105.66 | E8: 126 | F8: 101.315 | G8: 118 | H8: 88.989 | I8: 108 | J8: 98.44 | K8: 112 | L8: 78.09 | M8: 88 | N8: 85.98 | O8: 92 | P8: 70.74 | Q8: 85 | R8: 53.24 | S8: 89 | T8: 51.625 | U8: 65 | V8: 56.596 | W8: 68 | X8: 19.297 | Y8: 26 | Z8: 22.369 | AA8: 26 | AB8: 19.602 | AC8: 24 | AD8: 18.97 | AE8: 22 | AF8: 18.887 | AG8: 22 | AH8: 18.97 | AI8: 22 | AJ8: 16 | AK8: 19 | AL8: 16 | AM8: 19 | AN8: 17.8 | AO8: 18
A9: 04110000 | B9: Boston Green Academy Horace Mann Charter School (District) | C9: 411 | D9: 41.91 | E9: 41 | F9: 41.504 | G9: 43 | H9: 44.42 | I9: 47 | J9: 40.603 | K9: 47 | L9: 49.43 | M9: 51 | N9: 51.57 | O9: 53 | P9: 40.59 | Q9: 43 | R9: 41.02 | S9: 43 | T9: 37 | U9: 39 | V9: 35.01 | W9: 38 | X9: 27.334 | Y9: 39 | Z9: 33.084 | AA9: 44 | AB9: 27.659 | AC9: 42 | AD9: 30.85 | AE9: 40 | AF9: 25.36 | AG9: 32 | AH9: 25.3 | AI9: 32 | AJ9: NE | AK9: NE | AL9: NE | AM9: NE | AN9: NE | AO9: NE
A10: 04120000 | B10: Academy Of the Pacific Rim Charter Public (District) | C10: 412 | D10: 48.092 | E10: 49 | F10: 49.2 | G10: 51 | H10: 43.874 | I10: 53 | J10: 48.099 | K10: 53 | L10: 44.216 | M10: 48 | N10: 44.33 | O10: 48 | P10: 40.58 | Q10: 44 | R10: 42.2 | S10: 46 | T10: 42.334 | U10: 45 | V10: 42.5 | W10: 45 | X10: 36.65 | Y10: 39 | Z10: 38.65 | AA10: 41 | AB10: 36.1 | AC10: 38 | AD10: 35.917 | AE10: 38 | AF10: 36.8 | AG10: 38 | AH10: 36.8 | AI10: 38 | AJ10: 33.997 | AK10: 36 | AL10: 34.8 | AM10: 37 | AN10: 35.05 | AO10: 36
A11: 04130000 | B11: Four Rivers Charter Public (District) | C11: 413 | D11: 20.49 | E11: 35 | F11: 21.81 | G11: 35 | H11: 21.127 | I11: 31 | J11: 20.719 | K11: 31 | L11: 22.066 | M11: 31 | N11: 22 | O11: 31 | P11: 21.75 | Q11: 30 | R11: 22.82 | S11: 30 | T11: 21.955 | U11: 30 | V11: 21.11 | W11: 29 | X11: 21.81 | Y11: 28 | Z11: 22.36 | AA11: 30 | AB11: 21.855 | AC11: 28 | AD11: 21.268 | AE11: 28 | AF11: 21.86 | AG11: 29 | AH11: 21.66 | AI11: 30 | AJ11: 20.214 | AK11: 28 | AL11: 21.227 | AM11: 30 | AN11: 19.064 | AO11: 23
A12: 04140000 | B12: Berkshire Arts and Technology Charter Public (District) | C12: 414 | D12: 35.628 | E12: 39 | F12: 36.05 | G12: 39 | H12: 31.771 | I12: 38 | J12: 34.01 | K12: 40 | L12: 33.097 | M12: 40 | N12: 32.9 | O12: 40 | P12: 31.51 | Q12: 37 | R12: 31.299 | S12: 37 | T12: 28.99 | U12: 37 | V12: 29.59 | W12: 34 | X12: 30.11 | Y12: 37 | Z12: 30.34 | AA12: 37 | AB12: 27.88 | AC12: 34 | AD12: 27.55 | AE12: 33 | AF12: 24.057 | AG12: 28 | AH12: 24.866 | AI12: 29 | AJ12: 23.2 | AK12: 26 | AL12: 23.416 | AM12: 26 | AN12: 22.2 | AO12: 23
A13: 04150000 | B13: Amesbury Academy Charter Public (District) | C13: 415 | D13: Closed | E13: Closed | F13: Closed | G13: Closed | H13: Closed | I13: Closed | J13: Closed | K13: Closed | L13: Closed | M13: Closed | N13: Closed | O13: Closed | P13: Closed | Q13: Closed | R13: Closed | S13: Closed | T13: 4.37 | U13: 6 | V13: 5.3 | W13: 7 | X13: 4.777 | Y13: 8 | Z13: 6.071 | AA13: 8 | AB13: 5.658 | AC13: 7 | AD13: 7.203 | AE13: 9 | AF13: 4.772 | AG13: 9 | AH13: 5.473 | AI13: 9 | AJ13: 5.235 | AK13: 8 | AL13: 5.9 | AM13: 8 | AN13: 5.36 | AO13: 7
A14: 04160000 | B14: Boston Preparatory Charter Public (District) | C14: 416 | D14: 51.579 | E14: 59 | F14: 52.2 | G14: 58 | H14: 44.304 | I14: 51 | J14: 44.071 | K14: 52 | L14: 35.46 | M14: 41 | N14: 37.2 | O14: 39 | P14: 32.32 | Q14: 37 | R14: 34.55 | S14: 38 | T14: 30.433 | U14: 33 | V14: 33.05 | W14: 37 | X14: 34 | Y14: 35 | Z14: 34.5 | AA14: 36 | AB14: 32.895 | AC14: 34 | AD14: 32.895 | AE14: 34 | AF14: 35 | AG14: 35 | AH14: 35 | AI14: 35 | AJ14: 33.7 | AK14: 34 | AL14: 33.7 | AM14: 34 | AN14: 31.2 | AO14: 32
A15: 04170000 | B15: Bridge Boston Charter School (District) | C15: 417 | D15: 34.76 | E15: 36 | F15: 34.6 | G15: 36 | H15: 27.84 | I15: 30 | J15: 29.04 | K15: 31 | L15: 27.47 | M15: 30 | N15: 26.1 | O15: 29 | P15: 16.15 | Q15: 17 | R15: 19.4 | S15: 21 | T15: 14 | U15: 14 | V15: 14 | W15: 14 | X15: 11.625 | Y15: 12 | Z15: 11.625 | AA15: 12 | AB15: 6.488 | AC15: 7 | AD15: 7.488 | AE15: 8 | AF15: 4.87 | AG15: 6 | AH15: 5.15 | AI15: 6 | AJ15: NE | AK15: NE | AL15: NE | AM15: NE | AN15: NE | AO15: NE
A16: 04180000 | B16: Christa McAuliffe Charter Public (District) | C16: 418 | D16: 38.75 | E16: 40 | F16: 39.74 | G16: 41 | H16: 39.5 | I16: 41 | J16: 41 | K16: 42 | L16: 34.549 | M16: 39 | N16: 35.05 | O16: 40 | P16: 38.75 | Q16: 41 | R16: 38.5 | S16: 41 | T16: 37.014 | U16: 40 | V16: 38.1 | W16: 39 | X16: 32.888 | Y16: 34 | Z16: 30.3 | AA16: 32 | AB16: 30.726 | AC16: 34 | AD16: 27.224 | AE16: 36 | AF16: 26.293 | AG16: 32 | AH16: 26.45 | AI16: 31 | AJ16: 23.444 | AK16: 25 | AL16: 23 | AM16: 24 | AN16: 22.4 | AO16: 24
A17: 04190000 | B17: Helen Y. Davis Leadership Academy Charter Public (District) | C17: 419 | D17: 14.384 | E17: 15 | F17: 16 | G17: 16 | H17: 11.852 | I17: 12 | J17: 13.852 | K17: 14 | L17: 15.835 | M17: 16 | N17: 17 | O17: 17 | P17: 16 | Q17: 16 | R17: 16 | S17: 16 | T17: 15 | U17: 15 | V17: 18 | W17: 18 | X17: 17 | Y17: 17 | Z17: 19 | AA17: 19 | AB17: 19.72 | AC17: 20 | AD17: 20.22 | AE17: 20 | AF17: 15.098 | AG17: 16 | AH17: 18.093 | AI17: 19 | AJ17: 27.253 | AK17: 29 | AL17: 17.892 | AM17: 19 | AN17: 15.273 | AO17: 17
A18: 04200000 | B18: Benjamin Banneker Charter Public (District) | C18: 420 | D18: 18.8 | E18: 19 | F18: 17.8 | G18: 18 | H18: 17.8 | I18: 18 | J18: 18.01 | K18: 19 | L18: 21.024 | M18: 21 | N18: 20.02 | O18: 20 | P18: 20.02 | Q18: 20 | R18: 21.024 | S18: 21 | T18: 19.97 | U18: 20 | V18: 19.97 | W18: 20 | X18: 20 | Y18: 20 | Z18: 20 | AA18: 20 | AB18: 21.973 | AC18: 22 | AD18: 22.473 | AE18: 23 | AF18: 23.473 | AG18: 24 | AH18: 23.473 | AI18: 24 | AJ18: 23.06 | AK18: 23 | AL18: 23 | AM18: 23 | AN18: 22 | AO18: 22
A19: 04230000 | B19: Barnstable Horace Mann Charter (District) | C19: 423 | D19: Closed | E19: Closed | F19: Closed | G19: Closed | H19: Closed | I19: Closed | J19: Closed | K19: Closed | L19: Closed | M19: Closed | N19: Closed | O19: Closed | P19: Closed | Q19: Closed | R19: Closed | S19: Closed | T19: Closed | U19: Closed | V19: Closed | W19: Closed | X19: Closed | Y19: Closed | Z19: Closed | AA19: Closed | AB19: Closed | AC19: Closed | AD19: Closed | AE19: Closed | AF19: 57.239 | AG19: 60 | AH19: 57.239 | AI19: 60 | AJ19: 49.305 | AK19: 60 | AL19: 48.012 | AM19: 59 | AN19: 57.067 | AO19: 62
A20: 04240000 | B20: Boston Day and Evening Academy Charter (District) | C20: 424 | D20: 21.845 | E20: 28 | F20: 26 | G20: 26 | H20: 20.5 | I20: 21 | J20: 23.05 | K20: 23 | L20: 20.55 | M20: 21 | N20: 23 | O20: 24 | P20: 20.75 | Q20: 21 | R20: 21.6 | S20: 22 | T20: 20.6 | U20: 21 | V20: 22.6 | W20: 23 | X20: 24.65 | Y20: 27 | Z20: 26.4 | AA20: 28 | AB20: 26.55 | AC20: 27 | AD20: 27.5 | AE20: 28 | AF20: 23.3 | AG20: 23 | AH20: 25.55 | AI20: 27 | AJ20: 20.7 | AK20: 21 | AL20: 24.6 | AM20: 25 | AN20: 21.8 | AO20: 22
A21: 04260000 | B21: Community Day Charter Public School - Gateway (District) | C21: 426 | D21: 40 | E21: 40 | F21: 40 | G21: 40 | H21: 32.5 | I21: 34 | J21: 33 | K21: 35 | L21: 28.75 | M21: 32 | N21: 27.5 | O21: 31 | P21: 23.5 | Q21: 26 | R21: 24 | S21: 27 | T21: 21.6 | U21: 26 | V21: 22.6 | W21: 27 | X21: 18.09 | Y21: 20 | Z21: 18.09 | AA21: 20 | AB21: 12.836 | AC21: 14 | AD21: 12.836 | AE21: 14 | AF21: NE | AG21: NE | AH21: NE | AI21: NE | AJ21: NE | AK21: NE | AL21: NE | AM21: NE | AN21: NE | AO21: NE
A22: 04270000 | B22: Barnstable Community Horace Mann Charter Public (District) | C22: 427 | D22: 23.4 | E22: 25 | F22: 24 | G22: 26 | H22: 23 | I22: 25 | J22: 24 | K22: 26 | L22: 24.8 | M22: 26 | N22: 21.99 | O22: 24 | P22: 25.61 | Q22: 26 | R22: 26.008 | S22: 26 | T22: 24.392 | U22: 26 | V22: 23.608 | W22: 24 | X22: 23.608 | Y22: 24 | Z22: 23.741 | AA22: 24 | AB22: 23.608 | AC22: 24 | AD22: 23.608 | AE22: 24 | AF22: 22.992 | AG22: 23 | AH22: 22.992 | AI22: 23 | AJ22: 22.3 | AK22: 23 | AL22: 22.3 | AM22: 23 | AN22: 25.4 | AO22: 26
A23: 04280000 | B23: Brooke Charter School (District) | C23: 428 | D23: 152.99 | E23: 153 | F23: 158 | G23: 158 | H23: 140.41 | I23: 142 | J23: 139.39 | K23: 141 | L23: 109.457 | M23: 123 | N23: 110.29 | O23: 124 | P23: 39 | Q23: 39 | R23: 39 | S23: 39 | T23: 42 | U23: 42 | V23: 41 | W23: 41 | X23: 40 | Y23: 41 | Z23: 41 | AA23: 42 | AB23: 38 | AC23: 38 | AD23: 38 | AE23: 38 | AF23: 36 | AG23: 36 | AH23: 36 | AI23: 36 | AJ23: 33.373 | AK23: 33 | AL23: 34.995 | AM23: 35 | AN23: 36 | AO23: 36
A24: 04290000 | B24: KIPP Academy Lynn Charter (District) | C24: 429 | D24: 102.347 | E24: 109 | F24: 100.5 | G24: 106 | H24: 100.503 | I24: 105 | J24: 109.634 | K24: 115 | L24: 95.666 | M24: 100 | N24: 99.74 | O24: 106 | P24: 88.33 | Q24: 93 | R24: 87.574 | S24: 94 | T24: 76.927 | U24: 80 | V24: 76.72 | W24: 80 | X24: 49.04 | Y24: 54 | Z24: 65.63 | AA24: 69 | AB24: 48.69 | AC24: 52 | AD24: 49.24 | AE24: 53 | AF24: 31.945 | AG24: 34 | AH24: 32.945 | AI24: 35 | AJ24: 25.86 | AK24: 26 | AL24: 25.86 | AM24: 26 | AN24: 26 | AO24: 28
A25: 04300000 | B25: Advanced Math and Science Academy Charter (District) | C25: 430 | D25: 79.23 | E25: 85 | F25: 81.539 | G25: 86 | H25: 78.48 | I25: 83 | J25: 82.046 | K25: 87 | L25: 74.054 | M25: 81 | N25: 78.36 | O25: 81 | P25: 75.71 | Q25: 84 | R25: 76.361 | S25: 82 | T25: 80.781 | U25: 85 | V25: 81.392 | W25: 86 | X25: 86.35 | Y25: 89 | Z25: 86.96 | AA25: 90 | AB25: 81.544 | AC25: 86 | AD25: 80.463 | AE25: 87 | AF25: 80.509 | AG25: 83 | AH25: 80.358 | AI25: 83 | AJ25: 72.392 | AK25: 74 | AL25: 70.433 | AM25: 72 | AN25: 61.17 | AO25: 62
A26: 04310000 | B26: Community Day Charter Public School - R. Kingman Webster (District) | C26: 431 | D26: 39 | E26: 39 | F26: 39 | G26: 39 | H26: 32.5 | I26: 34 | J26: 33.5 | K26: 35 | L26: 30.5 | M26: 33 | N26: 30.5 | O26: 33 | P26: 24.52 | Q26: 27 | R26: 25.02 | S26: 28 | T26: 23.6 | U26: 28 | V26: 22.6 | W26: 27 | X26: 18.08 | Y26: 20 | Z26: 18.08 | AA26: 20 | AB26: 13.83 | AC26: 15 | AD26: 13.83 | AE26: 15 | AF26: NE | AG26: NE | AH26: NE | AI26: NE | AJ26: NE | AK26: NE | AL26: NE | AM26: NE | AN26: NE | AO26: NE
A27: 04320000 | B27: Cape Cod Lighthouse Charter (District) | C27: 432 | D27: 20.909 | E27: 29 | F27: 21.455 | G27: 33 | H27: 21.685 | I27: 32 | J27: 21.969 | K27: 29 | L27: 22.5 | M27: 33 | N27: 21.49 | O27: 28 | P27: 20.43 | Q27: 31 | R27: 21.5 | S27: 28 | T27: 21.96 | U27: 29 | V27: 21.78 | W27: 27 | X27: 18.54 | Y27: 27 | Z27: 17.99 | AA27: 24 | AB27: 18.41 | AC27: 29 | AD27: 18.12 | AE27: 26 | AF27: 18.18 | AG27: 28 | AH27: 18.14 | AI27: 26 | AJ27: 17.86 | AK27: 26 | AL27: 18.99 | AM27: 26 | AN27: 19.45 | AO27: 26
A28: 04350000 | B28: Innovation Academy Charter (District) | C28: 435 | D28: 67.683 | E28: 76 | F28: 70.23 | G28: 78 | H28: 74.263 | I28: 82 | J28: 75.366 | K28: 81 | L28: 74.969 | M28: 85 | N28: 73.28 | O28: 79 | P28: 78.15 | Q28: 87 | R28: 72.555 | S28: 80 | T28: 70.253 | U28: 79 | V28: 67.131 | W28: 73 | X28: 58.822 | Y28: 66 | Z28: 62.313 | AA28: 67 | AB28: 58.345 | AC28: 65 | AD28: 59.636 | AE28: 65 | AF28: 56.005 | AG28: 63 | AH28: 56.945 | AI28: 61 | AJ28: 55.085 | AK28: 64 | AL28: 56.181 | AM28: 62 | AN28: 42.58 | AO28: 45
A29: 04360000 | B29: Community Charter School of Cambridge (District) | C29: 436 | D29: 35.752 | E29: 43 | F29: 36.69 | G29: 42 | H29: 39.189 | I29: 46 | J29: 34.4 | K29: 43 | L29: 32.228 | M29: 54 | N29: 32.37 | O29: 55 | P29: 30.51 | Q29: 48 | R29: 33.46 | S29: 50 | T29: 32.18 | U29: 41 | V29: 30.939 | W29: 39 | X29: 34.386 | Y29: 42 | Z29: 38.17 | AA29: 42 | AB29: 35.39 | AC29: 38 | AD29: 34.41 | AE29: 37 | AF29: 30.96 | AG29: 34 | AH29: 31.185 | AI29: 33 | AJ29: 30.385 | AK29: 37 | AL29: 28.137 | AM29: 37 | AN29: 24.63 | AO29: 28
A30: 04370000 | B30: City on a Hill Charter Public School Circuit Street (District) | C30: 437 | D30: 22.79 | E30: 34 | F30: 23.7 | G30: 34 | H30: 26.7 | I30: 33 | J30: 26.701 | K30: 33 | L30: 25.1 | M30: 31 | N30: 25.1 | O30: 31 | P30: 24.52 | Q30: 33 | R30: 25.4 | S30: 34 | T30: 22.447 | U30: 29 | V30: 26.004 | W30: 33 | X30: 23.8 | Y30: 31 | Z30: 23.8 | AA30: 32 | AB30: 24.77 | AC30: 32 | AD30: 24.9 | AE30: 32 | AF30: 22 | AG30: 30 | AH30: 21.9 | AI30: 30 | AJ30: 16.4 | AK30: 25 | AL30: 19 | AM30: 27 | AN30: 20.2 | AO30: 27
A31: 04380000 | B31: Codman Academy Charter Public (District) | C31: 438 | D31: 40.398 | E31: 43 | F31: 39.58 | G31: 43 | H31: 35.393 | I31: 37 | J31: 36.966 | K31: 40 | L31: 36.05 | M31: 37 | N31: 35.94 | O31: 36 | P31: 29.42 | Q31: 33 | R31: 30.35 | S31: 33 | T31: 20.75 | U31: 23 | V31: 25.903 | W31: 28 | X31: 17.41 | Y31: 19 | Z31: 18.71 | AA31: 20 | AB31: 14.05 | AC31: 19 | AD31: 14.98 | AE31: 18 | AF31: 14.61 | AG31: 16 | AH31: 15.26 | AI31: 16 | AJ31: 14.07 | AK31: 17 | AL31: 14.2 | AM31: 18 | AN31: 15.1 | AO31: 18
A32: 04390000 | B32: Conservatory Lab Charter (District) | C32: 439 | D32: 25 | E32: 26 | F32: 25 | G32: 26 | H32: 24.25 | I32: 26 | J32: 25.25 | K32: 27 | L32: 20.98 | M32: 21 | N32: 21.97 | O32: 22 | P32: 13.99 | Q32: 14 | R32: 26.505 | S32: 27 | T32: 18 | U32: 18 | V32: 18 | W32: 18 | X32: 14.25 | Y32: 15 | Z32: 14 | AA32: 14 | AB32: 8 | AC32: 8 | AD32: 8 | AE32: 8 | AF32: 9 | AG32: 9 | AH32: 9 | AI32: 9 | AJ32: 10 | AK32: 10 | AL32: 10 | AM32: 10 | AN32: 14.4 | AO32: 16
A33: 04400000 | B33: Community Day Charter Public School - Prospect (District) | C33: 440 | D33: 42.4 | E33: 43 | F33: 43.4 | G33: 44 | H33: 45.3 | I33: 46 | J33: 45.3 | K33: 46 | L33: 44 | M33: 44 | N33: 45 | O33: 45 | P33: 42 | Q33: 42 | R33: 42 | S33: 42 | T33: 43.3 | U33: 48 | V33: 43.8 | W33: 49 | X33: 33.83 | Y33: 36 | Z33: 33.83 | AA33: 36 | AB33: 35.75 | AC33: 37 | AD33: 35.75 | AE33: 37 | AF33: 38.125 | AG33: 39 | AH33: 38.125 | AI33: 39 | AJ33: 34.462 | AK33: 37 | AL33: 34.462 | AM33: 37 | AN33: 34.617 | AO33: 37
A34: 04410000 | B34: Sabis International Charter (District) | C34: 441 | D34: 93.51 | E34: 94 | F34: 64.16 | G34: 92 | H34: 65.4 | I34: 94 | J34: 66.01 | K34: 94 | L34: 67.81 | M34: 96 | N34: 65.78 | O34: 94 | P34: 65.98 | Q34: 96 | R34: 64.16 | S34: 94 | T34: 65.45 | U34: 96 | V34: 64.59 | W34: 95 | X34: 65.45 | Y34: 96 | Z34: 63.23 | AA34: 94 | AB34: 65.79 | AC34: 96 | AD34: 64.54 | AE34: 94 | AF34: 66.32 | AG34: 97 | AH34: 65.3 | AI34: 96 | AJ34: 63.23 | AK34: 95 | AL34: 63.93 | AM34: 97 | AN34: 70.1 | AO34: 93
A35: 04430000 | B35: Brooke Charter School Mattapan (District) | C35: 443 | D35: Closed | E35: Closed | F35: Closed | G35: Closed | H35: Closed | I35: Closed | J35: Closed | K35: Closed | L35: Closed | M35: Closed | N35: Closed | O35: Closed | P35: 41 | Q35: 41 | R35: 41 | S35: 41 | T35: 42.963 | U35: 43 | V35: 41.883 | W35: 42 | X35: 26 | Y35: 26 | Z35: 33 | AA35: 33 | AB35: 24.25 | AC35: 26 | AD35: 24.25 | AE35: 26 | AF35: 16 | AG35: 16 | AH35: 16 | AI35: 16 | AJ35: NE | AK35: NE | AL35: NE | AM35: NE | AN35: NE | AO35: NE
A36: 04440000 | B36: Neighborhood House Charter (District) | C36: 444 | D36: 66.747 | E36: 74 | F36: 66.246 | G36: 71 | H36: 57.85 | I36: 60 | J36: 57.848 | K36: 59 | L36: 47.91 | M36: 50 | N36: 49.11 | O36: 52 | P36: 36.5 | Q36: 38 | R36: 37.504 | S36: 39 | T36: 34.334 | U36: 36 | V36: 34.334 | W36: 36 | X36: 34.64 | Y36: 35 | Z36: 32.35 | AA36: 33 | AB36: 34.979 | AC36: 35 | AD36: 34.979 | AE36: 35 | AF36: 38.554 | AG36: 39 | AH36: 36.69 | AI36: 37 | AJ36: 42 | AK36: 42 | AL36: 41.8 | AM36: 42 | AN36: 40.8 | AO36: 41
A37: 04450000 | B37: Abby Kelley Foster Charter Public (District) | C37: 445 | D37: 116.599 | E37: 119 | F37: 116.393 | G37: 120 | H37: 112.453 | I37: 116 | J37: 108.972 | K37: 111 | L37: 111.402 | M37: 111 | N37: 106.62 | O37: 109 | P37: 115.26 | Q37: 118 | R37: 118.053 | S37: 120 | T37: 116.544 | U37: 118 | V37: 117.043 | W37: 119 | X37: 116.588 | Y37: 118 | Z37: 111.805 | AA37: 114 | AB37: 113.555 | AC37: 116 | AD37: 116.58 | AE37: 120 | AF37: 113.06 | AG37: 113 | AH37: 111.898 | AI37: 114 | AJ37: 112.98 | AK37: 114 | AL37: 111.701 | AM37: 115 | AN37: 101.55 | AO37: 103
A38: 04460000 | B38: Foxborough Regional Charter (District) | C38: 446 | D38: 130.379 | E38: 134 | F38: 129.8 | G38: 134 | H38: 111.694 | I38: 115 | J38: 111.699 | K38: 115 | L38: 94.644 | M38: 101 | N38: 92.25 | O38: 101 | P38: 80.8 | Q38: 90 | R38: 82.182 | S38: 93 | T38: 84.061 | U38: 92 | V38: 86.003 | W38: 91 | X38: 86.643 | Y38: 91 | Z38: 82.119 | AA38: 91 | AB38: 81.048 | AC38: 91 | AD38: 78.242 | AE38: 89 | AF38: 85.326 | AG38: 94 | AH38: 84.8 | AI38: 94 | AJ38: 79.269 | AK38: 89 | AL38: 83 | AM38: 91 | AN38: 77.4 | AO38: 77
A39: 04470000 | B39: Benjamin Franklin Classical Charter Public (District) | C39: 447 | D39: 29.996 | E39: 30 | F39: 30 | G39: 30 | H39: 32.8 | I39: 33 | J39: 33 | K39: 33 | L39: 31.802 | M39: 38 | N39: 28.22 | O39: 35 | P39: 29.73 | Q39: 31 | R39: 27.201 | S39: 28 | T39: 23.144 | U39: 32 | V39: 25.109 | W39: 34 | X39: 33.007 | Y39: 33 | Z39: 32.994 | AA39: 33 | AB39: 31.001 | AC39: 31 | AD39: 32.994 | AE39: 33 | AF39: 28.934 | AG39: 30 | AH39: 36.782 | AI39: 40 | AJ39: 30.791 | AK39: 34 | AL39: 30.791 | AM39: 34 | AN39: 30.74 | AO39: 33
A40: 04480000 | B40: Gloucester Community Arts Charter (District) | C40: 448 | D40: Closed | E40: Closed | F40: Closed | G40: Closed | H40: Closed | I40: Closed | J40: Closed | K40: Closed | L40: Closed | M40: Closed | N40: Closed | O40: Closed | P40: Closed | Q40: Closed | R40: Closed | S40: Closed | T40: Closed | U40: Closed | V40: Closed | W40: Closed | X40: Closed | Y40: Closed | Z40: Closed | AA40: Closed | AB40: Closed | AC40: Closed | AD40: 12.004 | AE40: 12 | AF40: 13.207 | AG40: 15 | AH40: 14.228 | AI40: 18 | AJ40: 7.8 | AK40: 8 | AL40: 8.8 | AM40: 9 | AN40: NE | AO40: NE
A41: 04490000 | B41: Boston Collegiate Charter (District) | C41: 449 | D41: 60.781 | E41: 71 | F41: 61.404 | G41: 68 | H41: 63.508 | I41: 68 | J41: 63.504 | K41: 68 | L41: 60.767 | M41: 65 | N41: 65.74 | O41: 70 | P41: 59.14 | Q41: 62 | R41: 63.206 | S41: 64 | T41: 59.167 | U41: 63 | V41: 58.741 | W41: 64 | X41: 60.177 | Y41: 62 | Z41: 62.11 | AA41: 64 | AB41: 60.939 | AC41: 60 | AD41: 61.147 | AE41: 63 | AF41: 54.159 | AG41: 59 | AH41: 52.584 | AI41: 58 | AJ41: 44.555 | AK41: 56 | AL41: 44.405 | AM41: 55 | AN41: 39.018 | AO41: 49
A42: 04500000 | B42: Hilltown Cooperative Charter Public (District) | C42: 450 | D42: 20.27 | E42: 24 | F42: 19.62 | G42: 24 | H42: 19.93 | I42: 23 | J42: 19.93 | K42: 23 | L42: 19.155 | M42: 22 | N42: 19.76 | O42: 23 | P42: 20.06 | Q42: 23 | R42: 20.055 | S42: 23 | T42: 15.989 | U42: 19 | V42: 16.989 | W42: 20 | X42: 14.442 | Y42: 18 | Z42: 14.692 | AA42: 19 | AB42: 14.692 | AC42: 18 | AD42: 14.692 | AE42: 18 | AF42: 14.391 | AG42: 18 | AH42: 14.391 | AI42: 18 | AJ42: 13.69 | AK42: 15 | AL42: 13.69 | AM42: 15 | AN42: 13.69 | AO42: 15
A43: 04510000 | B43: Robert M. Hughes Academy Charter Public (District) | C43: 451 | D43: Closed | E43: Closed | F43: Closed | G43: Closed | H43: Closed | I43: Closed | J43: Closed | K43: Closed | L43: Closed | M43: Closed | N43: Closed | O43: Closed | P43: Closed | Q43: Closed | R43: Closed | S43: Closed | T43: Closed | U43: Closed | V43: Closed | W43: Closed | X43: Closed | Y43: Closed | Z43: Closed | AA43: Closed | AB43: Closed | AC43: Closed | AD43: Closed | AE43: Closed | AF43: Closed | AG43: Closed | AH43: Closed | AI43: Closed | AJ43: Closed | AK43: Closed | AL43: Closed | AM43: Closed | AN43: 8.48 | AO43: 10
A44: 04520000 | B44: Edward M. Kennedy Academy for Health Careers (Horace Mann Charter) (District) | C44: 452 | D44: 37.496 | E44: 45 | F44: 39.703 | G44: 48 | H44: 30.296 | I44: 34 | J44: 35.295 | K44: 39 | L44: 24.98 | M44: 28 | N44: 28.7 | O44: 32 | P44: 23.25 | Q44: 26 | R44: 27.854 | S44: 30 | T44: 24.275 | U44: 27 | V44: 28.25 | W44: 31 | X44: 23.349 | Y44: 29 | Z44: 25.317 | AA44: 30 | AB44: 23.54 | AC44: 27 | AD44: 23.54 | AE44: 27 | AF44: 20.1 | AG44: 25 | AH44: 19.7 | AI44: 25 | AJ44: 20 | AK44: 24 | AL44: 20 | AM44: 24 | AN44: 18.9 | AO44: 22
A45: 04530000 | B45: Holyoke Community Charter (District) | C45: 453 | D45: 46.2 | E45: 46 | F45: 52.09 | G45: 52 | H45: 51.92 | I45: 52 | J45: 52.13 | K45: 52 | L45: 52.5 | M45: 53 | N45: 52.52 | O45: 53 | P45: 53.68 | Q45: 54 | R45: 52.03 | S45: 52 | T45: 50.948 | U45: 51 | V45: 50.938 | W45: 51 | X45: 53.118 | Y45: 54 | Z45: 53.618 | AA45: 54 | AB45: 51.115 | AC45: 51 | AD45: 50.145 | AE45: 50 | AF45: 47.916 | AG45: 48 | AH45: 48.906 | AI45: 49 | AJ45: 48.048 | AK45: 48 | AL45: 46.059 | AM45: 46 | AN45: 45 | AO45: 45
A46: 04540000 | B46: Lawrence Family Development Charter (District) | C46: 454 | D46: 60.5 | E46: 61 | F46: 61.5 | G46: 62 | H46: 60.499 | I46: 61 | J46: 60.87 | K46: 60 | L46: 59.543 | M46: 60 | N46: 59.54 | O46: 60 | P46: 57.47 | Q46: 58 | R46: 56.466 | S46: 57 | T46: 56 | U46: 56 | V46: 56 | W46: 56 | X46: 53 | Y46: 53 | Z46: 54 | AA46: 54 | AB46: 54 | AC46: 54 | AD46: 54 | AE46: 54 | AF46: 52.956 | AG46: 53 | AH46: 51.956 | AI46: 52 | AJ46: 49 | AK46: 49 | AL46: 50 | AM46: 50 | AN46: 51 | AO46: 51
A47: 04550000 | B47: Hill View Montessori Charter Public (District) | C47: 455 | D47: 22 | E47: 22 | F47: 22 | G47: 22 | H47: 24.072 | I47: 24 | J47: 25 | K47: 25 | L47: 18.015 | M47: 22 | N47: 20.07 | O47: 25 | P47: 17.75 | Q47: 22 | R47: 19.553 | S47: 24 | T47: 21.576 | U47: 24 | V47: 22.676 | W47: 23 | X47: 20.653 | Y47: 24 | Z47: 20.153 | AA47: 22 | AB47: 22.352 | AC47: 23 | AD47: 21.477 | AE47: 23 | AF47: 27.478 | AG47: 30 | AH47: 27.828 | AI47: 29 | AJ47: 24.201 | AK47: 27 | AL47: 26.625 | AM47: 29 | AN47: 23.725 | AO47: 25
A48: 04560000 | B48: Lowell Community Charter Public (District) | C48: 456 | D48: 65.336 | E48: 66 | F48: 64.34 | G48: 65 | H48: 64.462 | I48: 65 | J48: 63.467 | K48: 64 | L48: 62.47 | M48: 63 | N48: 60.97 | O48: 62 | P48: 62.65 | Q48: 63 | R48: 61.54 | S48: 62 | T48: 49.94 | U48: 50 | V48: 55.94 | W48: 56 | X48: 48.13 | Y48: 48 | Z48: 48.09 | AA48: 48 | AB48: 45.63 | AC48: 47 | AD48: 47.46 | AE48: 49 | AF48: 47.69 | AG48: 48 | AH48: 45.94 | AI48: 46 | AJ48: 61.293 | AK48: 62 | AL48: 57.857 | AM48: 59 | AN48: 79 | AO48: 79
A49: 04570000 | B49: Brooke Charter School East Boston (District) | C49: 457 | D49: Closed | E49: Closed | F49: Closed | G49: Closed | H49: Closed | I49: Closed | J49: Closed | K49: Closed | L49: Closed | M49: Closed | N49: Closed | O49: Closed | P49: 40 | Q49: 40 | R49: 40 | S49: 40 | T49: 33 | U49: 33 | V49: 33 | W49: 33 | X49: 24.5 | Y49: 25 | Z49: 24.5 | AA49: 25 | AB49: 15.5 | AC49: 16 | AD49: 15.5 | AE49: 16 | AF49: NE | AG49: NE | AH49: NE | AI49: NE | AJ49: NE | AK49: NE | AL49: NE | AM49: NE | AN49: NE | AO49: NE
A50: 04580000 | B50: Lowell Middlesex Academy Charter (District) | C50: 458 | D50: 9 | E50: 11 | F50: 9 | G50: 11 | H50: 10.5 | I50: 12 | J50: 10.5 | K50: 12 | L50: 11 | M50: 13 | N50: 10.48 | O50: 12 | P50: 11 | Q50: 12 | R50: 9.668 | S50: 10 | T50: 11.77 | U50: 13 | V50: 11.905 | W50: 14 | X50: 11.911 | Y50: 14 | Z50: 12.51 | AA50: 13 | AB50: 13.713 | AC50: 15 | AD50: 12.977 | AE50: 15 | AF50: 10.4 | AG50: 14 | AH50: 11.4 | AI50: 14 | AJ50: 12.8 | AK50: 15 | AL50: 12 | AM50: 15 | AN50: 9.6 | AO50: 11
A51: 04590000 | B51: Excel Academy Charter School - Boston II | C51: 459 | D51: Closed | E51: Closed | F51: Closed | G51: Closed | H51: Closed | I51: Closed | J51: Closed | K51: Closed | L51: Closed | M51: Closed | N51: Closed | O51: Closed | P51: Closed | Q51: Closed | R51: Closed | S51: Closed | T51: Closed | U51: Closed | V51: Closed | W51: Closed | X51: 8.625 | Y51: 14 | Z51: 11.099 | AA51: 15 | AB51: 4.17 | AC51: 6 | AD51: 5.298 | AE51: 6 | AF51: NE | AG51: NE | AH51: NE | AI51: NE | AJ51: NE | AK51: NE | AL51: NE | AM51: NE | AN51: NE | AO51: NE
A52: 04610000 | B52: Excel Academy Charter School - Chelsea | C52: 461 | D52: Closed | E52: Closed | F52: Closed | G52: Closed | H52: Closed | I52: Closed | J52: Closed | K52: Closed | L52: Closed | M52: Closed | N52: Closed | O52: Closed | P52: Closed | Q52: Closed | R52: Closed | S52: Closed | T52: Closed | U52: Closed | V52: Closed | W52: Closed | X52: 12.734 | Y52: 17 | Z52: 14.896 | AA52: 17 | AB52: 7.806 | AC52: 12 | AD52: 10.002 | AE52: 12 | AF52: 5.104 | AG52: 6 | AH52: 5.802 | AI52: 6 | AJ52: NE | AK52: NE | AL52: NE | AM52: NE | AN52: NE | AO52: NE
A53: 04620000 | B53: Grove Hall Preparatory Charter School (District) | C53: 462 | D53: Closed | E53: Closed | F53: Closed | G53: Closed | H53: Closed | I53: Closed | J53: Closed | K53: Closed | L53: Closed | M53: Closed | N53: Closed | O53: Closed | P53: Closed | Q53: Closed | R53: Closed | S53: Closed | T53: Closed | U53: Closed | V53: Closed | W53: Closed | X53: Closed | Y53: Closed | Z53: Closed | AA53: Closed | AB53: Closed | AC53: Closed | AD53: Closed | AE53: Closed | AF53: 7.94 | AG53: 8 | AH53: 7.99 | AI53: 8 | AJ53: NE | AK53: NE | AL53: NE | AM53: NE | AN53: NE | AO53: NE
A54: 04630000 | B54: KIPP Academy Boston Charter School (District) | C54: 463 | D54: 44.25 | E54: 45 | F54: 37.333 | G54: 39 | H54: 51.1 | I54: 52 | J54: 55 | K54: 55 | L54: 44.088 | M54: 45 | N54: 46.99 | O54: 47 | P54: 38.5 | Q54: 39 | R54: 38.25 | S54: 39 | T54: 26.979 | U54: 27 | V54: 28.977 | W54: 29 | X54: 12.988 | Y54: 13 | Z54: 14.987 | AA54: 15 | AB54: 6.5 | AC54: 8 | AD54: 8.194 | AE54: 10 | AF54: NE | AG54: NE | AH54: NE | AI54: NE | AJ54: NE | AK54: NE | AL54: NE | AM54: NE | AN54: NE | AO54: NE
A55: 04640000 | B55: Marblehead Community Charter Public (District) | C55: 464 | D55: 20.9 | E55: 22 | F55: 23.5 | G55: 25 | H55: 22.3 | I55: 24 | J55: 20.5 | K55: 22 | L55: 22.9 | M55: 24 | N55: 21.9 | O55: 23 | P55: 20.65 | Q55: 22 | R55: 19.25 | S55: 21 | T55: 20.8 | U55: 22 | V55: 20.4 | W55: 22 | X55: 21.35 | Y55: 24 | Z55: 22.15 | AA55: 25 | AB55: 19.75 | AC55: 22 | AD55: 19.55 | AE55: 22 | AF55: 20.645 | AG55: 23 | AH55: 20.645 | AI55: 23 | AJ55: 21.9 | AK55: 25 | AL55: 21.65 | AM55: 25 | AN55: 20.5 | AO55: 23
A56: 04650000 | B56: MATCH Community Day Charter Public School | C56: 465 | D56: Closed | E56: Closed | F56: Closed | G56: Closed | H56: Closed | I56: Closed | J56: Closed | K56: Closed | L56: Closed | M56: Closed | N56: Closed | O56: Closed | P56: Closed | Q56: Closed | R56: Closed | S56: Closed | T56: Closed | U56: Closed | V56: Closed | W56: Closed | X56: 20.4 | Y56: 21 | Z56: 18.4 | AA56: 19 | AB56: 12.5 | AC56: 13 | AD56: 12.5 | AE56: 13 | AF56: 8 | AG56: 8 | AH56: 8 | AI56: 8 | AJ56: NE | AK56: NE | AL56: NE | AM56: NE | AN56: NE | AO56: NE
A57: 04660000 | B57: Martha's Vineyard Charter (District) | C57: 466 | D57: 17.33 | E57: 21 | F57: 16.71 | G57: 20 | H57: 17.63 | I57: 20 | J57: 16.62 | K57: 21 | L57: 18.76 | M57: 24 | N57: 18.87 | O57: 23 | P57: 16.93 | Q57: 22 | R57: 18.2 | S57: 22 | T57: 18.07 | U57: 22 | V57: 18.04 | W57: 21 | X57: 17.32 | Y57: 21 | Z57: 19.21 | AA57: 23 | AB57: 17.36 | AC57: 21 | AD57: 17.95 | AE57: 22 | AF57: 19.46 | AG57: 22 | AH57: 19.46 | AI57: 22 | AJ57: 19.38 | AK57: 22 | AL57: 19.748 | AM57: 22 | AN57: 18.764 | AO57: 20
A58: 04670000 | B58: New Liberty Charter School of Salem (District) | C58: 467 | D58: Closed | E58: Closed | F58: Closed | G58: Closed | H58: Closed | I58: Closed | J58: Closed | K58: Closed | L58: Closed | M58: Closed | N58: Closed | O58: Closed | P58: 4.66 | Q58: 6 | R58: 4.49 | S58: 6 | T58: 5.6 | U58: 7 | V58: 5.43 | W58: 6 | X58: 4.6 | Y58: 6 | Z58: 4.634 | AA58: 6 | AB58: 4.3 | AC58: 6 | AD58: 4.82 | AE58: 6 | AF58: 5.52 | AG58: 7 | AH58: 5.565 | AI58: 8 | AJ58: NE | AK58: NE | AL58: NE | AM58: NE | AN58: NE | AO58: NE
A59: 04690000 | B59: MATCH Charter Public School (District) | C59: 469 | D59: 105.838 | E59: 114 | F59: 103.35 | G59: 110 | H59: 101.464 | I59: 107 | J59: 102.9 | K59: 107 | L59: 79.712 | M59: 89 | N59: 84.75 | O59: 88 | P59: 67.31 | Q59: 74 | R59: 69.504 | S59: 76 | T59: 53.29 | U59: 61 | V59: 57.3 | W59: 63 | X59: 31.04 | Y59: 33 | Z59: 33.04 | AA59: 35 | AB59: 30.2 | AC59: 32 | AD59: 30.2 | AE59: 32 | AF59: 27.5 | AG59: 28 | AH59: 27 | AI59: 27 | AJ59: 24.5 | AK59: 25 | AL59: 24.5 | AM59: 25 | AN59: 23.24 | AO59: 26
A60: 04700000 | B60: Mystic Valley Regional Charter (District) | C60: 470 | D60: 97.968 | E60: 98 | F60: 100.89 | G60: 103 | H60: 95.797 | I60: 101 | J60: 100.5 | K60: 102 | L60: 100.373 | M60: 107 | N60: 103.09 | O60: 111 | P60: 106.74 | Q60: 113 | R60: 102.677 | S60: 110 | T60: 104.606 | U60: 111 | V60: 106.903 | W60: 113 | X60: 103.615 | Y60: 110 | Z60: 104.815 | AA60: 112 | AB60: 103.853 | AC60: 108 | AD60: 102.387 | AE60: 108 | AF60: 98.055 | AG60: 100 | AH60: 93.347 | AI60: 99 | AJ60: 89.115 | AK60: 91 | AL60: 88.368 | AM60: 92 | AN60: 94.99 | AO60: 95
A61: 04710000 | B61: New Leadership Charter (District) | C61: 471 | D61: Closed | E61: Closed | F61: Closed | G61: Closed | H61: Closed | I61: Closed | J61: Closed | K61: Closed | L61: Closed | M61: Closed | N61: Closed | O61: Closed | P61: Closed | Q61: Closed | R61: Closed | S61: Closed | T61: Closed | U61: Closed | V61: Closed | W61: Closed | X61: Closed | Y61: Closed | Z61: Closed | AA61: Closed | AB61: 32.416 | AC61: 46 | AD61: 31.516 | AE61: 46 | AF61: 30.961 | AG61: 46 | AH61: 30.683 | AI61: 48 | AJ61: 15.279 | AK61: 38 | AL61: 21.872 | AM61: 51 | AN61: 42.907 | AO61: 47
A62: 04740000 | B62: Sizer School: A North Central Charter Essential (District) | C62: 474 | D62: 39.04 | E62: 42 | F62: 40.22 | G62: 44 | H62: 37.707 | I62: 46 | J62: 34.765 | K62: 42 | L62: 34.607 | M62: 39 | N62: 35.07 | O62: 40 | P62: 37.54 | Q62: 48 | R62: 35.821 | S62: 44 | T62: 36.35 | U62: 44 | V62: 39.029 | W62: 47 | X62: 34.101 | Y62: 43 | Z62: 35.389 | AA62: 43 | AB62: 34.836 | AC62: 42 | AD62: 35.142 | AE62: 40 | AF62: 35.077 | AG62: 45 | AH62: 34.589 | AI62: 43 | AJ62: 34.325 | AK62: 41 | AL62: 33.917 | AM62: 39 | AN62: 34.125 | AO62: 37
A63: 04750000 | B63: Dorchester Collegiate Academy Charter (District) | C63: 475 | D63: Closed | E63: Closed | F63: Closed | G63: Closed | H63: Closed | I63: Closed | J63: Closed | K63: Closed | L63: Closed | M63: Closed | N63: Closed | O63: Closed | P63: 21.68 | Q63: 27 | R63: 20.82 | S63: 25 | T63: 17.2 | U63: 17 | V63: 16 | W63: 16 | X63: 17.502 | Y63: 18 | Z63: 6.89 | AA63: 17 | AB63: 13 | AC63: 13 | AD63: 13 | AE63: 13 | AF63: 9.75 | AG63: 10 | AH63: 9.75 | AI63: 10 | AJ63: 5.775 | AK63: 6 | AL63: 5.4 | AM63: 6 | AN63: 2.2 | AO63: 3
A64: 04760000 | B64: Spirit of Knowledge Charter School (District) | C64: 476 | D64: Closed | E64: Closed | F64: Closed | G64: Closed | H64: Closed | I64: Closed | J64: Closed | K64: Closed | L64: Closed | M64: Closed | N64: Closed | O64: Closed | P64: Closed | Q64: Closed | R64: Closed | S64: Closed | T64: Closed | U64: Closed | V64: Closed | W64: Closed | X64: Closed | Y64: Closed | Z64: Closed | AA64: Closed | AB64: 14.186 | AC64: 17 | AD64: 14.713 | AE64: 17 | AF64: 13.577 | AG64: 15 | AH64: 13.82 | AI64: 17 | AJ64: 12.682 | AK64: 18 | AL64: 9.339 | AM64: 15 | AN64: NE | AO64: NE
A65: 04770000 | B65: Silver Hill Horace Mann Charter (District) | C65: 477 | D65: Closed | E65: Closed | F65: Closed | G65: Closed | H65: 36.2 | I65: 38 | J65: 35.2 | K65: 37 | L65: 35.8 | M65: 36 | N65: 34.8 | O65: 35 | P65: 36.44 | Q65: 37 | R65: 35.938 | S65: 37 | T65: 36.943 | U65: 37 | V65: 36.993 | W65: 37 | X65: 38.513 | Y65: 38 | Z65: 38.057 | AA65: 38 | AB65: 35.735 | AC65: 36 | AD65: 35.921 | AE65: 36 | AF65: 32.193 | AG65: 35 | AH65: 35.966 | AI65: 36 | AJ65: 34.966 | AK65: 35 | AL65: 34.966 | AM65: 35 | AN65: 38.75 | AO65: 39
A66: 04780000 | B66: Francis W. Parker Charter Essential (District) | C66: 478 | D66: 45.704 | E66: 50 | F66: 46.41 | G66: 51 | H66: 46.25 | I66: 49 | J66: 46.25 | K66: 49 | L66: 36.99 | M66: 40 | N66: 45.69 | O66: 49 | P66: 37.56 | Q66: 42 | R66: 44.81 | S66: 49 | T66: 33.95 | U66: 38 | V66: 45.75 | W66: 50 | X66: 47.411 | Y66: 51 | Z66: 47.242 | AA66: 52 | AB66: 45.197 | AC66: 50 | AD66: 45.096 | AE66: 49 | AF66: 45.46 | AG66: 50 | AH66: 45.45 | AI66: 50 | AJ66: 44.775 | AK66: 48 | AL66: 44.775 | AM66: 48 | AN66: 45.025 | AO66: 51
A67: 04790000 | B67: Pioneer Valley Performing Arts Charter Public (District) | C67: 479 | D67: 44.753 | E67: 50 | F67: 47.3 | G67: 49 | H67: 39.826 | I67: 47 | J67: 44.1 | K67: 47 | L67: 41.89 | M67: 48 | N67: 40.59 | O67: 46 | P67: 37.28 | Q67: 43 | R67: 39.2 | S67: 45 | T67: 35.696 | U67: 45 | V67: 39.52 | W67: 50 | X67: 35.396 | Y67: 43 | Z67: 40.83 | AA67: 54 | AB67: 42.37 | AC67: 56 | AD67: 41.86 | AE67: 59 | AF67: 43.44 | AG67: 55 | AH67: 39.829 | AI67: 54 | AJ67: 39.74 | AK67: 60 | AL67: 39 | AM67: 59 | AN67: 35.85 | AO67: 59
A68: 04800000 | B68: UP Academy Charter School of Boston (District) | C68: 480 | D68: 40.5 | E68: 41 | F68: 44.5 | G68: 45 | H68: 28.5 | I68: 29 | J68: 42.5 | K68: 43 | L68: 26.44 | M68: 27 | N68: 38.62 | O68: 39 | P68: 38.37 | Q68: 40 | R68: 41.4 | S68: 42 | T68: 42.98 | U68: 44 | V68: 45.5 | W68: 47 | X68: 27.01 | Y68: 29 | Z68: 45.1 | AA68: 46 | AB68: 45.78 | AC68: 48 | AD68: 47.37 | AE68: 48 | AF68: 41.16 | AG68: 43 | AH68: 42.5 | AI68: 43 | AJ68: NE | AK68: NE | AL68: NE | AM68: NE | AN68: NE | AO68: NE
A69: 04810000 | B69: Boston Renaissance Charter Public (District) | C69: 481 | D69: 80.002 | E69: 80 | F69: 82 | G69: 82 | H69: 84.4 | I69: 85 | J69: 82 | K69: 82 | L69: 79 | M69: 79 | N69: 75.57 | O69: 78 | P69: 77 | Q69: 77 | R69: 74.02 | S69: 76 | T69: 77 | U69: 77 | V69: 76 | W69: 76 | X69: 73 | Y69: 73 | Z69: 72.67 | AA69: 74 | AB69: 70.05 | AC69: 70 | AD69: 70.82 | AE69: 71 | AF69: 78.77 | AG69: 79 | AH69: 76.86 | AI69: 77 | AJ69: 93.68 | AK69: 94 | AL69: 93.8 | AM69: 94 | AN69: 95 | AO69: 96
A70: 04820000 | B70: River Valley Charter (District) | C70: 482 | D70: 20.75 | E70: 22 | F70: 20.75 | G70: 22 | H70: 20.751 | I70: 22 | J70: 20.75 | K70: 22 | L70: 18.076 | M70: 21 | N70: 18.44 | O70: 22 | P70: 19.44 | Q70: 22 | R70: 19.94 | S70: 22 | T70: 19.405 | U70: 20 | V70: 18.405 | W70: 20 | X70: 19.468 | Y70: 20 | Z70: 18.464 | AA70: 19 | AB70: 14.151 | AC70: 18 | AD70: 17.436 | AE70: 18 | AF70: 17.492 | AG70: 18 | AH70: 16.492 | AI70: 17 | AJ70: 17.124 | AK70: 19 | AL70: 17.124 | AM70: 19 | AN70: 21 | AO70: 21
A71: 04830000 | B71: Rising Tide Charter Public (District) | C71: 483 | D71: 44.6 | E71: 46 | F71: 48.7 | G71: 51 | H71: 58.25 | I71: 59 | J71: 60.95 | K71: 62 | L71: 49.025 | M71: 60 | N71: 52.15 | O71: 58 | P71: 41.47 | Q71: 47 | R71: 56.27 | S71: 58 | T71: 49.133 | U71: 54 | V71: 46.718 | W71: 53 | X71: 39.508 | Y71: 45 | Z71: 43.485 | AA71: 47 | AB71: 31.5 | AC71: 41 | AD71: 34.539 | AE71: 41 | AF71: 32.24 | AG71: 34 | AH71: 32.41 | AI71: 35 | AJ71: 23.57 | AK71: 25 | AL71: 24.82 | AM71: 26 | AN71: 24.36 | AO71: 26
A72: 04840000 | B72: Roxbury Preparatory Charter (District) | C72: 484 | D72: 120.494 | E72: 126 | F72: 122.23 | G72: 126 | H72: 114.436 | I72: 120 | J72: 117.86 | K72: 123 | L72: 106.35 | M72: 107 | N72: 111.18 | O72: 112 | P72: 95.14 | Q72: 99 | R72: 97.98 | S72: 100 | T72: 78.14 | U72: 79 | V72: 77.56 | W72: 79 | X72: 64.57 | Y72: 67 | Z72: 65.07 | AA72: 67 | AB72: 53.51 | AC72: 56 | AD72: 55.31 | AE72: 56 | AF72: 23.05 | AG72: 27 | AH72: 23.05 | AI72: 27 | AJ72: 25.83 | AK72: 32 | AL72: 27.83 | AM72: 34 | AN72: 26.259 | AO72: 30
A73: 04850000 | B73: Salem Academy Charter (District) | C73: 485 | D73: 44.851 | E73: 49 | F73: 46.014 | G73: 51 | H73: 46.102 | I73: 50 | J73: 46.1 | K73: 50 | L73: 41.45 | M73: 44 | N73: 43.12 | O73: 46 | P73: 42.96 | Q73: 44 | R73: 43.894 | S73: 46 | T73: 37.64 | U73: 40 | V73: 42.8 | W73: 43 | X73: 38.65 | Y73: 43 | Z73: 39.03 | AA73: 43 | AB73: 34.146 | AC73: 37 | AD73: 36.04 | AE73: 37 | AF73: 31.505 | AG73: 37 | AH73: 30.41 | AI73: 37 | AJ73: 33.957 | AK73: 40 | AL73: 35.59 | AM73: 41 | AN73: 36.7 | AO73: 41
A74: 04860000 | B74: Seven Hills Charter Public (District) | C74: 486 | D74: 33.004 | E74: 33 | F74: 34 | G74: 34 | H74: 34.75 | I74: 35 | J74: 37.44 | K74: 38 | L74: 46.613 | M74: 49 | N74: 49.61 | O74: 52 | P74: 52.39 | Q74: 53 | R74: 53.37 | S74: 54 | T74: 55.3 | U74: 56 | V74: 56.3 | W74: 57 | X74: 53.74 | Y74: 54 | Z74: 53.175 | AA74: 54 | AB74: 50.102 | AC74: 52 | AD74: 51.474 | AE74: 53 | AF74: 49.277 | AG74: 51 | AH74: 50.176 | AI74: 52 | AJ74: 48.203 | AK74: 51 | AL74: 48.665 | AM74: 50 | AN74: 41.5 | AO74: 42
A75: 04870000 | B75: Prospect Hill Academy Charter (District) | C75: 487 | D75: 102.096 | E75: 105 | F75: 104.492 | G75: 108 | H75: 111.263 | I75: 119 | J75: 111.14 | K75: 118 | L75: 106.027 | M75: 119 | N75: 109.31 | O75: 122 | P75: 101.36 | Q75: 119 | R75: 95.302 | S75: 114 | T75: 88.08 | U75: 110 | V75: 87.393 | W75: 107 | X75: 93.022 | Y75: 108 | Z75: 93.3 | AA75: 107 | AB75: 101.852 | AC75: 103 | AD75: 106.767 | AE75: 107 | AF75: 103.116 | AG75: 105 | AH75: 97.654 | AI75: 100 | AJ75: 87.901 | AK75: 102 | AL75: 84.601 | AM75: 101 | AN75: 80.762 | AO75: 81
A76: 04880000 | B76: South Shore Charter Public (District) | C76: 488 | D76: 88.178 | E76: 98 | F76: 88.38 | G76: 98 | H76: 76.686 | I76: 85 | J76: 76.2 | K76: 84 | L76: 60.901 | M76: 65 | N76: 64.6 | O76: 70 | P76: 53.3 | Q76: 58 | R76: 54.497 | S76: 59 | T76: 51.592 | U76: 54 | V76: 56.601 | W76: 58 | X76: 47.763 | Y76: 53 | Z76: 49.974 | AA76: 56 | AB76: 44.893 | AC76: 50 | AD76: 48.628 | AE76: 52 | AF76: 47.027 | AG76: 52 | AH76: 45.493 | AI76: 49 | AJ76: 46.264 | AK76: 52 | AL76: 45.956 | AM76: 51 | AN76: 40.78 | AO76: 47
A77: 04890000 | B77: Sturgis Charter Public (District) | C77: 489 | D77: 86.894 | E77: 97 | F77: 87.79 | G77: 97 | H77: 85.094 | I77: 95 | J77: 86.59 | K77: 97 | L77: 86.997 | M77: 97 | N77: 89.2 | O77: 98 | P77: 72.16 | Q77: 79 | R77: 85.75 | S77: 92 | T77: 83.25 | U77: 91 | V77: 85.25 | W77: 91 | X77: 78.13 | Y77: 92 | Z77: 82.49 | AA77: 92 | AB77: 67.342 | AC77: 77 | AD77: 76.21 | AE77: 85 | AF77: 59.792 | AG77: 69 | AH77: 59.97 | AI77: 68 | AJ77: 38.72 | AK77: 45 | AL77: 38.42 | AM77: 45 | AN77: 40.23 | AO77: 46
A78: 04910000 | B78: Atlantis Charter (District) | C78: 491 | D78: 93.594 | E78: 94 | F78: 90.772 | G78: 93 | H78: 90.052 | I78: 91 | J78: 88.6 | K78: 90 | L78: 79.51 | M78: 83 | N78: 82.18 | O78: 85 | P78: 73.94 | Q78: 75 | R78: 73.14 | S78: 74 | T78: 48.66 | U78: 54 | V78: 60.26 | W78: 62 | X78: 53.6 | Y78: 54 | Z78: 54.6 | AA78: 55 | AB78: 47.92 | AC78: 49 | AD78: 51.8 | AE78: 53 | AF78: 52.13 | AG78: 53 | AH78: 54.14 | AI78: 55 | AJ78: 56.04 | AK78: 56 | AL78: 56.03 | AM78: 56 | AN78: 56.223 | AO78: 56
A79: 04920000 | B79: Martin Luther King Jr. Charter School of Excellence (District) | C79: 492 | D79: 36.93 | E79: 37 | F79: 35.77 | G79: 36 | H79: 35.791 | I79: 37 | J79: 34.873 | K79: 37 | L79: 34.754 | M79: 42 | N79: 37.76 | O79: 42 | P79: 36.72 | Q79: 37 | R79: 30.117 | S79: 34 | T79: 38.169 | U79: 39 | V79: 37.722 | W79: 39 | X79: 39.163 | Y79: 40 | Z79: 38.229 | AA79: 40 | AB79: 38.975 | AC79: 41 | AD79: 39.855 | AE79: 41 | AF79: 37.808 | AG79: 39 | AH79: 36.801 | AI79: 38 | AJ79: 39.26 | AK79: 40 | AL79: 39.71 | AM79: 40 | AN79: 31.769 | AO79: 33
A80: 04930000 | B80: Phoenix Charter Academy (District) | C80: 493 | D80: 13 | E80: 13 | F80: 14.1 | G80: 15 | H80: 16.1 | I80: 17 | J80: 16 | K80: 16 | L80: 13.69 | M80: 16 | N80: 14.19 | O80: 18 | P80: 16.16 | Q80: 21 | R80: 16.71 | S80: 20 | T80: 13.8 | U80: 30 | V80: 17.87 | W80: 30 | X80: 16.48 | Y80: 33 | Z80: 17.17 | AA80: 26 | AB80: 16.05 | AC80: 27 | AD80: 16.64 | AE80: 28 | AF80: 17.49 | AG80: 27 | AH80: 17.17 | AI80: 27 | AJ80: 14.81 | AK80: 23 | AL80: 14.57 | AM80: 23 | AN80: 21.35 | AO80: 32
A81: 04940000 | B81: Pioneer Charter School of Science (District) | C81: 494 | D81: 72.457 | E81: 75 | F81: 76.802 | G81: 79 | H81: 60.551 | I81: 69 | J81: 66.47 | K81: 72 | L81: 53.25 | M81: 58 | N81: 50.63 | O81: 57 | P81: 33.31 | Q81: 39 | R81: 32.7 | S81: 39 | T81: 32.343 | U81: 37 | V81: 32.05 | W81: 36 | X81: 30 | Y81: 38 | Z81: 32.16 | AA81: 38 | AB81: 31.15 | AC81: 38 | AD81: 29.96 | AE81: 35 | AF81: 27.02 | AG81: 35 | AH81: 26.8 | AI81: 34 | AJ81: 29.19 | AK81: 31 | AL81: 27.7 | AM81: 31 | AN81: 21.2 | AO81: 23
A82: 04960000 | B82: Global Learning Charter Public (District) | C82: 496 | D82: 46.103 | E82: 50 | F82: 44.611 | G82: 47 | H82: 36.117 | I82: 38 | J82: 42.913 | K82: 45 | L82: 43.023 | M82: 45 | N82: 40.77 | O82: 45 | P82: 31.18 | Q82: 33 | R82: 43.7 | S82: 45 | T82: 40.669 | U82: 44 | V82: 42.814 | W82: 45 | X82: 46.716 | Y82: 45 | Z82: 40.533 | AA82: 43 | AB82: 42.905 | AC82: 45 | AD82: 41.52 | AE82: 44 | AF82: 36.84 | AG82: 40 | AH82: 38.6 | AI82: 40 | AJ82: 38.015 | AK82: 41 | AL82: 34.286 | AM82: 41 | AN82: 28.47 | AO82: 32
A83: 04970000 | B83: Pioneer Valley Chinese Immersion Charter (District) | C83: 497 | D83: 66.906 | E83: 71 | F83: 68.229 | G83: 74 | H83: 64.053 | I83: 68 | J83: 63.55 | K83: 68 | L83: 58.83 | M83: 65 | N83: 60.7 | O83: 65 | P83: 55.3 | Q83: 61 | R83: 55.75 | S83: 60 | T83: 43.914 | U83: 46 | V83: 44.864 | W83: 47 | X83: 34.1 | Y83: 37 | Z83: 33.1 | AA83: 36 | AB83: 28.3 | AC83: 31 | AD83: 28.3 | AE83: 31 | AF83: 24.1 | AG83: 25 | AH83: 24.6 | AI83: 25 | AJ83: 20.75 | AK83: 21 | AL83: 20.75 | AM83: 21 | AN83: 20.5 | AO83: 21
A84: 04980000 | B84: Veritas Preparatory Charter School (District) | C84: 498 | D84: 27.997 | E84: 28 | F84: 29 | G84: 29 | H84: 31 | I84: 31 | J84: 31 | K84: 31 | L84: 29.5 | M84: 30 | N84: 27.5 | O84: 28 | P84: 23.3 | Q84: 25 | R84: 26 | S84: 26 | T84: 19 | U84: 19 | V84: 19 | W84: 19 | X84: 14.5 | Y84: 16 | Z84: 16 | AA84: 16 | AB84: 9.949 | AC84: 10 | AD84: 7.95 | AE84: 8 | AF84: NE | AG84: NE | AH84: NE | AI84: NE | AJ84: NE | AK84: NE | AL84: NE | AM84: NE | AN84: NE | AO84: NE
A85: 04990000 | B85: Hampden Charter School of Science East (District) | C85: 499 | D85: 43.11 | E85: 46 | F85: 41.78 | G85: 46 | H85: 42.243 | I85: 47 | J85: 45.186 | K85: 48 | L85: 38.321 | M85: 47 | N85: 37.68 | O85: 44 | P85: 31.32 | Q85: 45 | R85: 33.078 | S85: 44 | T85: 27.466 | U85: 36 | V85: 31.501 | W85: 37 | X85: 25.479 | Y85: 40 | Z85: 29.451 | AA85: 39 | AB85: 26.993 | AC85: 33 | AD85: 26.68 | AE85: 34 | AF85: 28.857 | AG85: 31 | AH85: 28 | AI85: 30 | AJ85: 19.65 | AK85: 23 | AL85: 18.65 | AM85: 22 | AN85: 14.538 | AO85: 16
A86: 35010000 | B86: Paulo Freire Social Justice Charter School (District) | C86: 3501 | D86: 25.148 | E86: 26 | F86: 24.403 | G86: 26 | H86: 35.441 | I86: 38 | J86: 34.961 | K86: 38 | L86: 34.156 | M86: 40 | N86: 35.51 | O86: 42 | P86: 38.28 | Q86: 46 | R86: 35.313 | S86: 43 | T86: 33.067 | U86: 38 | V86: 29.461 | W86: 38 | X86: 25.003 | Y86: 26 | Z86: 19.862 | AA86: 28 | AB86: NE | AC86: NE | AD86: NE | AE86: NE | AF86: NE | AG86: NE | AH86: NE | AI86: NE | AJ86: NE | AK86: NE | AL86: NE | AM86: NE | AN86: NE | AO86: NE
A87: 35020000 | B87: Baystate Academy Charter Public School (District) | C87: 3502 | D87: 54.862 | E87: 56 | F87: 58.32 | G87: 59 | H87: 46.67 | I87: 52 | J87: 51.21 | K87: 52 | L87: 38.652 | M87: 40 | N87: 36.18 | O87: 38 | P87: 25.35 | Q87: 27 | R87: 26.23 | S87: 29 | T87: 19.83 | U87: 20 | V87: 22.08 | W87: 22 | X87: 8.31 | Y87: 11 | Z87: 9.21 | AA87: 11 | AB87: NE | AC87: NE | AD87: NE | AE87: NE | AF87: NE | AG87: NE | AH87: NE | AI87: NE | AJ87: NE | AK87: NE | AL87: NE | AM87: NE | AN87: NE | AO87: NE
A88: 35030000 | B88: Collegiate Charter School of Lowell (District) | C88: 3503 | D88: 40 | E88: 40 | F88: 43.56 | G88: 49 | H88: 35 | I88: 36 | J88: 40 | K88: 40 | L88: 35 | M88: 35 | N88: 33 | O88: 33 | P88: 29.1 | Q88: 30 | R88: 28.5 | S88: 29 | T88: 21 | U88: 22 | V88: 21.48 | W88: 22 | X88: 16.2 | Y88: 18 | Z88: 15.2 | AA88: 17 | AB88: NE | AC88: NE | AD88: NE | AE88: NE | AF88: NE | AG88: NE | AH88: NE | AI88: NE | AJ88: NE | AK88: NE | AL88: NE | AM88: NE | AN88: NE | AO88: NE
A89: 35040000 | B89: City on a Hill Charter Public School Dudley Square (District) | C89: 3504 | D89: 25.026 | E89: 33 | F89: 24.43 | G89: 33 | H89: 22.95 | I89: 33 | J89: 24.7 | K89: 37 | L89: 24.8 | M89: 33 | N89: 25.3 | O89: 33 | P89: 20.2 | Q89: 27 | R89: 20.9 | S89: 28 | T89: 13.5 | U89: 18 | V89: 13.8 | W89: 19 | X89: 8.2 | Y89: 13 | Z89: 8.2 | AA89: 13 | AB89: NE | AC89: NE | AD89: NE | AE89: NE | AF89: NE | AG89: NE | AH89: NE | AI89: NE | AJ89: NE | AK89: NE | AL89: NE | AM89: NE | AN89: NE | AO89: NE
A90: 35050000 | B90: UP Academy Charter School of Dorchester (District) | C90: 3505 | D90: 55.4 | E90: 56 | F90: 55 | G90: 55 | H90: 41.01 | I90: 41 | J90: 56.44 | K90: 57 | L90: 39.33 | M90: 40 | N90: 62.83 | O90: 63 | P90: 52.99 | Q90: 52 | R90: 52.49 | S90: 51 | T90: 41 | U90: 41 | V90: 58 | W90: 58 | X90: 44.75 | Y90: 45 | Z90: 55.87 | AA90: 56 | AB90: NE | AC90: NE | AD90: NE | AE90: NE | AF90: NE | AG90: NE | AH90: NE | AI90: NE | AJ90: NE | AK90: NE | AL90: NE | AM90: NE | AN90: NE | AO90: NE
A91: 35060000 | B91: Pioneer Charter School of Science II (PCSS-II) (District) | C91: 3506 | D91: 35.101 | E91: 37 | F91: 35.434 | G91: 38 | H91: 33.4 | I91: 35 | J91: 30.66 | K91: 35 | L91: 31.76 | M91: 38 | N91: 32.2 | O91: 38 | P91: 28.44 | Q91: 33 | R91: 25.24 | S91: 32 | T91: 22.292 | U91: 25 | V91: 21.446 | W91: 24 | X91: 16.7 | Y91: 20 | Z91: 16.9 | AA91: 20 | AB91: NE | AC91: NE | AD91: NE | AE91: NE | AF91: NE | AG91: NE | AH91: NE | AI91: NE | AJ91: NE | AK91: NE | AL91: NE | AM91: NE | AN91: NE | AO91: NE
A92: 35070000 | B92: City on a Hill Charter Public School New Bedford (District) | C92: 3507 | D92: 17.721 | E92: 27 | F92: 20 | G92: 27 | H92: 17.3 | I92: 22 | J92: 16 | K92: 20 | L92: 12.916 | M92: 20 | N92: 13.32 | O92: 20 | P92: 11 | Q92: 15 | R92: 11.3 | S92: 15 | T92: 8.5 | U92: 13 | V92: 8.1 | W92: 12 | X92: NE | Y92: NE | Z92: NE | AA92: NE | AB92: NE | AC92: NE | AD92: NE | AE92: NE | AF92: NE | AG92: NE | AH92: NE | AI92: NE | AJ92: NE | AK92: NE | AL92: NE | AM92: NE | AN92: NE | AO92: NE
A93: 35080000 | B93: Phoenix Academy Public Charter High School Springfield (District) | C93: 3508 | D93: 13.4 | E93: 17 | F93: 12.3 | G93: 15 | H93: 13.421 | I93: 16 | J93: 13.3 | K93: 16 | L93: 10.525 | M93: 16 | N93: 11.9 | O93: 16 | P93: 11.4 | Q93: 13 | R93: 11.75 | S93: 15 | T93: 7.4 | U93: 11 | V93: 8.5 | W93: 15 | X93: NE | Y93: NE | Z93: NE | AA93: NE | AB93: NE | AC93: NE | AD93: NE | AE93: NE | AF93: NE | AG93: NE | AH93: NE | AI93: NE | AJ93: NE | AK93: NE | AL93: NE | AM93: NE | AN93: NE | AO93: NE
A94: 35090000 | B94: Argosy Collegiate Charter School (District) | C94: 3509 | D94: 38.696 | E94: 38 | F94: 38.95 | G94: 39 | H94: 31.301 | I94: 33 | J94: 37.2 | K94: 38 | L94: 24.999 | M94: 25 | N94: 26 | O94: 26 | P94: 16.5 | Q94: 17 | R94: 15.6 | S94: 17 | T94: 8.1 | U94: 11 | V94: 7.6 | W94: 10 | X94: NE | Y94: NE | Z94: NE | AA94: NE | AB94: NE | AC94: NE | AD94: NE | AE94: NE | AF94: NE | AG94: NE | AH94: NE | AI94: NE | AJ94: NE | AK94: NE | AL94: NE | AM94: NE | AN94: NE | AO94: NE
A95: 35100000 | B95: Springfield Preparatory Charter School (District) | C95: 3510 | D95: 23.6 | E95: 24 | F95: 23.6 | G95: 24 | H95: 19.3 | I95: 20 | J95: 19.3 | K95: 20 | L95: 14.8 | M95: 15 | N95: 13 | O95: 13 | P95: 6.66 | Q95: 8 | R95: 6.664 | S95: 8 | T95: NE | U95: NE | V95: NE | W95: NE | X95: NE | Y95: NE | Z95: NE | AA95: NE | AB95: NE | AC95: NE | AD95: NE | AE95: NE | AF95: NE | AG95: NE | AH95: NE | AI95: NE | AJ95: NE | AK95: NE | AL95: NE | AM95: NE | AN95: NE | AO95: NE
A96: 35110000 | B96: Bentley Academy Charter School (District) | C96: 3511 | D96: 28.386 | E96: 33 | F96: 29.39 | G96: 34 | H96: 25.39 | I96: 30 | J96: 24.39 | K96: 29 | L96: 31.008 | M96: 31 | N96: 32.28 | O96: 32 | P96: 25.48 | Q96: 30 | R96: 25.48 | S96: 30 | T96: NE | U96: NE | V96: NE | W96: NE | X96: NE | Y96: NE | Z96: NE | AA96: NE | AB96: NE | AC96: NE | AD96: NE | AE96: NE | AF96: NE | AG96: NE | AH96: NE | AI96: NE | AJ96: NE | AK96: NE | AL96: NE | AM96: NE | AN96: NE | AO96: NE
A97: 35130000 | B97: New Heights Charter School of Brockton (District) | C97: 3513 | D97: 36.481 | E97: 40 | F97: 33.7 | G97: 36 | H97: 26.201 | I97: 28 | J97: 30.5 | K97: 31 | L97: 21.296 | M97: 24 | N97: 22.09 | O97: 23 | P97: NE | Q97: NE | R97: NE | S97: NE | T97: NE | U97: NE | V97: NE | W97: NE | X97: NE | Y97: NE | Z97: NE | AA97: NE | AB97: NE | AC97: NE | AD97: NE | AE97: NE | AF97: NE | AG97: NE | AH97: NE | AI97: NE | AJ97: NE | AK97: NE | AL97: NE | AM97: NE | AN97: NE | AO97: NE
A98: 35140000 | B98: Libertas Academy Charter School (District) | C98: 3514 | D98: 14.199 | E98: 16 | F98: 14.4 | G98: 18 | H98: 7.52 | I98: 9 | J98: 7.2 | K98: 8 | L98: NE | M98: NE | N98: NE | O98: NE | P98: NE | Q98: NE | R98: NE | S98: NE | T98: NE | U98: NE | V98: NE | W98: NE | X98: NE | Y98: NE | Z98: NE | AA98: NE | AB98: NE | AC98: NE | AD98: NE | AE98: NE | AF98: NE | AG98: NE | AH98: NE | AI98: NE | AJ98: NE | AK98: NE | AL98: NE | AM98: NE | AN98: NE | AO98: NE
A99: 35150000 | B99: Old Sturbridge Academy Charter Public School (District) | C99: 3515 | D99: 15.58 | E99: 17 | F99: 13.58 | G99: 15 | H99: 13.25 | I99: 14 | J99: 14 | K99: 15 | L99: NE | M99: NE | N99: NE | O99: NE | P99: NE | Q99: NE | R99: NE | S99: NE | T99: NE | U99: NE | V99: NE | W99: NE | X99: NE | Y99: NE | Z99: NE | AA99: NE | AB99: NE | AC99: NE | AD99: NE | AE99: NE | AF99: NE | AG99: NE | AH99: NE | AI99: NE | AJ99: NE | AK99: NE | AL99: NE | AM99: NE | AN99: NE | AO99: NE
A100: 35160000 | B100: Hampden Charter School of Science West (District) | C100: 3516 | D100: 21.4 | E100: 23 | F100: 19.982
A101: 35170000 | B101: Map Academy Charter School (District) | C101: 3517 | D101: 8.6 | E101: 11 | F101: 9.2
A102: 35180000 | B102: Phoenix Academy Public Charter High School Lawrence (District) | C102: 3518 | D102: 13.3 | E102: 16 | F102: 13.3

Sheet FTE (hidden)
A1: LEA | B1: FTE | C1: Type | D1: Source
A2: 409 | B2: 439.99 | C2: C | D2: Final FY19 Charter School Tuition and Enrollment (Hadley)
A3: 410 | B3: 1295.43 | C3: C | D3: Final FY19 Charter School Tuition and Enrollment (Hadley)
A4: 412 | B4: 532.68 | C4: C | D4: Final FY19 Charter School Tuition and Enrollment (Hadley)
A5: 413 | B5: 218.56 | C5: C | D5: Final FY19 Charter School Tuition and Enrollment (Hadley)
A6: 414 | B6: 369.44 | C6: C | D6: Final FY19 Charter School Tuition and Enrollment (Hadley)
A7: 416 | B7: 526.32 | C7: C | D7: Final FY19 Charter School Tuition and Enrollment (Hadley)
A8: 417 | B8: 334.42 | C8: C | D8: Final FY19 Charter School Tuition and Enrollment (Hadley)
A9: 418 | B9: 393.57 | C9: C | D9: Final FY19 Charter School Tuition and Enrollment (Hadley)
A10: 419 | B10: 188.45 | C10: C | D10: Final FY19 Charter School Tuition and Enrollment (Hadley)
A11: 420 | B11: 349.97 | C11: C | D11: Final FY19 Charter School Tuition and Enrollment (Hadley)
A12: 426 | B12: 359.74 | C12: C | D12: Final FY19 Charter School Tuition and Enrollment (Hadley)
A13: 428 | B13: 1844.75 | C13: C | D13: Final FY19 Charter School Tuition and Enrollment (Hadley)
A14: 429 | B14: 1452.23 | C14: C | D14: Final FY19 Charter School Tuition and Enrollment (Hadley)
A15: 430 | B15: 972.7 | C15: C | D15: Final FY19 Charter School Tuition and Enrollment (Hadley)
A16: 431 | B16: 359.91 | C16: C | D16: Final FY19 Charter School Tuition and Enrollment (Hadley)
A17: 432 | B17: 242.06 | C17: C | D17: Final FY19 Charter School Tuition and Enrollment (Hadley)
A18: 435 | B18: 793.69 | C18: C | D18: Final FY19 Charter School Tuition and Enrollment (Hadley)
A19: 436 | B19: 330.07 | C19: C | D19: Final FY19 Charter School Tuition and Enrollment (Hadley)
A20: 437 | B20: 257.82 | C20: C | D20: Final FY19 Charter School Tuition and Enrollment (Hadley)
A21: 438 | B21: 344.5 | C21: C | D21: Final FY19 Charter School Tuition and Enrollment (Hadley)
A22: 439 | B22: 445.48 | C22: C | D22: Final FY19 Charter School Tuition and Enrollment (Hadley)
A23: 440 | B23: 399.97 | C23: C | D23: Final FY19 Charter School Tuition and Enrollment (Hadley)
A24: 441 | B24: 1572.05 | C24: C | D24: Final FY19 Charter School Tuition and Enrollment (Hadley)
A25: 444 | B25: 642.11 | C25: C | D25: Final FY19 Charter School Tuition and Enrollment (Hadley)
A26: 445 | B26: 1425.42 | C26: C | D26: Final FY19 Charter School Tuition and Enrollment (Hadley)
A27: 446 | B27: 1619.27 | C27: C | D27: Final FY19 Charter School Tuition and Enrollment (Hadley)
A28: 447 | B28: 457.87 | C28: C | D28: Final FY19 Charter School Tuition and Enrollment (Hadley)
A29: 449 | B29: 698.71 | C29: C | D29: Final FY19 Charter School Tuition and Enrollment (Hadley)
A30: 450 | B30: 218.32 | C30: C | D30: Final FY19 Charter School Tuition and Enrollment (Hadley)
A31: 453 | B31: 702.29 | C31: C | D31: Final FY19 Charter School Tuition and Enrollment (Hadley)
A32: 454 | B32: 759.36 | C32: C | D32: Final FY19 Charter School Tuition and Enrollment (Hadley)
A33: 455 | B33: 305.29 | C33: C | D33: Final FY19 Charter School Tuition and Enrollment (Hadley)
A34: 456 | B34: 810.26 | C34: C | D34: Final FY19 Charter School Tuition and Enrollment (Hadley)
A35: 458 | B35: 89.66 | C35: C | D35: Final FY19 Charter School Tuition and Enrollment (Hadley)
A36: 463 | B36: 592.05 | C36: C | D36: Final FY19 Charter School Tuition and Enrollment (Hadley)
A37: 464 | B37: 227.35 | C37: C | D37: Final FY19 Charter School Tuition and Enrollment (Hadley)
A38: 466 | B38: 178.18 | C38: C | D38: Final FY19 Charter School Tuition and Enrollment (Hadley)
A39: 469 | B39: 1220.28 | C39: C | D39: Final FY19 Charter School Tuition and Enrollment (Hadley)
A40: 470 | B40: 1572.13 | C40: C | D40: Final FY19 Charter School Tuition and Enrollment (Hadley)
A41: 474 | B41: 364.05 | C41: C | D41: Final FY19 Charter School Tuition and Enrollment (Hadley)
A42: 478 | B42: 394.62 | C42: C | D42: Final FY19 Charter School Tuition and Enrollment (Hadley)
A43: 479 | B43: 392.28 | C43: C | D43: Final FY19 Charter School Tuition and Enrollment (Hadley)
A44: 481 | B44: 945.35 | C44: C | D44: Final FY19 Charter School Tuition and Enrollment (Hadley)
A45: 482 | B45: 287.93 | C45: C | D45: Final FY19 Charter School Tuition and Enrollment (Hadley)
A46: 483 | B46: 654.66 | C46: C | D46: Final FY19 Charter School Tuition and Enrollment (Hadley)
A47: 484 | B47: 1509.91 | C47: C | D47: Final FY19 Charter School Tuition and Enrollment (Hadley)
A48: 485 | B48: 486.61 | C48: C | D48: Final FY19 Charter School Tuition and Enrollment (Hadley)
A49: 486 | B49: 665.64 | C49: C | D49: Final FY19 Charter School Tuition and Enrollment (Hadley)
A50: 487 | B50: 1118.22 | C50: C | D50: Final FY19 Charter School Tuition and Enrollment (Hadley)
A51: 488 | B51: 946.28 | C51: C | D51: Final FY19 Charter School Tuition and Enrollment (Hadley)
A52: 489 | B52: 838.2 | C52: C | D52: Final FY19 Charter School Tuition and Enrollment (Hadley)
A53: 491 | B53: 1287.8 | C53: C | D53: Final FY19 Charter School Tuition and Enrollment (Hadley)
A54: 492 | B54: 369.66 | C54: C | D54: Final FY19 Charter School Tuition and Enrollment (Hadley)
A55: 493 | B55: 195.37 | C55: C | D55: Final FY19 Charter School Tuition and Enrollment (Hadley)
A56: 494 | B56: 784.01 | C56: C | D56: Final FY19 Charter School Tuition and Enrollment (Hadley)
A57: 496 | B57: 502.84 | C57: C | D57: Final FY19 Charter School Tuition and Enrollment (Hadley)
A58: 497 | B58: 517.77 | C58: C | D58: Final FY19 Charter School Tuition and Enrollment (Hadley)
A59: 498 | B59: 348.06 | C59: C | D59: Final FY19 Charter School Tuition and Enrollment (Hadley)
A60: 499 | B60: 498.14 | C60: C | D60: Final FY19 Charter School Tuition and Enrollment (Hadley)
A61: 3501 | B61: 284.66 | C61: C | D61: Final FY19 Charter School Tuition and Enrollment (Hadley)
A62: 3502 | B62: 488.84 | C62: C | D62: Final FY19 Charter School Tuition and Enrollment (Hadley)
A63: 3503 | B63: 842.84 | C63: C | D63: Final FY19 Charter School Tuition and Enrollment (Hadley)
A64: 3504 | B64: 243.79 | C64: C | D64: Final FY19 Charter School Tuition and Enrollment (Hadley)
A65: 3506 | B65: 360.21 | C65: C | D65: Final FY19 Charter School Tuition and Enrollment (Hadley)
A66: 3507 | B66: 208.33 | C66: C | D66: Final FY19 Charter School Tuition and Enrollment (Hadley)
A67: 3508 | B67: 188.22 | C67: C | D67: Final FY19 Charter School Tuition and Enrollment (Hadley)
A68: 3509 | B68: 458.87 | C68: C | D68: Final FY19 Charter School Tuition and Enrollment (Hadley)
A69: 3510 | B69: 269.72 | C69: C | D69: Final FY19 Charter School Tuition and Enrollment (Hadley)
A70: 3513 | B70: 542.78 | C70: C | D70: Final FY19 Charter School Tuition and Enrollment (Hadley)
A71: 3514 | B71: 167.71 | C71: C | D71: Final FY19 Charter School Tuition and Enrollment (Hadley)
A72: 3515 | B72: 199.4 | C72: C | D72: Final FY19 Charter School Tuition and Enrollment (Hadley)
A73: 3516 | B73: 212.06 | C73: C | D73: Final FY19 Charter School Tuition and Enrollment (Hadley)
A74: 3517 | B74: 125.68 | C74: C | D74: Final FY19 Charter School Tuition and Enrollment (Hadley)
A75: 3518 | B75: 128.26 | C75: C | D75: Final FY19 Charter School Tuition and Enrollment (Hadley)
A78: 407 | B78: 263.7359551 | C78: HM | D78: Days of membership report
A79: 411 | B79: 463.6388889 | C79: HM | D79: Days of membership report
A80: 424 | B80: 387.3604651 | C80: HM | D80: Days of membership report
A81: 427 | B81: 287.9666667 | C81: HM | D81: Days of membership report
A82: 452 | B82: 381.188144 | C82: HM | D82: Days of membership report
A83: 480 | B83: 504.1945946 | C83: HM | D83: Days of membership report
A84: 3505 | B84: 722.7745377 | C84: HM | D84: Days of membership report
A85: 3511 | B85: 334.6395388 | C85: HM | D85: Days of membership report
